Workbook

Sheet Info
A1: Rock Maker: software for the calculation of rock compositions using whole rock and mineral data
A2: Steffen Büttner
A3: Department of Geology, Rhodes University
A4: Grahamstown, South Africa
A5: E-mail: s.buettner@ru.ac.za
C7: This spreadsheet is an online resource forming part of a publication in Mineralogy and Petrology. Further descriptions and explanations are provided
C8: therein. If Rock Maker is used for data processing in your own research please cite as follows:
C9: Büttner SH (2012) Rock Maker: an MS ExcelTM spreadsheet for the calculation of rock compositions from proportional whole rock analyses,
C10: mineral compositions, and modal abundance. Mineralogy and Petrology, Vol 104, Issue 1-2. DOI 10.1007/s00710-011-0181-7
C13: Colour-coding of spreadsheet cells
C14: Dark red cells contain content that should not be changed, such as mathematical formulas, basic parameters required for calculations, etc.
C15: Light red cells in the worksheet “Mineral Data Set” can be overwritten if other mineral phases, densities or compositions are desired.
C16: Green cells require or allow data input by the user.
C17: Blue cells contain results, which can be copy/pasted to wherever the user chooses to store them.
C18: Orange cells contain user information or instructions.
B22: Oxide molar masses used for mol%/wt% conversions:
C24: (g/mol)
B25: SiO2 | C25: 60.0848
B26: TiO2 | C26: 79.8988
B27: Al2O3 | C27: 101.9612
B28: Cr2O3 | C28: 151.9902
B29: MgO | C29: 40.3114
B30: CaO | C30: 56.0794
B31: MnO | C31: 70.9375
B32: FeO | C32: 71.8464
B33: Fe2O3 | C33: 159.6922
B34: BaO | C34: 153.3394
B35: Na2O | C35: 61.979
B36: K2O | C36: 94.2034
B37: SO3 | C37: 80.064
B38: O2 | C38: 32
B39: H2O | C39: 18.015
B40: CO2 | C40: 44.01
B41: B2O3 | C41: 69.62
B42: P2O5 | C42: 141.94
B43: Li2O | C43: 29.88

Sheet Whole Rock Maker
A1: XRF/Mineral composition | B1: Comp 1 | C1: Comp 2 | D1: Comp 3 | E1: Comp 4 | F1: Comp 5 | G1: Comp 6 | H1: Comp 7 | I1: Comp 8 | J1: Comp 9 | K1: Comp 10 | L1: Comp 11 | M1: Comp 12 | N1: Comp 13 | O1: Comp 14 | P1: Comp 15 | Q1: Comp 16 | R1: Comp 17 | S1: Comp 18 | T1: Total
A2: Label | B2: Granite | C2: Gabbro | D2: Migmatite | E2: Pegmatite | F2: Gabbro | G2: Olivine | H2: Chromite | I2: Migmatite | J2: Apatite | K2: Phlogopite | L2: Annite
A3: wt% | B3: =IF(B25>0,B4/($C$88/B25),0) -> 67.61363636 | C3: 32.38636364 | D3: 0 | E3: 0 | F3: 0 | G3: 0 | H3: 0 | I3: 0 | J3: 0 | K3: 0 | L3: =IF(L25>0,L4/($C$88/L25),0) -> 0 | M3: =IF(M25>0,M4/($C$88/M25),0) -> 0 | N3: 0 | O3: 0 | P3: 0 | Q3: 0 | R3: 0 | S3: 0 | T3: =SUM(B3:S3) -> 100
A4: Mode/vol% | B4: 70 | C4: 30 | D4: 0 | E4: 0 | F4: 0 | G4: 0 | H4: 0 | I4: 0 | J4: 0 | K4: 0 | L4: 0 | M4: 0 | N4: 0 | O4: 0 | P4: 0 | Q4: 0 | R4: 0 | S4: 0 | T4: =SUM(B4:S4) -> 100
A5: Wt% SiO2 | B5: 67.95 | C5: 48.47 | D5: 61.40960331 | E5: 71.17699826 | F5: 42.33895129 | G5: 34.88382084 | I5: 61.40960331 | K5: 43.19685856 | L5: 35.21344099 | T5: =B5*$B$3+C5*$C$3+D5*$D$3+E5*$E$3+F5*$F$3+G5*$G$3+H5*$H$3+I5*$I$3+J5*$J$3+K5*$K$3+L5*$L$3+M5*$M$3+N5*$N$3+O5*$O$3+P5*$P$3+Q5*$Q$3+R5*$R$3+S5*$S$3 -> 6164.113636
A6: Al2O3 | B6: 13.63 | C6: 18.1 | D6: 19.60919339 | E6: 12.64199034 | F6: 18.35060182 | I6: 19.60919339 | K6: 12.2171873 | L6: 9.959270618 | T6: =B6*$B$3+C6*$C$3+D6*$D$3+E6*$E$3+F6*$F$3+G6*$G$3+H6*$H$3+I6*$I$3+J6*$J$3+K6*$K$3+L6*$L$3+M6*$M$3+N6*$N$3+O6*$O$3+P6*$P$3+Q6*$Q$3+R6*$R$3+S6*$S$3 -> 1507.767045
A7: Fe2O3 | D7: 1.379400238 | F7: 1.379400238 | I7: 1.379400238 | T7: 0
A8: Cr2O3 | C8: 0.34 | F8: 0.8370690048 | H8: 67.90230016 | T8: 11.01136364
A9: TiO2 | B9: 0.5 | C9: 0 | D9: 0.815031903 | I9: 0.815031903 | T9: 33.80681818
A10: FeO | B10: 4.31 | C10: 5.67 | D10: 6.376259829 | E10: 0.2142369393 | F10: 13.38883144 | G10: 41.71232901 | H10: 32.09769984 | I10: 6.376259829 | L10: 42.1064723 | T10: 475.0454545
A11: MgO | B11: 1.29 | C11: 9.53 | D11: 2.046653257 | E11: 0.1202035308 | F11: 8.390367175 | G11: 23.40385015 | I11: 2.046653257 | K11: 28.98113739 | T11: 395.8636364
A12: MnO | B12: 1 | C12: 0 | D12: 0.6287842736 | E12: 2.14949919 | I12: 0.6287842736 | T12: 67.61363636
A13: CaO | B13: 3.68 | C13: 11.46 | D13: 2.9063095 | E13: 1.658610525 | F13: 8.181774831 | I13: 2.9063095 | J13: 55.82100457 | T13: 619.9659091
A14: Na2O | B14: 1.94 | C14: 1.28 | D14: 1.522832469 | E14: 1.853363016 | F14: 3.166382968 | I14: 1.522832469 | T14: 172.625
A15: K2O | B15: 4.47 | C15: 1.67 | D15: 2.876835502 | E15: 6.530469479 | F15: 3.966621238 | I15: 2.876835502 | K15: 11.28763277 | L15: 9.201511494 | T15: 356.3181818
A16: BaO | B16: 0.14 | C16: 1.03 | T16: 42.82386364
A17: H2O | B17: 0.67 | C17: 2.02 | D17: 0.08909632146 | E17: 2.6 | I17: 0.08909632146 | J17: 1.793199281 | K17: 4.317183974 | L17: 3.519304602 | T17: 110.7215909
A18: CO2 | T18: 0
A19: SO3 | T19: 0
A20: O2 | T20: 0
A21: Li2O | T21: 0
A22: B2O3 | T22: 0
A23: P2O5 | B23: 0.42 | C23: 0.43 | D23: 0.34 | E23: 0.847715923 | I23: 0.34 | J23: 42.38579615 | T23: 42.32386364
A24: Total | B24: =SUM(B5:B23) -> 100 | C24: =SUM(C5:C23) -> 100 | D24: 100 | E24: 99.79308721 | F24: 100 | G24: 100 | H24: 100 | I24: 100 | J24: 100 | K24: 100 | L24: =SUM(L5:L23) -> 100 | M24: =SUM(M5:M23) -> 0 | N24: 0 | O24: 0 | P24: 0 | Q24: 0 | R24: 0 | S24: 0 | T24: =SUM(T5:T23) -> 10000
A25: ρ | B25: 2.72 | C25: 3.04 | D25: 3.00591 | E25: 2.73089 | F25: 3.1671 | G25: 3.75 | H25: 5.09 | I25: 3.00591 | J25: 3.2 | K25: 2.79 | L25: 3.36
A26: ppm As | T26: =B26*$B$3+C26*$C$3+D26*$D$3+E26*$E$3+F26*$F$3+G26*$G$3+H26*$H$3+I26*$I$3+J26*$J$3+K26*$K$3+L26*$L$3+M26*$M$3+N26*$N$3+O26*$O$3+P26*$P$3+Q26*$Q$3+R26*$R$3+S26*$S$3 -> 0
A27: B | B27: 233 | C27: 45 | T27: =B27*$B$3+C27*$C$3+D27*$D$3+E27*$E$3+F27*$F$3+G27*$G$3+H27*$H$3+I27*$I$3+J27*$J$3+K27*$K$3+L27*$L$3+M27*$M$3+N27*$N$3+O27*$O$3+P27*$P$3+Q27*$Q$3+R27*$R$3+S27*$S$3 -> 17211.36364
A28: Ba | B28: 3455 | C28: 699 | T28: =B28*$B$3+C28*$C$3+D28*$D$3+E28*$E$3+F28*$F$3+G28*$G$3+H28*$H$3+I28*$I$3+J28*$J$3+K28*$K$3+L28*$L$3+M28*$M$3+N28*$N$3+O28*$O$3+P28*$P$3+Q28*$Q$3+R28*$R$3+S28*$S$3 -> 256243.1818
A29: Bi | B29: 100 | C29: 0 | T29: =B29*$B$3+C29*$C$3+D29*$D$3+E29*$E$3+F29*$F$3+G29*$G$3+H29*$H$3+I29*$I$3+J29*$J$3+K29*$K$3+L29*$L$3+M29*$M$3+N29*$N$3+O29*$O$3+P29*$P$3+Q29*$Q$3+R29*$R$3+S29*$S$3 -> 6761.363636
A30: Ce | B30: 23 | C30: 13 | T30: 1976.136364
A31: Co | B31: 45 | C31: 554 | T31: 20984.65909
A32: Cr | T32: 0
A33: Cs | T33: 0
A34: Cu | B34: 3477 | C34: 333 | T34: 245877.2727
A35: Ga | B35: 23 | C35: 67 | T35: 3725
A36: Ge | T36: 0
A37: Hf | B37: 25 | C37: 24 | T37: 2467.613636
A38: La | B38: 5 | C38: 23 | T38: 1082.954545
A39: Li | B39: 266 | T39: 17985.22727
A40: Mo | B40: 677 | C40: 23 | T40: 46519.31818
A41: Nb | B41: 25 | C41: 66 | T41: 3827.840909
A42: Nd | B42: 344 | C42: 333 | T42: 34043.75
A43: Ni | C43: 825 | T43: 26718.75
A44: Pb | B44: 444 | C44: 45 | T44: 31477.84091
A45: Rb | B45: 2451 | C45: 265 | T45: 174303.4091
A46: Sc | T46: 0
A47: Se | B47: 24 | T47: 1622.727273
A48: Sm | B48: 22 | C48: 74 | T48: 3884.090909
A49: Sr | B49: 165 | C49: 35 | T49: 12289.77273
A50: Ta | T50: 0
A51: Th | B51: 26 | C51: 33 | T51: 2826.704545
A52: Tl | T52: 0
A53: U | B53: 23 | C53: 34 | T53: 2656.25
A54: V | B54: 35 | C54: 44 | T54: 3791.477273
A55: W | B55: 129 | C55: 35 | T55: 9855.681818
A56: Y | B56: 48 | C56: 75 | T56: 5674.431818
A57: Yb | B57: 15 | C57: 2 | T57: 1078.977273
A58: Zn | B58: 470 | C58: 23 | T58: 32523.29545
A59: Zr | B59: 876 | C59: 103 | T59: 62565.34091
B65: WR composition
B66: (wt%)
B67: SiO2 | C67: =T5/$T$24*100 -> 61.64113636 | D67: =IF(T5<0, " Negative value! Error in modes!","") -> 
B68: Al2O3 | C68: =T6/$T$24*100 -> 15.07767045 | I68: =IF(T4=100,"","Modal volume NOT 100% :") ->  | L68: =IF(T4=100,"",T4) -> 
B69: Fe2O3 | C69: =T7/$T$24*100 -> 0 | I69: =IF(T4=100,"Modal volume: 100%","") -> Modal volume: 100%
B70: Cr2O3 | C70: 0.1101136364 | D70: =IF(T8<0, " Negative value! Error in modes!","") -> 
B71: TiO2 | C71: 0.3380681818
B72: FeO | C72: 4.750454545
B73: MgO | C73: 3.958636364
B74: MnO | C74: 0.6761363636 | F74: Note: for extraction of phases or proportional rock compositions insert negative mode/vol% values in row 4
B75: CaO | C75: 6.199659091
B76: Na2O | C76: 1.72625
B77: K2O | C77: 3.563181818
B78: BaO | C78: 0.4282386364
B79: H2O | C79: 1.107215909
B80: CO2 | C80: 0
B81: SO3 | C81: 0
B82: O2 | C82: 0
B83: Li2O | C83: 0
B84: B2O3 | C84: 0
B85: P2O5 | C85: 0.4232386364
B86: Total | C86: =SUM(C67:C85) -> 100
B88: ρWR | C88: =(B4*B25+C4*C25+D4*D25+E4*E25+F4*F25+G4*G25+H4*H25+I4*I25+J4*J25+K4*K25+L4*L25+M4*M25+N4*N25+O4*O25+P4*P25+Q4*Q25+R4*R25+S4*S25)/T4 -> 2.816
B90: (ppm)
B91: As | C91: =T26/100 -> 0 | D91: =IF(T26<0, " Negative value!","") -> 
B92: B | C92: =T27/100 -> 172.1136364 | D92: =IF(T27<0, " Negative value!","") -> 
B93: Ba | C93: 2562.431818
B94: Bi | C94: 67.61363636
B95: Ce | C95: 19.76136364
B96: Co | C96: 209.8465909
B97: Cr | C97: 0
B98: Cs | C98: 0
B99: Cu | C99: 2458.772727
B100: Ga | C100: 37.25
B101: Ge | C101: 0
B102: Hf | C102: 24.67613636
B103: La | C103: 10.82954545
B104: Li | C104: 179.8522727
B105: Mo | C105: 465.1931818
B106: Nb | C106: 38.27840909
B107: Nd | C107: 340.4375
B108: Ni | C108: 267.1875
B109: Pb | C109: 314.7784091
B110: Rb | C110: 1743.034091
B111: Sc | C111: =T46/100 -> 0
B112: Se | C112: 16.22727273
B113: Sm | C113: 38.84090909
B114: Sr | C114: 122.8977273
B115: Ta | C115: 0
B116: Th | C116: 28.26704545
B117: Tl | C117: 0
B118: U | C118: 26.5625
B119: V | C119: 37.91477273
B120: W | C120: 98.55681818
B121: Y | C121: 56.74431818
B122: Yb | C122: 10.78977273
B123: Zn | C123: 325.2329545
B124: Zr | C124: 625.6534091

Sheet WR Theriak converter
B2: Input oxide wt% | C2: Oxide mole prop. | D2: Atomic prop. | F2: Copy to Theriak-Domino THERIN file
A3: Wt% SiO2 | B3: ='Whole Rock Maker'!C67 -> 61.64113636 | C3: =B3/Info!C25 -> 1.025902331 | D3: =INT('Whole Rock Maker'!$T$24*C3/$C$23)/100 -> 54.72 | F3: ="SI("&D3&")AL("&D4&")FE("&D22&")MG("&D9&")CA("&D11&")NA("&D12&")K("&D13&")O(?)H("&D15&")C("&D16&")S("&D17&")O("&D18&")" -> SI(54.72)AL(15.77)FE(3.52)MG(5.23)CA(5.89)NA(2.97)K(4.03)O(?)H(6.55)C(0)S(0)O(0)
A4: Al2O3 | B4: ='Whole Rock Maker'!C68 -> 15.07767045 | C4: =2*B4/Info!C27 -> 0.2957530993 | D4: =INT('Whole Rock Maker'!$T$24*C4/$C$23)/100 -> 15.77
A5: Fe2O3 | B5: ='Whole Rock Maker'!C69 -> 0 | C5: - | D5: -
A6: Cr2O3 | B6: ='Whole Rock Maker'!C70 -> 0.1101136364 | C6: =2*B6/Info!C28 -> 0.001448957056 | D6: =INT('Whole Rock Maker'!$T$24*C6/$C$23)/100 -> 0.07
A7: TiO2 | B7: ='Whole Rock Maker'!C71 -> 0.3380681818 | C7: =B7/Info!C26 -> 0.004231204747 | D7: =INT('Whole Rock Maker'!$T$24*C7/$C$23)/100 -> 0.22
A8: FeO | B8: ='Whole Rock Maker'!C72 -> 4.750454545 | C8: - | D8: -
A9: MgO | B9: ='Whole Rock Maker'!C73 -> 3.958636364 | C9: =B9/Info!C29 -> 0.09820141111 | D9: =INT('Whole Rock Maker'!$T$24*C9/$C$23)/100 -> 5.23
A10: MnO | B10: ='Whole Rock Maker'!C74 -> 0.6761363636 | C10: =B10/Info!C31 -> 0.009531437725 | D10: =INT('Whole Rock Maker'!$T$24*C10/$C$23)/100 -> 0.5
A11: CaO | B11: ='Whole Rock Maker'!C75 -> 6.199659091 | C11: =B11/Info!C30 -> 0.1105514519 | D11: =INT('Whole Rock Maker'!$T$24*C11/$C$23)/100 -> 5.89
A12: Na2O | B12: ='Whole Rock Maker'!C76 -> 1.72625 | C12: =2*B12/Info!C35 -> 0.05570435147 | D12: =INT('Whole Rock Maker'!$T$24*C12/$C$23)/100 -> 2.97
A13: K2O | B13: ='Whole Rock Maker'!C77 -> 3.563181818 | C13: =2*B13/Info!C36 -> 0.07564868823 | D13: =INT('Whole Rock Maker'!$T$24*C13/$C$23)/100 -> 4.03
A14: BaO | B14: ='Whole Rock Maker'!C78 -> 0.4282386364 | C14: =B14/Info!C34 -> 0.002792750176 | D14: =INT('Whole Rock Maker'!$T$24*C14/$C$23)/100 -> 0.14
A15: H2O | B15: ='Whole Rock Maker'!C79 -> 1.107215909 | C15: =2*B15/Info!C39 -> 0.1229215553 | D15: =INT('Whole Rock Maker'!$T$24*C15/$C$23)/100 -> 6.55
A16: CO2 | B16: ='Whole Rock Maker'!C80 -> 0 | C16: =B16/Info!C40 -> 0 | D16: =INT('Whole Rock Maker'!$T$24*C16/$C$23)/100 -> 0
A17: SO3 | B17: ='Whole Rock Maker'!C81 -> 0 | C17: =B17/Info!C37 -> 0 | D17: =INT('Whole Rock Maker'!$T$24*C17/$C$23)/100 -> 0
A18: O2 | B18: ='Whole Rock Maker'!C82 -> 0 | C18: =B18/Info!C38 -> 0 | D18: =INT('Whole Rock Maker'!$T$24*C18/$C$23)/100 -> 0
A19: Li2O | B19: ='Whole Rock Maker'!C83 -> 0 | C19: =2*B19/Info!C43 -> 0 | D19: =INT('Whole Rock Maker'!$T$24*C19/$C$23)/100 -> 0
A20: B2O3 | B20: ='Whole Rock Maker'!C84 -> 0 | C20: =B20*B20/Info!C41 -> 0 | D20: =INT('Whole Rock Maker'!$T$24*C20/$C$23)/100 -> 0
A21: P2O5 | B21: ='Whole Rock Maker'!C85 -> 0.4232386364 | C21: =2*B21/Info!C42 -> 0.005963627397 | D21: =INT('Whole Rock Maker'!$T$24*C21/$C$23)/100 -> 0.31
A22: FeOtot | B22: =B8+B5*0.8998 -> 4.750454545 | C22: =B22/Info!C32 -> 0.06611959048 | D22: =INT('Whole Rock Maker'!$T$24*C22/$C$23)/100 -> 3.52
A23: Total | B23: ='Whole Rock Maker'!C86 -> 100 | C23: =SUM(C3:C22) -> 1.874770456 | D23: =SUM(D3:D22) -> 99.92
A26: Important!
A27: The value Fe2O3 from the chemical analysis is transformed into FeO (FeOtot = FeO+Fe2O3 x 0.8998).

Sheet Phase Rock Maker
A2: ='Mineral Data Set'!A2 -> Phase | B2: ='Mineral Data Set'!B2 -> Structural formula | C2: Mode | D2: wt% | E2: n moles | F2: mol% | H2: WR composition (wt%) | Q2: Oxide proportions
A3: ='Mineral Data Set'!A3 -> Quartz | B3: ='Mineral Data Set'!B3 -> SiO2 | C3: 100 | D3: =C3/$I$23*'Mineral Data Set'!C3 -> 100 | E3: =D3/'Mineral Data Set'!AR3 -> 1.664314436 | F3: =E3/$E$109*100 ->  | H3: SiO2 | I3: =Q3/$Q$22*100 -> 100 | J3: =IF(Q3<0, " Negative value!","") ->  | Q3: =$D$3*'Mineral Data Set'!AT3+'Phase Rock Maker'!$D$4*'Mineral Data Set'!AT4+'Phase Rock Maker'!$D$5*'Mineral Data Set'!AT5+'Phase Rock Maker'!$D$6*'Mineral Data Set'!AT6+'Phase Rock Maker'!$D$7*'Mineral Data Set'!AT7+'Phase Rock Maker'!$D$8*'Mineral Data Set'!AT8+'Phase Rock Maker'!$D$9*'Mineral Data Set'!AT9+'Phase Rock Maker'!$D$10*'Mineral Data Set'!AT10+'Phase Rock Maker'!$D$11*'Mineral Data Set'!AT11+'Phase Rock Maker'!$D$12*'Mineral Data Set'!AT12+'Phase Rock Maker'!$D$13*'Mineral Data Set'!AT13+'Phase Rock Maker'!$D$14*'Mineral Data Set'!AT14+'Phase Rock Maker'!$D$15*'Mineral Data Set'!AT15+'Phase Rock Maker'!$D$16*'Mineral Data Set'!AT16+'Phase Rock Maker'!$D$17*'Mineral Data Set'!AT17+'Phase Rock Maker'!$D$18*'Mineral Data Set'!AT18+'Phase Rock Maker'!$D$19*'Mineral Data Set'!AT19+'Phase Rock Maker'!$D$20*'Mineral Data Set'!AT20+'Phase Rock Maker'!$D$21*'Mineral Data Set'!AT21+'Phase Rock Maker'!$D$22*'Mineral Data Set'!AT22+'Phase Rock Maker'!$D$23*'Mineral Data Set'!AT23+'Phase Rock Maker'!$D$24*'Mineral Data Set'!AT24+'Phase Rock Maker'!$D$25*'Mineral Data Set'!AT25+'Phase Rock Maker'!$D$26*'Mineral Data Set'!AT26+'Phase Rock Maker'!$D$27*'Mineral Data Set'!AT27+'Phase Rock Maker'!$D$28*'Mineral Data Set'!AT28+'Phase Rock Maker'!$D$29*'Mineral Data Set'!AT29+'Phase Rock Maker'!$D$30*'Mineral Data Set'!AT30+'Phase Rock Maker'!$D$31*'Mineral Data Set'!AT31+'Phase Rock Maker'!$D$32*'Mineral Data Set'!AT32+'Phase Rock Maker'!$D$33*'Mineral Data Set'!AT33+'Phase Rock Maker'!$D$34*'Mineral Data Set'!AT34+'Phase Rock Maker'!$D$35*'Mineral Data Set'!AT35+'Phase Rock Maker'!$D$36*'Mineral Data Set'!AT36+'Phase Rock Maker'!$D$37*'Mineral Data Set'!AT37+'Phase Rock Maker'!$D$38*'Mineral Data Set'!AT38+'Phase Rock Maker'!$D$39*'Mineral Data Set'!AT39+'Phase Rock Maker'!$D$40*'Mineral Data Set'!AT40+'Phase Rock Maker'!$D$41*'Mineral Data Set'!AT41+'Phase Rock Maker'!$D$42*'Mineral Data Set'!AT42+'Phase Rock Maker'!$D$43*'Mineral Data Set'!AT43+'Phase Rock Maker'!$D$44*'Mineral Data Set'!AT44+'Phase Rock Maker'!$D$45*'Mineral Data Set'!AT45+'Phase Rock Maker'!$D$46*'Mineral Data Set'!AT46+'Phase Rock Maker'!$D$47*'Mineral Data Set'!AT47+'Phase Rock Maker'!$D$48*'Mineral Data Set'!AT48+'Phase Rock Maker'!$D$49*'Mineral Data Set'!AT49+'Phase Rock Maker'!$D$50*'Mineral Data Set'!AT50+'Phase Rock Maker'!$D$51*'Mineral Data Set'!AT51+'Phase Rock Maker'!$D$52*'Mineral Data Set'!AT52+'Phase Rock Maker'!$D$53*'Mineral Data Set'!AT53+'Phase Rock Maker'!$D$54*'Mineral Data Set'!AT54+'Phase Rock Maker'!$D$55*'Mineral Data Set'!AT55+'Phase Rock Maker'!$D$56*'Mineral Data Set'!AT56+'Phase Rock Maker'!$D$57*'Mineral Data Set'!AT57+'Phase Rock Maker'!$D$58*'Mineral Data Set'!AT58+'Phase Rock Maker'!$D$59*'Mineral Data Set'!AT59+'Phase Rock Maker'!$D$60*'Mineral Data Set'!AT60+'Phase Rock Maker'!$D$61*'Mineral Data Set'!AT61+'Phase Rock Maker'!$D$62*'Mineral Data Set'!AT62+'Phase Rock Maker'!$D$63*'Mineral Data Set'!AT63+'Phase Rock Maker'!$D$64*'Mineral Data Set'!AT64+'Phase Rock Maker'!$D$65*'Mineral Data Set'!AT65+'Phase Rock Maker'!$D$66*'Mineral Data Set'!AT66+'Phase Rock Maker'!$D$67*'Mineral Data Set'!AT67+'Phase Rock Maker'!$D$68*'Mineral Data Set'!AT68+'Phase Rock Maker'!$D$69*'Mineral Data Set'!AT69+'Phase Rock Maker'!$D$70*'Mineral Data Set'!AT70+'Phase Rock Maker'!$D$71*'Mineral Data Set'!AT71+'Phase Rock Maker'!$D$72*'Mineral Data Set'!AT72+'Phase Rock Maker'!$D$73*'Mineral Data Set'!AT73+'Phase Rock Maker'!$D$74*'Mineral Data Set'!AT74+'Phase Rock Maker'!$D$75*'Mineral Data Set'!AT75+'Phase Rock Maker'!$D$76*'Mineral Data Set'!AT76+'Phase Rock Maker'!$D$77*'Mineral Data Set'!AT77+'Phase Rock Maker'!$D$78*'Mineral Data Set'!AT78+'Phase Rock Maker'!$D$79*'Mineral Data Set'!AT79+'Phase Rock Maker'!$D$80*'Mineral Data Set'!AT80+'Phase Rock Maker'!$D$81*'Mineral Data Set'!AT81+'Phase Rock Maker'!$D$82*'Mineral Data Set'!AT82+'Phase Rock Maker'!$D$83*'Mineral Data Set'!AT83+'Phase Rock Maker'!$D$84*'Mineral Data Set'!AT84+'Phase Rock Maker'!$D$85*'Mineral Data Set'!AT85+'Phase Rock Maker'!$D$86*'Mineral Data Set'!AT86+'Phase Rock Maker'!$D$87*'Mineral Data Set'!AT87+'Phase Rock Maker'!$D$88*'Mineral Data Set'!AT88+'Phase Rock Maker'!$D$89*'Mineral Data Set'!AT89+'Phase Rock Maker'!$D$90*'Mineral Data Set'!AT90+'Phase Rock Maker'!$D$91*'Mineral Data Set'!AT91+'Phase Rock Maker'!$D$92*'Mineral Data Set'!AT92+'Phase Rock Maker'!$D$93*'Mineral Data Set'!AT93+'Phase Rock Maker'!$D$94*'Mineral Data Set'!AT94+'Phase Rock Maker'!$D$95*'Mineral Data Set'!AT95+'Phase Rock Maker'!$D$96*'Mineral Data Set'!AT96+'Phase Rock Maker'!$D$97*'Mineral Data Set'!AT97+'Phase Rock Maker'!$D$98*'Mineral Data Set'!AT98+'Phase Rock Maker'!$D$99*'Mineral Data Set'!AT99+'Phase Rock Maker'!$D$100*'Mineral Data Set'!AT100+'Phase Rock Maker'!$D$101*'Mineral Data Set'!AT101+'Phase Rock Maker'!$D$102*'Mineral Data Set'!AT102+'Phase Rock Maker'!$D$103*'Mineral Data Set'!AT103+'Phase Rock Maker'!$D$104*'Mineral Data Set'!AT104+'Phase Rock Maker'!$D$105*'Mineral Data Set'!AT105+'Phase Rock Maker'!$D$106*'Mineral Data Set'!AT106+'Phase Rock Maker'!$D$107*'Mineral Data Set'!AT107+'Phase Rock Maker'!$D$108*'Mineral Data Set'!AT108 -> 10000
A4: ='Mineral Data Set'!A4 -> Albite | B4: ='Mineral Data Set'!B4 -> NaAlSi3O8 | C4: 0 | D4: =C4/$I$23*'Mineral Data Set'!C4 -> 0 | E4: =D4/'Mineral Data Set'!AR4 -> 0 | F4: =E4/$E$109*100 ->  | H4: Al2O3 | I4: =Q4/$Q$22*100 -> 0 | J4: =IF(Q4<0, " Negative value!","") ->  | Q4: =$D$3*'Mineral Data Set'!AU3+'Phase Rock Maker'!$D$4*'Mineral Data Set'!AU4+'Phase Rock Maker'!$D$5*'Mineral Data Set'!AU5+'Phase Rock Maker'!$D$6*'Mineral Data Set'!AU6+'Phase Rock Maker'!$D$7*'Mineral Data Set'!AU7+'Phase Rock Maker'!$D$8*'Mineral Data Set'!AU8+'Phase Rock Maker'!$D$9*'Mineral Data Set'!AU9+'Phase Rock Maker'!$D$10*'Mineral Data Set'!AU10+'Phase Rock Maker'!$D$11*'Mineral Data Set'!AU11+'Phase Rock Maker'!$D$12*'Mineral Data Set'!AU12+'Phase Rock Maker'!$D$13*'Mineral Data Set'!AU13+'Phase Rock Maker'!$D$14*'Mineral Data Set'!AU14+'Phase Rock Maker'!$D$15*'Mineral Data Set'!AU15+'Phase Rock Maker'!$D$16*'Mineral Data Set'!AU16+'Phase Rock Maker'!$D$17*'Mineral Data Set'!AU17+'Phase Rock Maker'!$D$18*'Mineral Data Set'!AU18+'Phase Rock Maker'!$D$19*'Mineral Data Set'!AU19+'Phase Rock Maker'!$D$20*'Mineral Data Set'!AU20+'Phase Rock Maker'!$D$21*'Mineral Data Set'!AU21+'Phase Rock Maker'!$D$22*'Mineral Data Set'!AU22+'Phase Rock Maker'!$D$23*'Mineral Data Set'!AU23+'Phase Rock Maker'!$D$24*'Mineral Data Set'!AU24+'Phase Rock Maker'!$D$25*'Mineral Data Set'!AU25+'Phase Rock Maker'!$D$26*'Mineral Data Set'!AU26+'Phase Rock Maker'!$D$27*'Mineral Data Set'!AU27+'Phase Rock Maker'!$D$28*'Mineral Data Set'!AU28+'Phase Rock Maker'!$D$29*'Mineral Data Set'!AU29+'Phase Rock Maker'!$D$30*'Mineral Data Set'!AU30+'Phase Rock Maker'!$D$31*'Mineral Data Set'!AU31+'Phase Rock Maker'!$D$32*'Mineral Data Set'!AU32+'Phase Rock Maker'!$D$33*'Mineral Data Set'!AU33+'Phase Rock Maker'!$D$34*'Mineral Data Set'!AU34+'Phase Rock Maker'!$D$35*'Mineral Data Set'!AU35+'Phase Rock Maker'!$D$36*'Mineral Data Set'!AU36+'Phase Rock Maker'!$D$37*'Mineral Data Set'!AU37+'Phase Rock Maker'!$D$38*'Mineral Data Set'!AU38+'Phase Rock Maker'!$D$39*'Mineral Data Set'!AU39+'Phase Rock Maker'!$D$40*'Mineral Data Set'!AU40+'Phase Rock Maker'!$D$41*'Mineral Data Set'!AU41+'Phase Rock Maker'!$D$42*'Mineral Data Set'!AU42+'Phase Rock Maker'!$D$43*'Mineral Data Set'!AU43+'Phase Rock Maker'!$D$44*'Mineral Data Set'!AU44+'Phase Rock Maker'!$D$45*'Mineral Data Set'!AU45+'Phase Rock Maker'!$D$46*'Mineral Data Set'!AU46+'Phase Rock Maker'!$D$47*'Mineral Data Set'!AU47+'Phase Rock Maker'!$D$48*'Mineral Data Set'!AU48+'Phase Rock Maker'!$D$49*'Mineral Data Set'!AU49+'Phase Rock Maker'!$D$50*'Mineral Data Set'!AU50+'Phase Rock Maker'!$D$51*'Mineral Data Set'!AU51+'Phase Rock Maker'!$D$52*'Mineral Data Set'!AU52+'Phase Rock Maker'!$D$53*'Mineral Data Set'!AU53+'Phase Rock Maker'!$D$54*'Mineral Data Set'!AU54+'Phase Rock Maker'!$D$55*'Mineral Data Set'!AU55+'Phase Rock Maker'!$D$56*'Mineral Data Set'!AU56+'Phase Rock Maker'!$D$57*'Mineral Data Set'!AU57+'Phase Rock Maker'!$D$58*'Mineral Data Set'!AU58+'Phase Rock Maker'!$D$59*'Mineral Data Set'!AU59+'Phase Rock Maker'!$D$60*'Mineral Data Set'!AU60+'Phase Rock Maker'!$D$61*'Mineral Data Set'!AU61+'Phase Rock Maker'!$D$62*'Mineral Data Set'!AU62+'Phase Rock Maker'!$D$63*'Mineral Data Set'!AU63+'Phase Rock Maker'!$D$64*'Mineral Data Set'!AU64+'Phase Rock Maker'!$D$65*'Mineral Data Set'!AU65+'Phase Rock Maker'!$D$66*'Mineral Data Set'!AU66+'Phase Rock Maker'!$D$67*'Mineral Data Set'!AU67+'Phase Rock Maker'!$D$68*'Mineral Data Set'!AU68+'Phase Rock Maker'!$D$69*'Mineral Data Set'!AU69+'Phase Rock Maker'!$D$70*'Mineral Data Set'!AU70+'Phase Rock Maker'!$D$71*'Mineral Data Set'!AU71+'Phase Rock Maker'!$D$72*'Mineral Data Set'!AU72+'Phase Rock Maker'!$D$73*'Mineral Data Set'!AU73+'Phase Rock Maker'!$D$74*'Mineral Data Set'!AU74+'Phase Rock Maker'!$D$75*'Mineral Data Set'!AU75+'Phase Rock Maker'!$D$76*'Mineral Data Set'!AU76+'Phase Rock Maker'!$D$77*'Mineral Data Set'!AU77+'Phase Rock Maker'!$D$78*'Mineral Data Set'!AU78+'Phase Rock Maker'!$D$79*'Mineral Data Set'!AU79+'Phase Rock Maker'!$D$80*'Mineral Data Set'!AU80+'Phase Rock Maker'!$D$81*'Mineral Data Set'!AU81+'Phase Rock Maker'!$D$82*'Mineral Data Set'!AU82+'Phase Rock Maker'!$D$83*'Mineral Data Set'!AU83+'Phase Rock Maker'!$D$84*'Mineral Data Set'!AU84+'Phase Rock Maker'!$D$85*'Mineral Data Set'!AU85+'Phase Rock Maker'!$D$86*'Mineral Data Set'!AU86+'Phase Rock Maker'!$D$87*'Mineral Data Set'!AU87+'Phase Rock Maker'!$D$88*'Mineral Data Set'!AU88+'Phase Rock Maker'!$D$89*'Mineral Data Set'!AU89+'Phase Rock Maker'!$D$90*'Mineral Data Set'!AU90+'Phase Rock Maker'!$D$91*'Mineral Data Set'!AU91+'Phase Rock Maker'!$D$92*'Mineral Data Set'!AU92+'Phase Rock Maker'!$D$93*'Mineral Data Set'!AU93+'Phase Rock Maker'!$D$94*'Mineral Data Set'!AU94+'Phase Rock Maker'!$D$95*'Mineral Data Set'!AU95+'Phase Rock Maker'!$D$96*'Mineral Data Set'!AU96+'Phase Rock Maker'!$D$97*'Mineral Data Set'!AU97+'Phase Rock Maker'!$D$98*'Mineral Data Set'!AU98+'Phase Rock Maker'!$D$99*'Mineral Data Set'!AU99+'Phase Rock Maker'!$D$100*'Mineral Data Set'!AU100+'Phase Rock Maker'!$D$101*'Mineral Data Set'!AU101+'Phase Rock Maker'!$D$102*'Mineral Data Set'!AU102+'Phase Rock Maker'!$D$103*'Mineral Data Set'!AU103+'Phase Rock Maker'!$D$104*'Mineral Data Set'!AU104+'Phase Rock Maker'!$D$105*'Mineral Data Set'!AU105+'Phase Rock Maker'!$D$106*'Mineral Data Set'!AU106+'Phase Rock Maker'!$D$107*'Mineral Data Set'!AU107+'Phase Rock Maker'!$D$108*'Mineral Data Set'!AU108 -> 0
A5: ='Mineral Data Set'!A5 -> Anorthite | B5: ='Mineral Data Set'!B5 -> CaAl2Si2O8 | C5: 0 | D5: =C5/$I$23*'Mineral Data Set'!C5 -> 0 | E5: =D5/'Mineral Data Set'!AR5 -> 0 | F5: =E5/$E$109*100 ->  | H5: Fe2O3 | I5: =Q5/$Q$22*100 -> 0 | Q5: =$D$3*'Mineral Data Set'!AX3+'Phase Rock Maker'!$D$4*'Mineral Data Set'!AX4+'Phase Rock Maker'!$D$5*'Mineral Data Set'!AX5+'Phase Rock Maker'!$D$6*'Mineral Data Set'!AX6+'Phase Rock Maker'!$D$7*'Mineral Data Set'!AX7+'Phase Rock Maker'!$D$8*'Mineral Data Set'!AX8+'Phase Rock Maker'!$D$9*'Mineral Data Set'!AX9+'Phase Rock Maker'!$D$10*'Mineral Data Set'!AX10+'Phase Rock Maker'!$D$11*'Mineral Data Set'!AX11+'Phase Rock Maker'!$D$12*'Mineral Data Set'!AX12+'Phase Rock Maker'!$D$13*'Mineral Data Set'!AX13+'Phase Rock Maker'!$D$14*'Mineral Data Set'!AX14+'Phase Rock Maker'!$D$15*'Mineral Data Set'!AX15+'Phase Rock Maker'!$D$16*'Mineral Data Set'!AX16+'Phase Rock Maker'!$D$17*'Mineral Data Set'!AX17+'Phase Rock Maker'!$D$18*'Mineral Data Set'!AX18+'Phase Rock Maker'!$D$19*'Mineral Data Set'!AX19+'Phase Rock Maker'!$D$20*'Mineral Data Set'!AX20+'Phase Rock Maker'!$D$21*'Mineral Data Set'!AX21+'Phase Rock Maker'!$D$22*'Mineral Data Set'!AX22+'Phase Rock Maker'!$D$23*'Mineral Data Set'!AX23+'Phase Rock Maker'!$D$24*'Mineral Data Set'!AX24+'Phase Rock Maker'!$D$25*'Mineral Data Set'!AX25+'Phase Rock Maker'!$D$26*'Mineral Data Set'!AX26+'Phase Rock Maker'!$D$27*'Mineral Data Set'!AX27+'Phase Rock Maker'!$D$28*'Mineral Data Set'!AX28+'Phase Rock Maker'!$D$29*'Mineral Data Set'!AX29+'Phase Rock Maker'!$D$30*'Mineral Data Set'!AX30+'Phase Rock Maker'!$D$31*'Mineral Data Set'!AX31+'Phase Rock Maker'!$D$32*'Mineral Data Set'!AX32+'Phase Rock Maker'!$D$33*'Mineral Data Set'!AX33+'Phase Rock Maker'!$D$34*'Mineral Data Set'!AX34+'Phase Rock Maker'!$D$35*'Mineral Data Set'!AX35+'Phase Rock Maker'!$D$36*'Mineral Data Set'!AX36+'Phase Rock Maker'!$D$37*'Mineral Data Set'!AX37+'Phase Rock Maker'!$D$38*'Mineral Data Set'!AX38+'Phase Rock Maker'!$D$39*'Mineral Data Set'!AX39+'Phase Rock Maker'!$D$40*'Mineral Data Set'!AX40+'Phase Rock Maker'!$D$41*'Mineral Data Set'!AX41+'Phase Rock Maker'!$D$42*'Mineral Data Set'!AX42+'Phase Rock Maker'!$D$43*'Mineral Data Set'!AX43+'Phase Rock Maker'!$D$44*'Mineral Data Set'!AX44+'Phase Rock Maker'!$D$45*'Mineral Data Set'!AX45+'Phase Rock Maker'!$D$46*'Mineral Data Set'!AX46+'Phase Rock Maker'!$D$47*'Mineral Data Set'!AX47+'Phase Rock Maker'!$D$48*'Mineral Data Set'!AX48+'Phase Rock Maker'!$D$49*'Mineral Data Set'!AX49+'Phase Rock Maker'!$D$50*'Mineral Data Set'!AX50+'Phase Rock Maker'!$D$51*'Mineral Data Set'!AX51+'Phase Rock Maker'!$D$52*'Mineral Data Set'!AX52+'Phase Rock Maker'!$D$53*'Mineral Data Set'!AX53+'Phase Rock Maker'!$D$54*'Mineral Data Set'!AX54+'Phase Rock Maker'!$D$55*'Mineral Data Set'!AX55+'Phase Rock Maker'!$D$56*'Mineral Data Set'!AX56+'Phase Rock Maker'!$D$57*'Mineral Data Set'!AX57+'Phase Rock Maker'!$D$58*'Mineral Data Set'!AX58+'Phase Rock Maker'!$D$59*'Mineral Data Set'!AX59+'Phase Rock Maker'!$D$60*'Mineral Data Set'!AX60+'Phase Rock Maker'!$D$61*'Mineral Data Set'!AX61+'Phase Rock Maker'!$D$62*'Mineral Data Set'!AX62+'Phase Rock Maker'!$D$63*'Mineral Data Set'!AX63+'Phase Rock Maker'!$D$64*'Mineral Data Set'!AX64+'Phase Rock Maker'!$D$65*'Mineral Data Set'!AX65+'Phase Rock Maker'!$D$66*'Mineral Data Set'!AX66+'Phase Rock Maker'!$D$67*'Mineral Data Set'!AX67+'Phase Rock Maker'!$D$68*'Mineral Data Set'!AX68+'Phase Rock Maker'!$D$69*'Mineral Data Set'!AX69+'Phase Rock Maker'!$D$70*'Mineral Data Set'!AX70+'Phase Rock Maker'!$D$71*'Mineral Data Set'!AX71+'Phase Rock Maker'!$D$72*'Mineral Data Set'!AX72+'Phase Rock Maker'!$D$73*'Mineral Data Set'!AX73+'Phase Rock Maker'!$D$74*'Mineral Data Set'!AX74+'Phase Rock Maker'!$D$75*'Mineral Data Set'!AX75+'Phase Rock Maker'!$D$76*'Mineral Data Set'!AX76+'Phase Rock Maker'!$D$77*'Mineral Data Set'!AX77+'Phase Rock Maker'!$D$78*'Mineral Data Set'!AX78+'Phase Rock Maker'!$D$79*'Mineral Data Set'!AX79+'Phase Rock Maker'!$D$80*'Mineral Data Set'!AX80+'Phase Rock Maker'!$D$81*'Mineral Data Set'!AX81+'Phase Rock Maker'!$D$82*'Mineral Data Set'!AX82+'Phase Rock Maker'!$D$83*'Mineral Data Set'!AX83+'Phase Rock Maker'!$D$84*'Mineral Data Set'!AX84+'Phase Rock Maker'!$D$85*'Mineral Data Set'!AX85+'Phase Rock Maker'!$D$86*'Mineral Data Set'!AX86+'Phase Rock Maker'!$D$87*'Mineral Data Set'!AX87+'Phase Rock Maker'!$D$88*'Mineral Data Set'!AX88+'Phase Rock Maker'!$D$89*'Mineral Data Set'!AX89+'Phase Rock Maker'!$D$90*'Mineral Data Set'!AX90+'Phase Rock Maker'!$D$91*'Mineral Data Set'!AX91+'Phase Rock Maker'!$D$92*'Mineral Data Set'!AX92+'Phase Rock Maker'!$D$93*'Mineral Data Set'!AX93+'Phase Rock Maker'!$D$94*'Mineral Data Set'!AX94+'Phase Rock Maker'!$D$95*'Mineral Data Set'!AX95+'Phase Rock Maker'!$D$96*'Mineral Data Set'!AX96+'Phase Rock Maker'!$D$97*'Mineral Data Set'!AX97+'Phase Rock Maker'!$D$98*'Mineral Data Set'!AX98+'Phase Rock Maker'!$D$99*'Mineral Data Set'!AX99+'Phase Rock Maker'!$D$100*'Mineral Data Set'!AX100+'Phase Rock Maker'!$D$101*'Mineral Data Set'!AX101+'Phase Rock Maker'!$D$102*'Mineral Data Set'!AX102+'Phase Rock Maker'!$D$103*'Mineral Data Set'!AX103+'Phase Rock Maker'!$D$104*'Mineral Data Set'!AX104+'Phase Rock Maker'!$D$105*'Mineral Data Set'!AX105+'Phase Rock Maker'!$D$106*'Mineral Data Set'!AX106+'Phase Rock Maker'!$D$107*'Mineral Data Set'!AX107+'Phase Rock Maker'!$D$108*'Mineral Data Set'!AX108 -> 0
A6: ='Mineral Data Set'!A6 -> Oligoclase An15 | B6: ='Mineral Data Set'!B6 -> Na0.85Ca0.15Al1.15Si2.85O8 | C6: 0 | D6: =C6/$I$23*'Mineral Data Set'!C6 -> 0 | E6: =D6/'Mineral Data Set'!AR6 -> 0 | F6: =E6/$E$109*100 ->  | H6: Cr2O3 | I6: 0 | Q6: =$D$3*'Mineral Data Set'!BD3+'Phase Rock Maker'!$D$4*'Mineral Data Set'!BD4+'Phase Rock Maker'!$D$5*'Mineral Data Set'!BD5+'Phase Rock Maker'!$D$6*'Mineral Data Set'!BD6+'Phase Rock Maker'!$D$7*'Mineral Data Set'!BD7+'Phase Rock Maker'!$D$8*'Mineral Data Set'!BD8+'Phase Rock Maker'!$D$9*'Mineral Data Set'!BD9+'Phase Rock Maker'!$D$10*'Mineral Data Set'!BD10+'Phase Rock Maker'!$D$11*'Mineral Data Set'!BD11+'Phase Rock Maker'!$D$12*'Mineral Data Set'!BD12+'Phase Rock Maker'!$D$13*'Mineral Data Set'!BD13+'Phase Rock Maker'!$D$14*'Mineral Data Set'!BD14+'Phase Rock Maker'!$D$15*'Mineral Data Set'!BD15+'Phase Rock Maker'!$D$16*'Mineral Data Set'!BD16+'Phase Rock Maker'!$D$17*'Mineral Data Set'!BD17+'Phase Rock Maker'!$D$18*'Mineral Data Set'!BD18+'Phase Rock Maker'!$D$19*'Mineral Data Set'!BD19+'Phase Rock Maker'!$D$20*'Mineral Data Set'!BD20+'Phase Rock Maker'!$D$21*'Mineral Data Set'!BD21+'Phase Rock Maker'!$D$22*'Mineral Data Set'!BD22+'Phase Rock Maker'!$D$23*'Mineral Data Set'!BD23+'Phase Rock Maker'!$D$24*'Mineral Data Set'!BD24+'Phase Rock Maker'!$D$25*'Mineral Data Set'!BD25+'Phase Rock Maker'!$D$26*'Mineral Data Set'!BD26+'Phase Rock Maker'!$D$27*'Mineral Data Set'!BD27+'Phase Rock Maker'!$D$28*'Mineral Data Set'!BD28+'Phase Rock Maker'!$D$29*'Mineral Data Set'!BD29+'Phase Rock Maker'!$D$30*'Mineral Data Set'!BD30+'Phase Rock Maker'!$D$31*'Mineral Data Set'!BD31+'Phase Rock Maker'!$D$32*'Mineral Data Set'!BD32+'Phase Rock Maker'!$D$33*'Mineral Data Set'!BD33+'Phase Rock Maker'!$D$34*'Mineral Data Set'!BD34+'Phase Rock Maker'!$D$35*'Mineral Data Set'!BD35+'Phase Rock Maker'!$D$36*'Mineral Data Set'!BD36+'Phase Rock Maker'!$D$37*'Mineral Data Set'!BD37+'Phase Rock Maker'!$D$38*'Mineral Data Set'!BD38+'Phase Rock Maker'!$D$39*'Mineral Data Set'!BD39+'Phase Rock Maker'!$D$40*'Mineral Data Set'!BD40+'Phase Rock Maker'!$D$41*'Mineral Data Set'!BD41+'Phase Rock Maker'!$D$42*'Mineral Data Set'!BD42+'Phase Rock Maker'!$D$43*'Mineral Data Set'!BD43+'Phase Rock Maker'!$D$44*'Mineral Data Set'!BD44+'Phase Rock Maker'!$D$45*'Mineral Data Set'!BD45+'Phase Rock Maker'!$D$46*'Mineral Data Set'!BD46+'Phase Rock Maker'!$D$47*'Mineral Data Set'!BD47+'Phase Rock Maker'!$D$48*'Mineral Data Set'!BD48+'Phase Rock Maker'!$D$49*'Mineral Data Set'!BD49+'Phase Rock Maker'!$D$50*'Mineral Data Set'!BD50+'Phase Rock Maker'!$D$51*'Mineral Data Set'!BD51+'Phase Rock Maker'!$D$52*'Mineral Data Set'!BD52+'Phase Rock Maker'!$D$53*'Mineral Data Set'!BD53+'Phase Rock Maker'!$D$54*'Mineral Data Set'!BD54+'Phase Rock Maker'!$D$55*'Mineral Data Set'!BD55+'Phase Rock Maker'!$D$56*'Mineral Data Set'!BD56+'Phase Rock Maker'!$D$57*'Mineral Data Set'!BD57+'Phase Rock Maker'!$D$58*'Mineral Data Set'!BD58+'Phase Rock Maker'!$D$59*'Mineral Data Set'!BD59+'Phase Rock Maker'!$D$60*'Mineral Data Set'!BD60+'Phase Rock Maker'!$D$61*'Mineral Data Set'!BD61+'Phase Rock Maker'!$D$62*'Mineral Data Set'!BD62+'Phase Rock Maker'!$D$63*'Mineral Data Set'!BD63+'Phase Rock Maker'!$D$64*'Mineral Data Set'!BD64+'Phase Rock Maker'!$D$65*'Mineral Data Set'!BD65+'Phase Rock Maker'!$D$66*'Mineral Data Set'!BD66+'Phase Rock Maker'!$D$67*'Mineral Data Set'!BD67+'Phase Rock Maker'!$D$68*'Mineral Data Set'!BD68+'Phase Rock Maker'!$D$69*'Mineral Data Set'!BD69+'Phase Rock Maker'!$D$70*'Mineral Data Set'!BD70+'Phase Rock Maker'!$D$71*'Mineral Data Set'!BD71+'Phase Rock Maker'!$D$72*'Mineral Data Set'!BD72+'Phase Rock Maker'!$D$73*'Mineral Data Set'!BD73+'Phase Rock Maker'!$D$74*'Mineral Data Set'!BD74+'Phase Rock Maker'!$D$75*'Mineral Data Set'!BD75+'Phase Rock Maker'!$D$76*'Mineral Data Set'!BD76+'Phase Rock Maker'!$D$77*'Mineral Data Set'!BD77+'Phase Rock Maker'!$D$78*'Mineral Data Set'!BD78+'Phase Rock Maker'!$D$79*'Mineral Data Set'!BD79+'Phase Rock Maker'!$D$80*'Mineral Data Set'!BD80+'Phase Rock Maker'!$D$81*'Mineral Data Set'!BD81+'Phase Rock Maker'!$D$82*'Mineral Data Set'!BD82+'Phase Rock Maker'!$D$83*'Mineral Data Set'!BD83+'Phase Rock Maker'!$D$84*'Mineral Data Set'!BD84+'Phase Rock Maker'!$D$85*'Mineral Data Set'!BD85+'Phase Rock Maker'!$D$86*'Mineral Data Set'!BD86+'Phase Rock Maker'!$D$87*'Mineral Data Set'!BD87+'Phase Rock Maker'!$D$88*'Mineral Data Set'!BD88+'Phase Rock Maker'!$D$89*'Mineral Data Set'!BD89+'Phase Rock Maker'!$D$90*'Mineral Data Set'!BD90+'Phase Rock Maker'!$D$91*'Mineral Data Set'!BD91+'Phase Rock Maker'!$D$92*'Mineral Data Set'!BD92+'Phase Rock Maker'!$D$93*'Mineral Data Set'!BD93+'Phase Rock Maker'!$D$94*'Mineral Data Set'!BD94+'Phase Rock Maker'!$D$95*'Mineral Data Set'!BD95+'Phase Rock Maker'!$D$96*'Mineral Data Set'!BD96+'Phase Rock Maker'!$D$97*'Mineral Data Set'!BD97+'Phase Rock Maker'!$D$98*'Mineral Data Set'!BD98+'Phase Rock Maker'!$D$99*'Mineral Data Set'!BD99+'Phase Rock Maker'!$D$100*'Mineral Data Set'!BD100+'Phase Rock Maker'!$D$101*'Mineral Data Set'!BD101+'Phase Rock Maker'!$D$102*'Mineral Data Set'!BD102+'Phase Rock Maker'!$D$103*'Mineral Data Set'!BD103+'Phase Rock Maker'!$D$104*'Mineral Data Set'!BD104+'Phase Rock Maker'!$D$105*'Mineral Data Set'!BD105+'Phase Rock Maker'!$D$106*'Mineral Data Set'!BD106+'Phase Rock Maker'!$D$107*'Mineral Data Set'!BD107+'Phase Rock Maker'!$D$108*'Mineral Data Set'!BD108 -> 0
A7: ='Mineral Data Set'!A7 -> Andesine An40 | B7: ='Mineral Data Set'!B7 -> Na0.6Ca0.4Al1.4Si2.6O8 | C7: 0 | D7: =C7/$I$23*'Mineral Data Set'!C7 -> 0 | E7: =D7/'Mineral Data Set'!AR7 -> 0 | H7: TiO2 | I7: 0 | Q7: =$D$3*'Mineral Data Set'!BE3+'Phase Rock Maker'!$D$4*'Mineral Data Set'!BE4+'Phase Rock Maker'!$D$5*'Mineral Data Set'!BE5+'Phase Rock Maker'!$D$6*'Mineral Data Set'!BE6+'Phase Rock Maker'!$D$7*'Mineral Data Set'!BE7+'Phase Rock Maker'!$D$8*'Mineral Data Set'!BE8+'Phase Rock Maker'!$D$9*'Mineral Data Set'!BE9+'Phase Rock Maker'!$D$10*'Mineral Data Set'!BE10+'Phase Rock Maker'!$D$11*'Mineral Data Set'!BE11+'Phase Rock Maker'!$D$12*'Mineral Data Set'!BE12+'Phase Rock Maker'!$D$13*'Mineral Data Set'!BE13+'Phase Rock Maker'!$D$14*'Mineral Data Set'!BE14+'Phase Rock Maker'!$D$15*'Mineral Data Set'!BE15+'Phase Rock Maker'!$D$16*'Mineral Data Set'!BE16+'Phase Rock Maker'!$D$17*'Mineral Data Set'!BE17+'Phase Rock Maker'!$D$18*'Mineral Data Set'!BE18+'Phase Rock Maker'!$D$19*'Mineral Data Set'!BE19+'Phase Rock Maker'!$D$20*'Mineral Data Set'!BE20+'Phase Rock Maker'!$D$21*'Mineral Data Set'!BE21+'Phase Rock Maker'!$D$22*'Mineral Data Set'!BE22+'Phase Rock Maker'!$D$23*'Mineral Data Set'!BE23+'Phase Rock Maker'!$D$24*'Mineral Data Set'!BE24+'Phase Rock Maker'!$D$25*'Mineral Data Set'!BE25+'Phase Rock Maker'!$D$26*'Mineral Data Set'!BE26+'Phase Rock Maker'!$D$27*'Mineral Data Set'!BE27+'Phase Rock Maker'!$D$28*'Mineral Data Set'!BE28+'Phase Rock Maker'!$D$29*'Mineral Data Set'!BE29+'Phase Rock Maker'!$D$30*'Mineral Data Set'!BE30+'Phase Rock Maker'!$D$31*'Mineral Data Set'!BE31+'Phase Rock Maker'!$D$32*'Mineral Data Set'!BE32+'Phase Rock Maker'!$D$33*'Mineral Data Set'!BE33+'Phase Rock Maker'!$D$34*'Mineral Data Set'!BE34+'Phase Rock Maker'!$D$35*'Mineral Data Set'!BE35+'Phase Rock Maker'!$D$36*'Mineral Data Set'!BE36+'Phase Rock Maker'!$D$37*'Mineral Data Set'!BE37+'Phase Rock Maker'!$D$38*'Mineral Data Set'!BE38+'Phase Rock Maker'!$D$39*'Mineral Data Set'!BE39+'Phase Rock Maker'!$D$40*'Mineral Data Set'!BE40+'Phase Rock Maker'!$D$41*'Mineral Data Set'!BE41+'Phase Rock Maker'!$D$42*'Mineral Data Set'!BE42+'Phase Rock Maker'!$D$43*'Mineral Data Set'!BE43+'Phase Rock Maker'!$D$44*'Mineral Data Set'!BE44+'Phase Rock Maker'!$D$45*'Mineral Data Set'!BE45+'Phase Rock Maker'!$D$46*'Mineral Data Set'!BE46+'Phase Rock Maker'!$D$47*'Mineral Data Set'!BE47+'Phase Rock Maker'!$D$48*'Mineral Data Set'!BE48+'Phase Rock Maker'!$D$49*'Mineral Data Set'!BE49+'Phase Rock Maker'!$D$50*'Mineral Data Set'!BE50+'Phase Rock Maker'!$D$51*'Mineral Data Set'!BE51+'Phase Rock Maker'!$D$52*'Mineral Data Set'!BE52+'Phase Rock Maker'!$D$53*'Mineral Data Set'!BE53+'Phase Rock Maker'!$D$54*'Mineral Data Set'!BE54+'Phase Rock Maker'!$D$55*'Mineral Data Set'!BE55+'Phase Rock Maker'!$D$56*'Mineral Data Set'!BE56+'Phase Rock Maker'!$D$57*'Mineral Data Set'!BE57+'Phase Rock Maker'!$D$58*'Mineral Data Set'!BE58+'Phase Rock Maker'!$D$59*'Mineral Data Set'!BE59+'Phase Rock Maker'!$D$60*'Mineral Data Set'!BE60+'Phase Rock Maker'!$D$61*'Mineral Data Set'!BE61+'Phase Rock Maker'!$D$62*'Mineral Data Set'!BE62+'Phase Rock Maker'!$D$63*'Mineral Data Set'!BE63+'Phase Rock Maker'!$D$64*'Mineral Data Set'!BE64+'Phase Rock Maker'!$D$65*'Mineral Data Set'!BE65+'Phase Rock Maker'!$D$66*'Mineral Data Set'!BE66+'Phase Rock Maker'!$D$67*'Mineral Data Set'!BE67+'Phase Rock Maker'!$D$68*'Mineral Data Set'!BE68+'Phase Rock Maker'!$D$69*'Mineral Data Set'!BE69+'Phase Rock Maker'!$D$70*'Mineral Data Set'!BE70+'Phase Rock Maker'!$D$71*'Mineral Data Set'!BE71+'Phase Rock Maker'!$D$72*'Mineral Data Set'!BE72+'Phase Rock Maker'!$D$73*'Mineral Data Set'!BE73+'Phase Rock Maker'!$D$74*'Mineral Data Set'!BE74+'Phase Rock Maker'!$D$75*'Mineral Data Set'!BE75+'Phase Rock Maker'!$D$76*'Mineral Data Set'!BE76+'Phase Rock Maker'!$D$77*'Mineral Data Set'!BE77+'Phase Rock Maker'!$D$78*'Mineral Data Set'!BE78+'Phase Rock Maker'!$D$79*'Mineral Data Set'!BE79+'Phase Rock Maker'!$D$80*'Mineral Data Set'!BE80+'Phase Rock Maker'!$D$81*'Mineral Data Set'!BE81+'Phase Rock Maker'!$D$82*'Mineral Data Set'!BE82+'Phase Rock Maker'!$D$83*'Mineral Data Set'!BE83+'Phase Rock Maker'!$D$84*'Mineral Data Set'!BE84+'Phase Rock Maker'!$D$85*'Mineral Data Set'!BE85+'Phase Rock Maker'!$D$86*'Mineral Data Set'!BE86+'Phase Rock Maker'!$D$87*'Mineral Data Set'!BE87+'Phase Rock Maker'!$D$88*'Mineral Data Set'!BE88+'Phase Rock Maker'!$D$89*'Mineral Data Set'!BE89+'Phase Rock Maker'!$D$90*'Mineral Data Set'!BE90+'Phase Rock Maker'!$D$91*'Mineral Data Set'!BE91+'Phase Rock Maker'!$D$92*'Mineral Data Set'!BE92+'Phase Rock Maker'!$D$93*'Mineral Data Set'!BE93+'Phase Rock Maker'!$D$94*'Mineral Data Set'!BE94+'Phase Rock Maker'!$D$95*'Mineral Data Set'!BE95+'Phase Rock Maker'!$D$96*'Mineral Data Set'!BE96+'Phase Rock Maker'!$D$97*'Mineral Data Set'!BE97+'Phase Rock Maker'!$D$98*'Mineral Data Set'!BE98+'Phase Rock Maker'!$D$99*'Mineral Data Set'!BE99+'Phase Rock Maker'!$D$100*'Mineral Data Set'!BE100+'Phase Rock Maker'!$D$101*'Mineral Data Set'!BE101+'Phase Rock Maker'!$D$102*'Mineral Data Set'!BE102+'Phase Rock Maker'!$D$103*'Mineral Data Set'!BE103+'Phase Rock Maker'!$D$104*'Mineral Data Set'!BE104+'Phase Rock Maker'!$D$105*'Mineral Data Set'!BE105+'Phase Rock Maker'!$D$106*'Mineral Data Set'!BE106+'Phase Rock Maker'!$D$107*'Mineral Data Set'!BE107+'Phase Rock Maker'!$D$108*'Mineral Data Set'!BE108 -> 0
A8: ='Mineral Data Set'!A8 -> Labradorite An60 | B8: ='Mineral Data Set'!B8 -> Na0.4Ca0.6Al1.6Si2.4O8 | C8: 0 | D8: =C8/$I$23*'Mineral Data Set'!C8 -> 0 | E8: =D8/'Mineral Data Set'!AR8 -> 0 | H8: FeO | I8: 0 | Q8: =$D$3*'Mineral Data Set'!AW3+'Phase Rock Maker'!$D$4*'Mineral Data Set'!AW4+'Phase Rock Maker'!$D$5*'Mineral Data Set'!AW5+'Phase Rock Maker'!$D$6*'Mineral Data Set'!AW6+'Phase Rock Maker'!$D$7*'Mineral Data Set'!AW7+'Phase Rock Maker'!$D$8*'Mineral Data Set'!AW8+'Phase Rock Maker'!$D$9*'Mineral Data Set'!AW9+'Phase Rock Maker'!$D$10*'Mineral Data Set'!AW10+'Phase Rock Maker'!$D$11*'Mineral Data Set'!AW11+'Phase Rock Maker'!$D$12*'Mineral Data Set'!AW12+'Phase Rock Maker'!$D$13*'Mineral Data Set'!AW13+'Phase Rock Maker'!$D$14*'Mineral Data Set'!AW14+'Phase Rock Maker'!$D$15*'Mineral Data Set'!AW15+'Phase Rock Maker'!$D$16*'Mineral Data Set'!AW16+'Phase Rock Maker'!$D$17*'Mineral Data Set'!AW17+'Phase Rock Maker'!$D$18*'Mineral Data Set'!AW18+'Phase Rock Maker'!$D$19*'Mineral Data Set'!AW19+'Phase Rock Maker'!$D$20*'Mineral Data Set'!AW20+'Phase Rock Maker'!$D$21*'Mineral Data Set'!AW21+'Phase Rock Maker'!$D$22*'Mineral Data Set'!AW22+'Phase Rock Maker'!$D$23*'Mineral Data Set'!AW23+'Phase Rock Maker'!$D$24*'Mineral Data Set'!AW24+'Phase Rock Maker'!$D$25*'Mineral Data Set'!AW25+'Phase Rock Maker'!$D$26*'Mineral Data Set'!AW26+'Phase Rock Maker'!$D$27*'Mineral Data Set'!AW27+'Phase Rock Maker'!$D$28*'Mineral Data Set'!AW28+'Phase Rock Maker'!$D$29*'Mineral Data Set'!AW29+'Phase Rock Maker'!$D$30*'Mineral Data Set'!AW30+'Phase Rock Maker'!$D$31*'Mineral Data Set'!AW31+'Phase Rock Maker'!$D$32*'Mineral Data Set'!AW32+'Phase Rock Maker'!$D$33*'Mineral Data Set'!AW33+'Phase Rock Maker'!$D$34*'Mineral Data Set'!AW34+'Phase Rock Maker'!$D$35*'Mineral Data Set'!AW35+'Phase Rock Maker'!$D$36*'Mineral Data Set'!AW36+'Phase Rock Maker'!$D$37*'Mineral Data Set'!AW37+'Phase Rock Maker'!$D$38*'Mineral Data Set'!AW38+'Phase Rock Maker'!$D$39*'Mineral Data Set'!AW39+'Phase Rock Maker'!$D$40*'Mineral Data Set'!AW40+'Phase Rock Maker'!$D$41*'Mineral Data Set'!AW41+'Phase Rock Maker'!$D$42*'Mineral Data Set'!AW42+'Phase Rock Maker'!$D$43*'Mineral Data Set'!AW43+'Phase Rock Maker'!$D$44*'Mineral Data Set'!AW44+'Phase Rock Maker'!$D$45*'Mineral Data Set'!AW45+'Phase Rock Maker'!$D$46*'Mineral Data Set'!AW46+'Phase Rock Maker'!$D$47*'Mineral Data Set'!AW47+'Phase Rock Maker'!$D$48*'Mineral Data Set'!AW48+'Phase Rock Maker'!$D$49*'Mineral Data Set'!AW49+'Phase Rock Maker'!$D$50*'Mineral Data Set'!AW50+'Phase Rock Maker'!$D$51*'Mineral Data Set'!AW51+'Phase Rock Maker'!$D$52*'Mineral Data Set'!AW52+'Phase Rock Maker'!$D$53*'Mineral Data Set'!AW53+'Phase Rock Maker'!$D$54*'Mineral Data Set'!AW54+'Phase Rock Maker'!$D$55*'Mineral Data Set'!AW55+'Phase Rock Maker'!$D$56*'Mineral Data Set'!AW56+'Phase Rock Maker'!$D$57*'Mineral Data Set'!AW57+'Phase Rock Maker'!$D$58*'Mineral Data Set'!AW58+'Phase Rock Maker'!$D$59*'Mineral Data Set'!AW59+'Phase Rock Maker'!$D$60*'Mineral Data Set'!AW60+'Phase Rock Maker'!$D$61*'Mineral Data Set'!AW61+'Phase Rock Maker'!$D$62*'Mineral Data Set'!AW62+'Phase Rock Maker'!$D$63*'Mineral Data Set'!AW63+'Phase Rock Maker'!$D$64*'Mineral Data Set'!AW64+'Phase Rock Maker'!$D$65*'Mineral Data Set'!AW65+'Phase Rock Maker'!$D$66*'Mineral Data Set'!AW66+'Phase Rock Maker'!$D$67*'Mineral Data Set'!AW67+'Phase Rock Maker'!$D$68*'Mineral Data Set'!AW68+'Phase Rock Maker'!$D$69*'Mineral Data Set'!AW69+'Phase Rock Maker'!$D$70*'Mineral Data Set'!AW70+'Phase Rock Maker'!$D$71*'Mineral Data Set'!AW71+'Phase Rock Maker'!$D$72*'Mineral Data Set'!AW72+'Phase Rock Maker'!$D$73*'Mineral Data Set'!AW73+'Phase Rock Maker'!$D$74*'Mineral Data Set'!AW74+'Phase Rock Maker'!$D$75*'Mineral Data Set'!AW75+'Phase Rock Maker'!$D$76*'Mineral Data Set'!AW76+'Phase Rock Maker'!$D$77*'Mineral Data Set'!AW77+'Phase Rock Maker'!$D$78*'Mineral Data Set'!AW78+'Phase Rock Maker'!$D$79*'Mineral Data Set'!AW79+'Phase Rock Maker'!$D$80*'Mineral Data Set'!AW80+'Phase Rock Maker'!$D$81*'Mineral Data Set'!AW81+'Phase Rock Maker'!$D$82*'Mineral Data Set'!AW82+'Phase Rock Maker'!$D$83*'Mineral Data Set'!AW83+'Phase Rock Maker'!$D$84*'Mineral Data Set'!AW84+'Phase Rock Maker'!$D$85*'Mineral Data Set'!AW85+'Phase Rock Maker'!$D$86*'Mineral Data Set'!AW86+'Phase Rock Maker'!$D$87*'Mineral Data Set'!AW87+'Phase Rock Maker'!$D$88*'Mineral Data Set'!AW88+'Phase Rock Maker'!$D$89*'Mineral Data Set'!AW89+'Phase Rock Maker'!$D$90*'Mineral Data Set'!AW90+'Phase Rock Maker'!$D$91*'Mineral Data Set'!AW91+'Phase Rock Maker'!$D$92*'Mineral Data Set'!AW92+'Phase Rock Maker'!$D$93*'Mineral Data Set'!AW93+'Phase Rock Maker'!$D$94*'Mineral Data Set'!AW94+'Phase Rock Maker'!$D$95*'Mineral Data Set'!AW95+'Phase Rock Maker'!$D$96*'Mineral Data Set'!AW96+'Phase Rock Maker'!$D$97*'Mineral Data Set'!AW97+'Phase Rock Maker'!$D$98*'Mineral Data Set'!AW98+'Phase Rock Maker'!$D$99*'Mineral Data Set'!AW99+'Phase Rock Maker'!$D$100*'Mineral Data Set'!AW100+'Phase Rock Maker'!$D$101*'Mineral Data Set'!AW101+'Phase Rock Maker'!$D$102*'Mineral Data Set'!AW102+'Phase Rock Maker'!$D$103*'Mineral Data Set'!AW103+'Phase Rock Maker'!$D$104*'Mineral Data Set'!AW104+'Phase Rock Maker'!$D$105*'Mineral Data Set'!AW105+'Phase Rock Maker'!$D$106*'Mineral Data Set'!AW106+'Phase Rock Maker'!$D$107*'Mineral Data Set'!AW107+'Phase Rock Maker'!$D$108*'Mineral Data Set'!AW108 -> 0
A9: ='Mineral Data Set'!A9 -> Bytownite An80 | B9: ='Mineral Data Set'!B9 -> Na0.2Ca0.8Al1.8Si2.2O8 | C9: 0 | D9: =C9/$I$23*'Mineral Data Set'!C9 -> 0 | E9: =D9/'Mineral Data Set'!AR9 -> 0 | H9: MgO | I9: 0 | L9: =IF(C109=100,"","Modal volume NOT 100%:") ->  | N9: =IF(C109=100,"",C109) ->  | O9: =IF(C109=100,"","%") ->  | Q9: =$D$3*'Mineral Data Set'!AV3+'Phase Rock Maker'!$D$4*'Mineral Data Set'!AV4+'Phase Rock Maker'!$D$5*'Mineral Data Set'!AV5+'Phase Rock Maker'!$D$6*'Mineral Data Set'!AV6+'Phase Rock Maker'!$D$7*'Mineral Data Set'!AV7+'Phase Rock Maker'!$D$8*'Mineral Data Set'!AV8+'Phase Rock Maker'!$D$9*'Mineral Data Set'!AV9+'Phase Rock Maker'!$D$10*'Mineral Data Set'!AV10+'Phase Rock Maker'!$D$11*'Mineral Data Set'!AV11+'Phase Rock Maker'!$D$12*'Mineral Data Set'!AV12+'Phase Rock Maker'!$D$13*'Mineral Data Set'!AV13+'Phase Rock Maker'!$D$14*'Mineral Data Set'!AV14+'Phase Rock Maker'!$D$15*'Mineral Data Set'!AV15+'Phase Rock Maker'!$D$16*'Mineral Data Set'!AV16+'Phase Rock Maker'!$D$17*'Mineral Data Set'!AV17+'Phase Rock Maker'!$D$18*'Mineral Data Set'!AV18+'Phase Rock Maker'!$D$19*'Mineral Data Set'!AV19+'Phase Rock Maker'!$D$20*'Mineral Data Set'!AV20+'Phase Rock Maker'!$D$21*'Mineral Data Set'!AV21+'Phase Rock Maker'!$D$22*'Mineral Data Set'!AV22+'Phase Rock Maker'!$D$23*'Mineral Data Set'!AV23+'Phase Rock Maker'!$D$24*'Mineral Data Set'!AV24+'Phase Rock Maker'!$D$25*'Mineral Data Set'!AV25+'Phase Rock Maker'!$D$26*'Mineral Data Set'!AV26+'Phase Rock Maker'!$D$27*'Mineral Data Set'!AV27+'Phase Rock Maker'!$D$28*'Mineral Data Set'!AV28+'Phase Rock Maker'!$D$29*'Mineral Data Set'!AV29+'Phase Rock Maker'!$D$30*'Mineral Data Set'!AV30+'Phase Rock Maker'!$D$31*'Mineral Data Set'!AV31+'Phase Rock Maker'!$D$32*'Mineral Data Set'!AV32+'Phase Rock Maker'!$D$33*'Mineral Data Set'!AV33+'Phase Rock Maker'!$D$34*'Mineral Data Set'!AV34+'Phase Rock Maker'!$D$35*'Mineral Data Set'!AV35+'Phase Rock Maker'!$D$36*'Mineral Data Set'!AV36+'Phase Rock Maker'!$D$37*'Mineral Data Set'!AV37+'Phase Rock Maker'!$D$38*'Mineral Data Set'!AV38+'Phase Rock Maker'!$D$39*'Mineral Data Set'!AV39+'Phase Rock Maker'!$D$40*'Mineral Data Set'!AV40+'Phase Rock Maker'!$D$41*'Mineral Data Set'!AV41+'Phase Rock Maker'!$D$42*'Mineral Data Set'!AV42+'Phase Rock Maker'!$D$43*'Mineral Data Set'!AV43+'Phase Rock Maker'!$D$44*'Mineral Data Set'!AV44+'Phase Rock Maker'!$D$45*'Mineral Data Set'!AV45+'Phase Rock Maker'!$D$46*'Mineral Data Set'!AV46+'Phase Rock Maker'!$D$47*'Mineral Data Set'!AV47+'Phase Rock Maker'!$D$48*'Mineral Data Set'!AV48+'Phase Rock Maker'!$D$49*'Mineral Data Set'!AV49+'Phase Rock Maker'!$D$50*'Mineral Data Set'!AV50+'Phase Rock Maker'!$D$51*'Mineral Data Set'!AV51+'Phase Rock Maker'!$D$52*'Mineral Data Set'!AV52+'Phase Rock Maker'!$D$53*'Mineral Data Set'!AV53+'Phase Rock Maker'!$D$54*'Mineral Data Set'!AV54+'Phase Rock Maker'!$D$55*'Mineral Data Set'!AV55+'Phase Rock Maker'!$D$56*'Mineral Data Set'!AV56+'Phase Rock Maker'!$D$57*'Mineral Data Set'!AV57+'Phase Rock Maker'!$D$58*'Mineral Data Set'!AV58+'Phase Rock Maker'!$D$59*'Mineral Data Set'!AV59+'Phase Rock Maker'!$D$60*'Mineral Data Set'!AV60+'Phase Rock Maker'!$D$61*'Mineral Data Set'!AV61+'Phase Rock Maker'!$D$62*'Mineral Data Set'!AV62+'Phase Rock Maker'!$D$63*'Mineral Data Set'!AV63+'Phase Rock Maker'!$D$64*'Mineral Data Set'!AV64+'Phase Rock Maker'!$D$65*'Mineral Data Set'!AV65+'Phase Rock Maker'!$D$66*'Mineral Data Set'!AV66+'Phase Rock Maker'!$D$67*'Mineral Data Set'!AV67+'Phase Rock Maker'!$D$68*'Mineral Data Set'!AV68+'Phase Rock Maker'!$D$69*'Mineral Data Set'!AV69+'Phase Rock Maker'!$D$70*'Mineral Data Set'!AV70+'Phase Rock Maker'!$D$71*'Mineral Data Set'!AV71+'Phase Rock Maker'!$D$72*'Mineral Data Set'!AV72+'Phase Rock Maker'!$D$73*'Mineral Data Set'!AV73+'Phase Rock Maker'!$D$74*'Mineral Data Set'!AV74+'Phase Rock Maker'!$D$75*'Mineral Data Set'!AV75+'Phase Rock Maker'!$D$76*'Mineral Data Set'!AV76+'Phase Rock Maker'!$D$77*'Mineral Data Set'!AV77+'Phase Rock Maker'!$D$78*'Mineral Data Set'!AV78+'Phase Rock Maker'!$D$79*'Mineral Data Set'!AV79+'Phase Rock Maker'!$D$80*'Mineral Data Set'!AV80+'Phase Rock Maker'!$D$81*'Mineral Data Set'!AV81+'Phase Rock Maker'!$D$82*'Mineral Data Set'!AV82+'Phase Rock Maker'!$D$83*'Mineral Data Set'!AV83+'Phase Rock Maker'!$D$84*'Mineral Data Set'!AV84+'Phase Rock Maker'!$D$85*'Mineral Data Set'!AV85+'Phase Rock Maker'!$D$86*'Mineral Data Set'!AV86+'Phase Rock Maker'!$D$87*'Mineral Data Set'!AV87+'Phase Rock Maker'!$D$88*'Mineral Data Set'!AV88+'Phase Rock Maker'!$D$89*'Mineral Data Set'!AV89+'Phase Rock Maker'!$D$90*'Mineral Data Set'!AV90+'Phase Rock Maker'!$D$91*'Mineral Data Set'!AV91+'Phase Rock Maker'!$D$92*'Mineral Data Set'!AV92+'Phase Rock Maker'!$D$93*'Mineral Data Set'!AV93+'Phase Rock Maker'!$D$94*'Mineral Data Set'!AV94+'Phase Rock Maker'!$D$95*'Mineral Data Set'!AV95+'Phase Rock Maker'!$D$96*'Mineral Data Set'!AV96+'Phase Rock Maker'!$D$97*'Mineral Data Set'!AV97+'Phase Rock Maker'!$D$98*'Mineral Data Set'!AV98+'Phase Rock Maker'!$D$99*'Mineral Data Set'!AV99+'Phase Rock Maker'!$D$100*'Mineral Data Set'!AV100+'Phase Rock Maker'!$D$101*'Mineral Data Set'!AV101+'Phase Rock Maker'!$D$102*'Mineral Data Set'!AV102+'Phase Rock Maker'!$D$103*'Mineral Data Set'!AV103+'Phase Rock Maker'!$D$104*'Mineral Data Set'!AV104+'Phase Rock Maker'!$D$105*'Mineral Data Set'!AV105+'Phase Rock Maker'!$D$106*'Mineral Data Set'!AV106+'Phase Rock Maker'!$D$107*'Mineral Data Set'!AV107+'Phase Rock Maker'!$D$108*'Mineral Data Set'!AV108 -> 0
A10: ='Mineral Data Set'!A10 -> Orthoclase | B10: ='Mineral Data Set'!B10 -> KAlSi3O8 | C10: 0 | D10: =C10/$I$23*'Mineral Data Set'!C10 -> 0 | E10: =D10/'Mineral Data Set'!AR10 -> 0 | H10: MnO | I10: 0 | M10: =IF(C109=100,"Modal volume: 100%","") -> Modal volume: 100% | Q10: =$D$3*'Mineral Data Set'!AY3+'Phase Rock Maker'!$D$4*'Mineral Data Set'!AY4+'Phase Rock Maker'!$D$5*'Mineral Data Set'!AY5+'Phase Rock Maker'!$D$6*'Mineral Data Set'!AY6+'Phase Rock Maker'!$D$7*'Mineral Data Set'!AY7+'Phase Rock Maker'!$D$8*'Mineral Data Set'!AY8+'Phase Rock Maker'!$D$9*'Mineral Data Set'!AY9+'Phase Rock Maker'!$D$10*'Mineral Data Set'!AY10+'Phase Rock Maker'!$D$11*'Mineral Data Set'!AY11+'Phase Rock Maker'!$D$12*'Mineral Data Set'!AY12+'Phase Rock Maker'!$D$13*'Mineral Data Set'!AY13+'Phase Rock Maker'!$D$14*'Mineral Data Set'!AY14+'Phase Rock Maker'!$D$15*'Mineral Data Set'!AY15+'Phase Rock Maker'!$D$16*'Mineral Data Set'!AY16+'Phase Rock Maker'!$D$17*'Mineral Data Set'!AY17+'Phase Rock Maker'!$D$18*'Mineral Data Set'!AY18+'Phase Rock Maker'!$D$19*'Mineral Data Set'!AY19+'Phase Rock Maker'!$D$20*'Mineral Data Set'!AY20+'Phase Rock Maker'!$D$21*'Mineral Data Set'!AY21+'Phase Rock Maker'!$D$22*'Mineral Data Set'!AY22+'Phase Rock Maker'!$D$23*'Mineral Data Set'!AY23+'Phase Rock Maker'!$D$24*'Mineral Data Set'!AY24+'Phase Rock Maker'!$D$25*'Mineral Data Set'!AY25+'Phase Rock Maker'!$D$26*'Mineral Data Set'!AY26+'Phase Rock Maker'!$D$27*'Mineral Data Set'!AY27+'Phase Rock Maker'!$D$28*'Mineral Data Set'!AY28+'Phase Rock Maker'!$D$29*'Mineral Data Set'!AY29+'Phase Rock Maker'!$D$30*'Mineral Data Set'!AY30+'Phase Rock Maker'!$D$31*'Mineral Data Set'!AY31+'Phase Rock Maker'!$D$32*'Mineral Data Set'!AY32+'Phase Rock Maker'!$D$33*'Mineral Data Set'!AY33+'Phase Rock Maker'!$D$34*'Mineral Data Set'!AY34+'Phase Rock Maker'!$D$35*'Mineral Data Set'!AY35+'Phase Rock Maker'!$D$36*'Mineral Data Set'!AY36+'Phase Rock Maker'!$D$37*'Mineral Data Set'!AY37+'Phase Rock Maker'!$D$38*'Mineral Data Set'!AY38+'Phase Rock Maker'!$D$39*'Mineral Data Set'!AY39+'Phase Rock Maker'!$D$40*'Mineral Data Set'!AY40+'Phase Rock Maker'!$D$41*'Mineral Data Set'!AY41+'Phase Rock Maker'!$D$42*'Mineral Data Set'!AY42+'Phase Rock Maker'!$D$43*'Mineral Data Set'!AY43+'Phase Rock Maker'!$D$44*'Mineral Data Set'!AY44+'Phase Rock Maker'!$D$45*'Mineral Data Set'!AY45+'Phase Rock Maker'!$D$46*'Mineral Data Set'!AY46+'Phase Rock Maker'!$D$47*'Mineral Data Set'!AY47+'Phase Rock Maker'!$D$48*'Mineral Data Set'!AY48+'Phase Rock Maker'!$D$49*'Mineral Data Set'!AY49+'Phase Rock Maker'!$D$50*'Mineral Data Set'!AY50+'Phase Rock Maker'!$D$51*'Mineral Data Set'!AY51+'Phase Rock Maker'!$D$52*'Mineral Data Set'!AY52+'Phase Rock Maker'!$D$53*'Mineral Data Set'!AY53+'Phase Rock Maker'!$D$54*'Mineral Data Set'!AY54+'Phase Rock Maker'!$D$55*'Mineral Data Set'!AY55+'Phase Rock Maker'!$D$56*'Mineral Data Set'!AY56+'Phase Rock Maker'!$D$57*'Mineral Data Set'!AY57+'Phase Rock Maker'!$D$58*'Mineral Data Set'!AY58+'Phase Rock Maker'!$D$59*'Mineral Data Set'!AY59+'Phase Rock Maker'!$D$60*'Mineral Data Set'!AY60+'Phase Rock Maker'!$D$61*'Mineral Data Set'!AY61+'Phase Rock Maker'!$D$62*'Mineral Data Set'!AY62+'Phase Rock Maker'!$D$63*'Mineral Data Set'!AY63+'Phase Rock Maker'!$D$64*'Mineral Data Set'!AY64+'Phase Rock Maker'!$D$65*'Mineral Data Set'!AY65+'Phase Rock Maker'!$D$66*'Mineral Data Set'!AY66+'Phase Rock Maker'!$D$67*'Mineral Data Set'!AY67+'Phase Rock Maker'!$D$68*'Mineral Data Set'!AY68+'Phase Rock Maker'!$D$69*'Mineral Data Set'!AY69+'Phase Rock Maker'!$D$70*'Mineral Data Set'!AY70+'Phase Rock Maker'!$D$71*'Mineral Data Set'!AY71+'Phase Rock Maker'!$D$72*'Mineral Data Set'!AY72+'Phase Rock Maker'!$D$73*'Mineral Data Set'!AY73+'Phase Rock Maker'!$D$74*'Mineral Data Set'!AY74+'Phase Rock Maker'!$D$75*'Mineral Data Set'!AY75+'Phase Rock Maker'!$D$76*'Mineral Data Set'!AY76+'Phase Rock Maker'!$D$77*'Mineral Data Set'!AY77+'Phase Rock Maker'!$D$78*'Mineral Data Set'!AY78+'Phase Rock Maker'!$D$79*'Mineral Data Set'!AY79+'Phase Rock Maker'!$D$80*'Mineral Data Set'!AY80+'Phase Rock Maker'!$D$81*'Mineral Data Set'!AY81+'Phase Rock Maker'!$D$82*'Mineral Data Set'!AY82+'Phase Rock Maker'!$D$83*'Mineral Data Set'!AY83+'Phase Rock Maker'!$D$84*'Mineral Data Set'!AY84+'Phase Rock Maker'!$D$85*'Mineral Data Set'!AY85+'Phase Rock Maker'!$D$86*'Mineral Data Set'!AY86+'Phase Rock Maker'!$D$87*'Mineral Data Set'!AY87+'Phase Rock Maker'!$D$88*'Mineral Data Set'!AY88+'Phase Rock Maker'!$D$89*'Mineral Data Set'!AY89+'Phase Rock Maker'!$D$90*'Mineral Data Set'!AY90+'Phase Rock Maker'!$D$91*'Mineral Data Set'!AY91+'Phase Rock Maker'!$D$92*'Mineral Data Set'!AY92+'Phase Rock Maker'!$D$93*'Mineral Data Set'!AY93+'Phase Rock Maker'!$D$94*'Mineral Data Set'!AY94+'Phase Rock Maker'!$D$95*'Mineral Data Set'!AY95+'Phase Rock Maker'!$D$96*'Mineral Data Set'!AY96+'Phase Rock Maker'!$D$97*'Mineral Data Set'!AY97+'Phase Rock Maker'!$D$98*'Mineral Data Set'!AY98+'Phase Rock Maker'!$D$99*'Mineral Data Set'!AY99+'Phase Rock Maker'!$D$100*'Mineral Data Set'!AY100+'Phase Rock Maker'!$D$101*'Mineral Data Set'!AY101+'Phase Rock Maker'!$D$102*'Mineral Data Set'!AY102+'Phase Rock Maker'!$D$103*'Mineral Data Set'!AY103+'Phase Rock Maker'!$D$104*'Mineral Data Set'!AY104+'Phase Rock Maker'!$D$105*'Mineral Data Set'!AY105+'Phase Rock Maker'!$D$106*'Mineral Data Set'!AY106+'Phase Rock Maker'!$D$107*'Mineral Data Set'!AY107+'Phase Rock Maker'!$D$108*'Mineral Data Set'!AY108 -> 0
A11: ='Mineral Data Set'!A11 -> Perthite Or70Ab30 | B11: ='Mineral Data Set'!B11 -> K0.7Na0.3AlSi3O8 | C11: 0 | D11: =C11/$I$23*'Mineral Data Set'!C11 -> 0 | E11: =D11/'Mineral Data Set'!AR11 -> 0 | H11: CaO | I11: 0 | Q11: =$D$3*'Mineral Data Set'!AZ3+'Phase Rock Maker'!$D$4*'Mineral Data Set'!AZ4+'Phase Rock Maker'!$D$5*'Mineral Data Set'!AZ5+'Phase Rock Maker'!$D$6*'Mineral Data Set'!AZ6+'Phase Rock Maker'!$D$7*'Mineral Data Set'!AZ7+'Phase Rock Maker'!$D$8*'Mineral Data Set'!AZ8+'Phase Rock Maker'!$D$9*'Mineral Data Set'!AZ9+'Phase Rock Maker'!$D$10*'Mineral Data Set'!AZ10+'Phase Rock Maker'!$D$11*'Mineral Data Set'!AZ11+'Phase Rock Maker'!$D$12*'Mineral Data Set'!AZ12+'Phase Rock Maker'!$D$13*'Mineral Data Set'!AZ13+'Phase Rock Maker'!$D$14*'Mineral Data Set'!AZ14+'Phase Rock Maker'!$D$15*'Mineral Data Set'!AZ15+'Phase Rock Maker'!$D$16*'Mineral Data Set'!AZ16+'Phase Rock Maker'!$D$17*'Mineral Data Set'!AZ17+'Phase Rock Maker'!$D$18*'Mineral Data Set'!AZ18+'Phase Rock Maker'!$D$19*'Mineral Data Set'!AZ19+'Phase Rock Maker'!$D$20*'Mineral Data Set'!AZ20+'Phase Rock Maker'!$D$21*'Mineral Data Set'!AZ21+'Phase Rock Maker'!$D$22*'Mineral Data Set'!AZ22+'Phase Rock Maker'!$D$23*'Mineral Data Set'!AZ23+'Phase Rock Maker'!$D$24*'Mineral Data Set'!AZ24+'Phase Rock Maker'!$D$25*'Mineral Data Set'!AZ25+'Phase Rock Maker'!$D$26*'Mineral Data Set'!AZ26+'Phase Rock Maker'!$D$27*'Mineral Data Set'!AZ27+'Phase Rock Maker'!$D$28*'Mineral Data Set'!AZ28+'Phase Rock Maker'!$D$29*'Mineral Data Set'!AZ29+'Phase Rock Maker'!$D$30*'Mineral Data Set'!AZ30+'Phase Rock Maker'!$D$31*'Mineral Data Set'!AZ31+'Phase Rock Maker'!$D$32*'Mineral Data Set'!AZ32+'Phase Rock Maker'!$D$33*'Mineral Data Set'!AZ33+'Phase Rock Maker'!$D$34*'Mineral Data Set'!AZ34+'Phase Rock Maker'!$D$35*'Mineral Data Set'!AZ35+'Phase Rock Maker'!$D$36*'Mineral Data Set'!AZ36+'Phase Rock Maker'!$D$37*'Mineral Data Set'!AZ37+'Phase Rock Maker'!$D$38*'Mineral Data Set'!AZ38+'Phase Rock Maker'!$D$39*'Mineral Data Set'!AZ39+'Phase Rock Maker'!$D$40*'Mineral Data Set'!AZ40+'Phase Rock Maker'!$D$41*'Mineral Data Set'!AZ41+'Phase Rock Maker'!$D$42*'Mineral Data Set'!AZ42+'Phase Rock Maker'!$D$43*'Mineral Data Set'!AZ43+'Phase Rock Maker'!$D$44*'Mineral Data Set'!AZ44+'Phase Rock Maker'!$D$45*'Mineral Data Set'!AZ45+'Phase Rock Maker'!$D$46*'Mineral Data Set'!AZ46+'Phase Rock Maker'!$D$47*'Mineral Data Set'!AZ47+'Phase Rock Maker'!$D$48*'Mineral Data Set'!AZ48+'Phase Rock Maker'!$D$49*'Mineral Data Set'!AZ49+'Phase Rock Maker'!$D$50*'Mineral Data Set'!AZ50+'Phase Rock Maker'!$D$51*'Mineral Data Set'!AZ51+'Phase Rock Maker'!$D$52*'Mineral Data Set'!AZ52+'Phase Rock Maker'!$D$53*'Mineral Data Set'!AZ53+'Phase Rock Maker'!$D$54*'Mineral Data Set'!AZ54+'Phase Rock Maker'!$D$55*'Mineral Data Set'!AZ55+'Phase Rock Maker'!$D$56*'Mineral Data Set'!AZ56+'Phase Rock Maker'!$D$57*'Mineral Data Set'!AZ57+'Phase Rock Maker'!$D$58*'Mineral Data Set'!AZ58+'Phase Rock Maker'!$D$59*'Mineral Data Set'!AZ59+'Phase Rock Maker'!$D$60*'Mineral Data Set'!AZ60+'Phase Rock Maker'!$D$61*'Mineral Data Set'!AZ61+'Phase Rock Maker'!$D$62*'Mineral Data Set'!AZ62+'Phase Rock Maker'!$D$63*'Mineral Data Set'!AZ63+'Phase Rock Maker'!$D$64*'Mineral Data Set'!AZ64+'Phase Rock Maker'!$D$65*'Mineral Data Set'!AZ65+'Phase Rock Maker'!$D$66*'Mineral Data Set'!AZ66+'Phase Rock Maker'!$D$67*'Mineral Data Set'!AZ67+'Phase Rock Maker'!$D$68*'Mineral Data Set'!AZ68+'Phase Rock Maker'!$D$69*'Mineral Data Set'!AZ69+'Phase Rock Maker'!$D$70*'Mineral Data Set'!AZ70+'Phase Rock Maker'!$D$71*'Mineral Data Set'!AZ71+'Phase Rock Maker'!$D$72*'Mineral Data Set'!AZ72+'Phase Rock Maker'!$D$73*'Mineral Data Set'!AZ73+'Phase Rock Maker'!$D$74*'Mineral Data Set'!AZ74+'Phase Rock Maker'!$D$75*'Mineral Data Set'!AZ75+'Phase Rock Maker'!$D$76*'Mineral Data Set'!AZ76+'Phase Rock Maker'!$D$77*'Mineral Data Set'!AZ77+'Phase Rock Maker'!$D$78*'Mineral Data Set'!AZ78+'Phase Rock Maker'!$D$79*'Mineral Data Set'!AZ79+'Phase Rock Maker'!$D$80*'Mineral Data Set'!AZ80+'Phase Rock Maker'!$D$81*'Mineral Data Set'!AZ81+'Phase Rock Maker'!$D$82*'Mineral Data Set'!AZ82+'Phase Rock Maker'!$D$83*'Mineral Data Set'!AZ83+'Phase Rock Maker'!$D$84*'Mineral Data Set'!AZ84+'Phase Rock Maker'!$D$85*'Mineral Data Set'!AZ85+'Phase Rock Maker'!$D$86*'Mineral Data Set'!AZ86+'Phase Rock Maker'!$D$87*'Mineral Data Set'!AZ87+'Phase Rock Maker'!$D$88*'Mineral Data Set'!AZ88+'Phase Rock Maker'!$D$89*'Mineral Data Set'!AZ89+'Phase Rock Maker'!$D$90*'Mineral Data Set'!AZ90+'Phase Rock Maker'!$D$91*'Mineral Data Set'!AZ91+'Phase Rock Maker'!$D$92*'Mineral Data Set'!AZ92+'Phase Rock Maker'!$D$93*'Mineral Data Set'!AZ93+'Phase Rock Maker'!$D$94*'Mineral Data Set'!AZ94+'Phase Rock Maker'!$D$95*'Mineral Data Set'!AZ95+'Phase Rock Maker'!$D$96*'Mineral Data Set'!AZ96+'Phase Rock Maker'!$D$97*'Mineral Data Set'!AZ97+'Phase Rock Maker'!$D$98*'Mineral Data Set'!AZ98+'Phase Rock Maker'!$D$99*'Mineral Data Set'!AZ99+'Phase Rock Maker'!$D$100*'Mineral Data Set'!AZ100+'Phase Rock Maker'!$D$101*'Mineral Data Set'!AZ101+'Phase Rock Maker'!$D$102*'Mineral Data Set'!AZ102+'Phase Rock Maker'!$D$103*'Mineral Data Set'!AZ103+'Phase Rock Maker'!$D$104*'Mineral Data Set'!AZ104+'Phase Rock Maker'!$D$105*'Mineral Data Set'!AZ105+'Phase Rock Maker'!$D$106*'Mineral Data Set'!AZ106+'Phase Rock Maker'!$D$107*'Mineral Data Set'!AZ107+'Phase Rock Maker'!$D$108*'Mineral Data Set'!AZ108 -> 0
A12: ='Mineral Data Set'!A12 -> Mesoperthite Or50Ab50 | B12: ='Mineral Data Set'!B12 -> K0.5Na0.5AlSi3O8 | C12: 0 | D12: =C12/$I$23*'Mineral Data Set'!C12 -> 0 | E12: =D12/'Mineral Data Set'!AR12 -> 0 | H12: Na2O | I12: 0 | Q12: =$D$3*'Mineral Data Set'!BB3+'Phase Rock Maker'!$D$4*'Mineral Data Set'!BB4+'Phase Rock Maker'!$D$5*'Mineral Data Set'!BB5+'Phase Rock Maker'!$D$6*'Mineral Data Set'!BB6+'Phase Rock Maker'!$D$7*'Mineral Data Set'!BB7+'Phase Rock Maker'!$D$8*'Mineral Data Set'!BB8+'Phase Rock Maker'!$D$9*'Mineral Data Set'!BB9+'Phase Rock Maker'!$D$10*'Mineral Data Set'!BB10+'Phase Rock Maker'!$D$11*'Mineral Data Set'!BB11+'Phase Rock Maker'!$D$12*'Mineral Data Set'!BB12+'Phase Rock Maker'!$D$13*'Mineral Data Set'!BB13+'Phase Rock Maker'!$D$14*'Mineral Data Set'!BB14+'Phase Rock Maker'!$D$15*'Mineral Data Set'!BB15+'Phase Rock Maker'!$D$16*'Mineral Data Set'!BB16+'Phase Rock Maker'!$D$17*'Mineral Data Set'!BB17+'Phase Rock Maker'!$D$18*'Mineral Data Set'!BB18+'Phase Rock Maker'!$D$19*'Mineral Data Set'!BB19+'Phase Rock Maker'!$D$20*'Mineral Data Set'!BB20+'Phase Rock Maker'!$D$21*'Mineral Data Set'!BB21+'Phase Rock Maker'!$D$22*'Mineral Data Set'!BB22+'Phase Rock Maker'!$D$23*'Mineral Data Set'!BB23+'Phase Rock Maker'!$D$24*'Mineral Data Set'!BB24+'Phase Rock Maker'!$D$25*'Mineral Data Set'!BB25+'Phase Rock Maker'!$D$26*'Mineral Data Set'!BB26+'Phase Rock Maker'!$D$27*'Mineral Data Set'!BB27+'Phase Rock Maker'!$D$28*'Mineral Data Set'!BB28+'Phase Rock Maker'!$D$29*'Mineral Data Set'!BB29+'Phase Rock Maker'!$D$30*'Mineral Data Set'!BB30+'Phase Rock Maker'!$D$31*'Mineral Data Set'!BB31+'Phase Rock Maker'!$D$32*'Mineral Data Set'!BB32+'Phase Rock Maker'!$D$33*'Mineral Data Set'!BB33+'Phase Rock Maker'!$D$34*'Mineral Data Set'!BB34+'Phase Rock Maker'!$D$35*'Mineral Data Set'!BB35+'Phase Rock Maker'!$D$36*'Mineral Data Set'!BB36+'Phase Rock Maker'!$D$37*'Mineral Data Set'!BB37+'Phase Rock Maker'!$D$38*'Mineral Data Set'!BB38+'Phase Rock Maker'!$D$39*'Mineral Data Set'!BB39+'Phase Rock Maker'!$D$40*'Mineral Data Set'!BB40+'Phase Rock Maker'!$D$41*'Mineral Data Set'!BB41+'Phase Rock Maker'!$D$42*'Mineral Data Set'!BB42+'Phase Rock Maker'!$D$43*'Mineral Data Set'!BB43+'Phase Rock Maker'!$D$44*'Mineral Data Set'!BB44+'Phase Rock Maker'!$D$45*'Mineral Data Set'!BB45+'Phase Rock Maker'!$D$46*'Mineral Data Set'!BB46+'Phase Rock Maker'!$D$47*'Mineral Data Set'!BB47+'Phase Rock Maker'!$D$48*'Mineral Data Set'!BB48+'Phase Rock Maker'!$D$49*'Mineral Data Set'!BB49+'Phase Rock Maker'!$D$50*'Mineral Data Set'!BB50+'Phase Rock Maker'!$D$51*'Mineral Data Set'!BB51+'Phase Rock Maker'!$D$52*'Mineral Data Set'!BB52+'Phase Rock Maker'!$D$53*'Mineral Data Set'!BB53+'Phase Rock Maker'!$D$54*'Mineral Data Set'!BB54+'Phase Rock Maker'!$D$55*'Mineral Data Set'!BB55+'Phase Rock Maker'!$D$56*'Mineral Data Set'!BB56+'Phase Rock Maker'!$D$57*'Mineral Data Set'!BB57+'Phase Rock Maker'!$D$58*'Mineral Data Set'!BB58+'Phase Rock Maker'!$D$59*'Mineral Data Set'!BB59+'Phase Rock Maker'!$D$60*'Mineral Data Set'!BB60+'Phase Rock Maker'!$D$61*'Mineral Data Set'!BB61+'Phase Rock Maker'!$D$62*'Mineral Data Set'!BB62+'Phase Rock Maker'!$D$63*'Mineral Data Set'!BB63+'Phase Rock Maker'!$D$64*'Mineral Data Set'!BB64+'Phase Rock Maker'!$D$65*'Mineral Data Set'!BB65+'Phase Rock Maker'!$D$66*'Mineral Data Set'!BB66+'Phase Rock Maker'!$D$67*'Mineral Data Set'!BB67+'Phase Rock Maker'!$D$68*'Mineral Data Set'!BB68+'Phase Rock Maker'!$D$69*'Mineral Data Set'!BB69+'Phase Rock Maker'!$D$70*'Mineral Data Set'!BB70+'Phase Rock Maker'!$D$71*'Mineral Data Set'!BB71+'Phase Rock Maker'!$D$72*'Mineral Data Set'!BB72+'Phase Rock Maker'!$D$73*'Mineral Data Set'!BB73+'Phase Rock Maker'!$D$74*'Mineral Data Set'!BB74+'Phase Rock Maker'!$D$75*'Mineral Data Set'!BB75+'Phase Rock Maker'!$D$76*'Mineral Data Set'!BB76+'Phase Rock Maker'!$D$77*'Mineral Data Set'!BB77+'Phase Rock Maker'!$D$78*'Mineral Data Set'!BB78+'Phase Rock Maker'!$D$79*'Mineral Data Set'!BB79+'Phase Rock Maker'!$D$80*'Mineral Data Set'!BB80+'Phase Rock Maker'!$D$81*'Mineral Data Set'!BB81+'Phase Rock Maker'!$D$82*'Mineral Data Set'!BB82+'Phase Rock Maker'!$D$83*'Mineral Data Set'!BB83+'Phase Rock Maker'!$D$84*'Mineral Data Set'!BB84+'Phase Rock Maker'!$D$85*'Mineral Data Set'!BB85+'Phase Rock Maker'!$D$86*'Mineral Data Set'!BB86+'Phase Rock Maker'!$D$87*'Mineral Data Set'!BB87+'Phase Rock Maker'!$D$88*'Mineral Data Set'!BB88+'Phase Rock Maker'!$D$89*'Mineral Data Set'!BB89+'Phase Rock Maker'!$D$90*'Mineral Data Set'!BB90+'Phase Rock Maker'!$D$91*'Mineral Data Set'!BB91+'Phase Rock Maker'!$D$92*'Mineral Data Set'!BB92+'Phase Rock Maker'!$D$93*'Mineral Data Set'!BB93+'Phase Rock Maker'!$D$94*'Mineral Data Set'!BB94+'Phase Rock Maker'!$D$95*'Mineral Data Set'!BB95+'Phase Rock Maker'!$D$96*'Mineral Data Set'!BB96+'Phase Rock Maker'!$D$97*'Mineral Data Set'!BB97+'Phase Rock Maker'!$D$98*'Mineral Data Set'!BB98+'Phase Rock Maker'!$D$99*'Mineral Data Set'!BB99+'Phase Rock Maker'!$D$100*'Mineral Data Set'!BB100+'Phase Rock Maker'!$D$101*'Mineral Data Set'!BB101+'Phase Rock Maker'!$D$102*'Mineral Data Set'!BB102+'Phase Rock Maker'!$D$103*'Mineral Data Set'!BB103+'Phase Rock Maker'!$D$104*'Mineral Data Set'!BB104+'Phase Rock Maker'!$D$105*'Mineral Data Set'!BB105+'Phase Rock Maker'!$D$106*'Mineral Data Set'!BB106+'Phase Rock Maker'!$D$107*'Mineral Data Set'!BB107+'Phase Rock Maker'!$D$108*'Mineral Data Set'!BB108 -> 0
A13: ='Mineral Data Set'!A13 -> Mesoperthite Or30Ab70 | B13: ='Mineral Data Set'!B13 -> K0.3Na0.7AlSi3O8 | C13: 0 | D13: =C13/$I$23*'Mineral Data Set'!C13 -> 0 | E13: =D13/'Mineral Data Set'!AR13 -> 0 | H13: K2O | I13: 0 | Q13: =$D$3*'Mineral Data Set'!BA3+'Phase Rock Maker'!$D$4*'Mineral Data Set'!BA4+'Phase Rock Maker'!$D$5*'Mineral Data Set'!BA5+'Phase Rock Maker'!$D$6*'Mineral Data Set'!BA6+'Phase Rock Maker'!$D$7*'Mineral Data Set'!BA7+'Phase Rock Maker'!$D$8*'Mineral Data Set'!BA8+'Phase Rock Maker'!$D$9*'Mineral Data Set'!BA9+'Phase Rock Maker'!$D$10*'Mineral Data Set'!BA10+'Phase Rock Maker'!$D$11*'Mineral Data Set'!BA11+'Phase Rock Maker'!$D$12*'Mineral Data Set'!BA12+'Phase Rock Maker'!$D$13*'Mineral Data Set'!BA13+'Phase Rock Maker'!$D$14*'Mineral Data Set'!BA14+'Phase Rock Maker'!$D$15*'Mineral Data Set'!BA15+'Phase Rock Maker'!$D$16*'Mineral Data Set'!BA16+'Phase Rock Maker'!$D$17*'Mineral Data Set'!BA17+'Phase Rock Maker'!$D$18*'Mineral Data Set'!BA18+'Phase Rock Maker'!$D$19*'Mineral Data Set'!BA19+'Phase Rock Maker'!$D$20*'Mineral Data Set'!BA20+'Phase Rock Maker'!$D$21*'Mineral Data Set'!BA21+'Phase Rock Maker'!$D$22*'Mineral Data Set'!BA22+'Phase Rock Maker'!$D$23*'Mineral Data Set'!BA23+'Phase Rock Maker'!$D$24*'Mineral Data Set'!BA24+'Phase Rock Maker'!$D$25*'Mineral Data Set'!BA25+'Phase Rock Maker'!$D$26*'Mineral Data Set'!BA26+'Phase Rock Maker'!$D$27*'Mineral Data Set'!BA27+'Phase Rock Maker'!$D$28*'Mineral Data Set'!BA28+'Phase Rock Maker'!$D$29*'Mineral Data Set'!BA29+'Phase Rock Maker'!$D$30*'Mineral Data Set'!BA30+'Phase Rock Maker'!$D$31*'Mineral Data Set'!BA31+'Phase Rock Maker'!$D$32*'Mineral Data Set'!BA32+'Phase Rock Maker'!$D$33*'Mineral Data Set'!BA33+'Phase Rock Maker'!$D$34*'Mineral Data Set'!BA34+'Phase Rock Maker'!$D$35*'Mineral Data Set'!BA35+'Phase Rock Maker'!$D$36*'Mineral Data Set'!BA36+'Phase Rock Maker'!$D$37*'Mineral Data Set'!BA37+'Phase Rock Maker'!$D$38*'Mineral Data Set'!BA38+'Phase Rock Maker'!$D$39*'Mineral Data Set'!BA39+'Phase Rock Maker'!$D$40*'Mineral Data Set'!BA40+'Phase Rock Maker'!$D$41*'Mineral Data Set'!BA41+'Phase Rock Maker'!$D$42*'Mineral Data Set'!BA42+'Phase Rock Maker'!$D$43*'Mineral Data Set'!BA43+'Phase Rock Maker'!$D$44*'Mineral Data Set'!BA44+'Phase Rock Maker'!$D$45*'Mineral Data Set'!BA45+'Phase Rock Maker'!$D$46*'Mineral Data Set'!BA46+'Phase Rock Maker'!$D$47*'Mineral Data Set'!BA47+'Phase Rock Maker'!$D$48*'Mineral Data Set'!BA48+'Phase Rock Maker'!$D$49*'Mineral Data Set'!BA49+'Phase Rock Maker'!$D$50*'Mineral Data Set'!BA50+'Phase Rock Maker'!$D$51*'Mineral Data Set'!BA51+'Phase Rock Maker'!$D$52*'Mineral Data Set'!BA52+'Phase Rock Maker'!$D$53*'Mineral Data Set'!BA53+'Phase Rock Maker'!$D$54*'Mineral Data Set'!BA54+'Phase Rock Maker'!$D$55*'Mineral Data Set'!BA55+'Phase Rock Maker'!$D$56*'Mineral Data Set'!BA56+'Phase Rock Maker'!$D$57*'Mineral Data Set'!BA57+'Phase Rock Maker'!$D$58*'Mineral Data Set'!BA58+'Phase Rock Maker'!$D$59*'Mineral Data Set'!BA59+'Phase Rock Maker'!$D$60*'Mineral Data Set'!BA60+'Phase Rock Maker'!$D$61*'Mineral Data Set'!BA61+'Phase Rock Maker'!$D$62*'Mineral Data Set'!BA62+'Phase Rock Maker'!$D$63*'Mineral Data Set'!BA63+'Phase Rock Maker'!$D$64*'Mineral Data Set'!BA64+'Phase Rock Maker'!$D$65*'Mineral Data Set'!BA65+'Phase Rock Maker'!$D$66*'Mineral Data Set'!BA66+'Phase Rock Maker'!$D$67*'Mineral Data Set'!BA67+'Phase Rock Maker'!$D$68*'Mineral Data Set'!BA68+'Phase Rock Maker'!$D$69*'Mineral Data Set'!BA69+'Phase Rock Maker'!$D$70*'Mineral Data Set'!BA70+'Phase Rock Maker'!$D$71*'Mineral Data Set'!BA71+'Phase Rock Maker'!$D$72*'Mineral Data Set'!BA72+'Phase Rock Maker'!$D$73*'Mineral Data Set'!BA73+'Phase Rock Maker'!$D$74*'Mineral Data Set'!BA74+'Phase Rock Maker'!$D$75*'Mineral Data Set'!BA75+'Phase Rock Maker'!$D$76*'Mineral Data Set'!BA76+'Phase Rock Maker'!$D$77*'Mineral Data Set'!BA77+'Phase Rock Maker'!$D$78*'Mineral Data Set'!BA78+'Phase Rock Maker'!$D$79*'Mineral Data Set'!BA79+'Phase Rock Maker'!$D$80*'Mineral Data Set'!BA80+'Phase Rock Maker'!$D$81*'Mineral Data Set'!BA81+'Phase Rock Maker'!$D$82*'Mineral Data Set'!BA82+'Phase Rock Maker'!$D$83*'Mineral Data Set'!BA83+'Phase Rock Maker'!$D$84*'Mineral Data Set'!BA84+'Phase Rock Maker'!$D$85*'Mineral Data Set'!BA85+'Phase Rock Maker'!$D$86*'Mineral Data Set'!BA86+'Phase Rock Maker'!$D$87*'Mineral Data Set'!BA87+'Phase Rock Maker'!$D$88*'Mineral Data Set'!BA88+'Phase Rock Maker'!$D$89*'Mineral Data Set'!BA89+'Phase Rock Maker'!$D$90*'Mineral Data Set'!BA90+'Phase Rock Maker'!$D$91*'Mineral Data Set'!BA91+'Phase Rock Maker'!$D$92*'Mineral Data Set'!BA92+'Phase Rock Maker'!$D$93*'Mineral Data Set'!BA93+'Phase Rock Maker'!$D$94*'Mineral Data Set'!BA94+'Phase Rock Maker'!$D$95*'Mineral Data Set'!BA95+'Phase Rock Maker'!$D$96*'Mineral Data Set'!BA96+'Phase Rock Maker'!$D$97*'Mineral Data Set'!BA97+'Phase Rock Maker'!$D$98*'Mineral Data Set'!BA98+'Phase Rock Maker'!$D$99*'Mineral Data Set'!BA99+'Phase Rock Maker'!$D$100*'Mineral Data Set'!BA100+'Phase Rock Maker'!$D$101*'Mineral Data Set'!BA101+'Phase Rock Maker'!$D$102*'Mineral Data Set'!BA102+'Phase Rock Maker'!$D$103*'Mineral Data Set'!BA103+'Phase Rock Maker'!$D$104*'Mineral Data Set'!BA104+'Phase Rock Maker'!$D$105*'Mineral Data Set'!BA105+'Phase Rock Maker'!$D$106*'Mineral Data Set'!BA106+'Phase Rock Maker'!$D$107*'Mineral Data Set'!BA107+'Phase Rock Maker'!$D$108*'Mineral Data Set'!BA108 -> 0
A14: ='Mineral Data Set'!A14 -> Annite | B14: ='Mineral Data Set'!B14 -> KFe2+3(Si3Al)O10(OH)2 | C14: 0 | D14: =C14/$I$23*'Mineral Data Set'!C14 -> 0 | E14: =D14/'Mineral Data Set'!AR14 -> 0 | H14: BaO | I14: 0 | Q14: =$D$3*'Mineral Data Set'!BC3+'Phase Rock Maker'!$D$4*'Mineral Data Set'!BC4+'Phase Rock Maker'!$D$5*'Mineral Data Set'!BC5+'Phase Rock Maker'!$D$6*'Mineral Data Set'!BC6+'Phase Rock Maker'!$D$7*'Mineral Data Set'!BC7+'Phase Rock Maker'!$D$8*'Mineral Data Set'!BC8+'Phase Rock Maker'!$D$9*'Mineral Data Set'!BC9+'Phase Rock Maker'!$D$10*'Mineral Data Set'!BC10+'Phase Rock Maker'!$D$11*'Mineral Data Set'!BC11+'Phase Rock Maker'!$D$12*'Mineral Data Set'!BC12+'Phase Rock Maker'!$D$13*'Mineral Data Set'!BC13+'Phase Rock Maker'!$D$14*'Mineral Data Set'!BC14+'Phase Rock Maker'!$D$15*'Mineral Data Set'!BC15+'Phase Rock Maker'!$D$16*'Mineral Data Set'!BC16+'Phase Rock Maker'!$D$17*'Mineral Data Set'!BC17+'Phase Rock Maker'!$D$18*'Mineral Data Set'!BC18+'Phase Rock Maker'!$D$19*'Mineral Data Set'!BC19+'Phase Rock Maker'!$D$20*'Mineral Data Set'!BC20+'Phase Rock Maker'!$D$21*'Mineral Data Set'!BC21+'Phase Rock Maker'!$D$22*'Mineral Data Set'!BC22+'Phase Rock Maker'!$D$23*'Mineral Data Set'!BC23+'Phase Rock Maker'!$D$24*'Mineral Data Set'!BC24+'Phase Rock Maker'!$D$25*'Mineral Data Set'!BC25+'Phase Rock Maker'!$D$26*'Mineral Data Set'!BC26+'Phase Rock Maker'!$D$27*'Mineral Data Set'!BC27+'Phase Rock Maker'!$D$28*'Mineral Data Set'!BC28+'Phase Rock Maker'!$D$29*'Mineral Data Set'!BC29+'Phase Rock Maker'!$D$30*'Mineral Data Set'!BC30+'Phase Rock Maker'!$D$31*'Mineral Data Set'!BC31+'Phase Rock Maker'!$D$32*'Mineral Data Set'!BC32+'Phase Rock Maker'!$D$33*'Mineral Data Set'!BC33+'Phase Rock Maker'!$D$34*'Mineral Data Set'!BC34+'Phase Rock Maker'!$D$35*'Mineral Data Set'!BC35+'Phase Rock Maker'!$D$36*'Mineral Data Set'!BC36+'Phase Rock Maker'!$D$37*'Mineral Data Set'!BC37+'Phase Rock Maker'!$D$38*'Mineral Data Set'!BC38+'Phase Rock Maker'!$D$39*'Mineral Data Set'!BC39+'Phase Rock Maker'!$D$40*'Mineral Data Set'!BC40+'Phase Rock Maker'!$D$41*'Mineral Data Set'!BC41+'Phase Rock Maker'!$D$42*'Mineral Data Set'!BC42+'Phase Rock Maker'!$D$43*'Mineral Data Set'!BC43+'Phase Rock Maker'!$D$44*'Mineral Data Set'!BC44+'Phase Rock Maker'!$D$45*'Mineral Data Set'!BC45+'Phase Rock Maker'!$D$46*'Mineral Data Set'!BC46+'Phase Rock Maker'!$D$47*'Mineral Data Set'!BC47+'Phase Rock Maker'!$D$48*'Mineral Data Set'!BC48+'Phase Rock Maker'!$D$49*'Mineral Data Set'!BC49+'Phase Rock Maker'!$D$50*'Mineral Data Set'!BC50+'Phase Rock Maker'!$D$51*'Mineral Data Set'!BC51+'Phase Rock Maker'!$D$52*'Mineral Data Set'!BC52+'Phase Rock Maker'!$D$53*'Mineral Data Set'!BC53+'Phase Rock Maker'!$D$54*'Mineral Data Set'!BC54+'Phase Rock Maker'!$D$55*'Mineral Data Set'!BC55+'Phase Rock Maker'!$D$56*'Mineral Data Set'!BC56+'Phase Rock Maker'!$D$57*'Mineral Data Set'!BC57+'Phase Rock Maker'!$D$58*'Mineral Data Set'!BC58+'Phase Rock Maker'!$D$59*'Mineral Data Set'!BC59+'Phase Rock Maker'!$D$60*'Mineral Data Set'!BC60+'Phase Rock Maker'!$D$61*'Mineral Data Set'!BC61+'Phase Rock Maker'!$D$62*'Mineral Data Set'!BC62+'Phase Rock Maker'!$D$63*'Mineral Data Set'!BC63+'Phase Rock Maker'!$D$64*'Mineral Data Set'!BC64+'Phase Rock Maker'!$D$65*'Mineral Data Set'!BC65+'Phase Rock Maker'!$D$66*'Mineral Data Set'!BC66+'Phase Rock Maker'!$D$67*'Mineral Data Set'!BC67+'Phase Rock Maker'!$D$68*'Mineral Data Set'!BC68+'Phase Rock Maker'!$D$69*'Mineral Data Set'!BC69+'Phase Rock Maker'!$D$70*'Mineral Data Set'!BC70+'Phase Rock Maker'!$D$71*'Mineral Data Set'!BC71+'Phase Rock Maker'!$D$72*'Mineral Data Set'!BC72+'Phase Rock Maker'!$D$73*'Mineral Data Set'!BC73+'Phase Rock Maker'!$D$74*'Mineral Data Set'!BC74+'Phase Rock Maker'!$D$75*'Mineral Data Set'!BC75+'Phase Rock Maker'!$D$76*'Mineral Data Set'!BC76+'Phase Rock Maker'!$D$77*'Mineral Data Set'!BC77+'Phase Rock Maker'!$D$78*'Mineral Data Set'!BC78+'Phase Rock Maker'!$D$79*'Mineral Data Set'!BC79+'Phase Rock Maker'!$D$80*'Mineral Data Set'!BC80+'Phase Rock Maker'!$D$81*'Mineral Data Set'!BC81+'Phase Rock Maker'!$D$82*'Mineral Data Set'!BC82+'Phase Rock Maker'!$D$83*'Mineral Data Set'!BC83+'Phase Rock Maker'!$D$84*'Mineral Data Set'!BC84+'Phase Rock Maker'!$D$85*'Mineral Data Set'!BC85+'Phase Rock Maker'!$D$86*'Mineral Data Set'!BC86+'Phase Rock Maker'!$D$87*'Mineral Data Set'!BC87+'Phase Rock Maker'!$D$88*'Mineral Data Set'!BC88+'Phase Rock Maker'!$D$89*'Mineral Data Set'!BC89+'Phase Rock Maker'!$D$90*'Mineral Data Set'!BC90+'Phase Rock Maker'!$D$91*'Mineral Data Set'!BC91+'Phase Rock Maker'!$D$92*'Mineral Data Set'!BC92+'Phase Rock Maker'!$D$93*'Mineral Data Set'!BC93+'Phase Rock Maker'!$D$94*'Mineral Data Set'!BC94+'Phase Rock Maker'!$D$95*'Mineral Data Set'!BC95+'Phase Rock Maker'!$D$96*'Mineral Data Set'!BC96+'Phase Rock Maker'!$D$97*'Mineral Data Set'!BC97+'Phase Rock Maker'!$D$98*'Mineral Data Set'!BC98+'Phase Rock Maker'!$D$99*'Mineral Data Set'!BC99+'Phase Rock Maker'!$D$100*'Mineral Data Set'!BC100+'Phase Rock Maker'!$D$101*'Mineral Data Set'!BC101+'Phase Rock Maker'!$D$102*'Mineral Data Set'!BC102+'Phase Rock Maker'!$D$103*'Mineral Data Set'!BC103+'Phase Rock Maker'!$D$104*'Mineral Data Set'!BC104+'Phase Rock Maker'!$D$105*'Mineral Data Set'!BC105+'Phase Rock Maker'!$D$106*'Mineral Data Set'!BC106+'Phase Rock Maker'!$D$107*'Mineral Data Set'!BC107+'Phase Rock Maker'!$D$108*'Mineral Data Set'!BC108 -> 0
A15: ='Mineral Data Set'!A15 -> Phlogopite | B15: ='Mineral Data Set'!B15 -> KMg2+3(Si3Al)O10(OH)2 | C15: 0 | D15: =C15/$I$23*'Mineral Data Set'!C15 -> 0 | E15: =D15/'Mineral Data Set'!AR15 -> 0 | H15: H2O | I15: 0 | Q15: =$D$3*'Mineral Data Set'!BH3+'Phase Rock Maker'!$D$4*'Mineral Data Set'!BH4+'Phase Rock Maker'!$D$5*'Mineral Data Set'!BH5+'Phase Rock Maker'!$D$6*'Mineral Data Set'!BH6+'Phase Rock Maker'!$D$7*'Mineral Data Set'!BH7+'Phase Rock Maker'!$D$8*'Mineral Data Set'!BH8+'Phase Rock Maker'!$D$9*'Mineral Data Set'!BH9+'Phase Rock Maker'!$D$10*'Mineral Data Set'!BH10+'Phase Rock Maker'!$D$11*'Mineral Data Set'!BH11+'Phase Rock Maker'!$D$12*'Mineral Data Set'!BH12+'Phase Rock Maker'!$D$13*'Mineral Data Set'!BH13+'Phase Rock Maker'!$D$14*'Mineral Data Set'!BH14+'Phase Rock Maker'!$D$15*'Mineral Data Set'!BH15+'Phase Rock Maker'!$D$16*'Mineral Data Set'!BH16+'Phase Rock Maker'!$D$17*'Mineral Data Set'!BH17+'Phase Rock Maker'!$D$18*'Mineral Data Set'!BH18+'Phase Rock Maker'!$D$19*'Mineral Data Set'!BH19+'Phase Rock Maker'!$D$20*'Mineral Data Set'!BH20+'Phase Rock Maker'!$D$21*'Mineral Data Set'!BH21+'Phase Rock Maker'!$D$22*'Mineral Data Set'!BH22+'Phase Rock Maker'!$D$23*'Mineral Data Set'!BH23+'Phase Rock Maker'!$D$24*'Mineral Data Set'!BH24+'Phase Rock Maker'!$D$25*'Mineral Data Set'!BH25+'Phase Rock Maker'!$D$26*'Mineral Data Set'!BH26+'Phase Rock Maker'!$D$27*'Mineral Data Set'!BH27+'Phase Rock Maker'!$D$28*'Mineral Data Set'!BH28+'Phase Rock Maker'!$D$29*'Mineral Data Set'!BH29+'Phase Rock Maker'!$D$30*'Mineral Data Set'!BH30+'Phase Rock Maker'!$D$31*'Mineral Data Set'!BH31+'Phase Rock Maker'!$D$32*'Mineral Data Set'!BH32+'Phase Rock Maker'!$D$33*'Mineral Data Set'!BH33+'Phase Rock Maker'!$D$34*'Mineral Data Set'!BH34+'Phase Rock Maker'!$D$35*'Mineral Data Set'!BH35+'Phase Rock Maker'!$D$36*'Mineral Data Set'!BH36+'Phase Rock Maker'!$D$37*'Mineral Data Set'!BH37+'Phase Rock Maker'!$D$38*'Mineral Data Set'!BH38+'Phase Rock Maker'!$D$39*'Mineral Data Set'!BH39+'Phase Rock Maker'!$D$40*'Mineral Data Set'!BH40+'Phase Rock Maker'!$D$41*'Mineral Data Set'!BH41+'Phase Rock Maker'!$D$42*'Mineral Data Set'!BH42+'Phase Rock Maker'!$D$43*'Mineral Data Set'!BH43+'Phase Rock Maker'!$D$44*'Mineral Data Set'!BH44+'Phase Rock Maker'!$D$45*'Mineral Data Set'!BH45+'Phase Rock Maker'!$D$46*'Mineral Data Set'!BH46+'Phase Rock Maker'!$D$47*'Mineral Data Set'!BH47+'Phase Rock Maker'!$D$48*'Mineral Data Set'!BH48+'Phase Rock Maker'!$D$49*'Mineral Data Set'!BH49+'Phase Rock Maker'!$D$50*'Mineral Data Set'!BH50+'Phase Rock Maker'!$D$51*'Mineral Data Set'!BH51+'Phase Rock Maker'!$D$52*'Mineral Data Set'!BH52+'Phase Rock Maker'!$D$53*'Mineral Data Set'!BH53+'Phase Rock Maker'!$D$54*'Mineral Data Set'!BH54+'Phase Rock Maker'!$D$55*'Mineral Data Set'!BH55+'Phase Rock Maker'!$D$56*'Mineral Data Set'!BH56+'Phase Rock Maker'!$D$57*'Mineral Data Set'!BH57+'Phase Rock Maker'!$D$58*'Mineral Data Set'!BH58+'Phase Rock Maker'!$D$59*'Mineral Data Set'!BH59+'Phase Rock Maker'!$D$60*'Mineral Data Set'!BH60+'Phase Rock Maker'!$D$61*'Mineral Data Set'!BH61+'Phase Rock Maker'!$D$62*'Mineral Data Set'!BH62+'Phase Rock Maker'!$D$63*'Mineral Data Set'!BH63+'Phase Rock Maker'!$D$64*'Mineral Data Set'!BH64+'Phase Rock Maker'!$D$65*'Mineral Data Set'!BH65+'Phase Rock Maker'!$D$66*'Mineral Data Set'!BH66+'Phase Rock Maker'!$D$67*'Mineral Data Set'!BH67+'Phase Rock Maker'!$D$68*'Mineral Data Set'!BH68+'Phase Rock Maker'!$D$69*'Mineral Data Set'!BH69+'Phase Rock Maker'!$D$70*'Mineral Data Set'!BH70+'Phase Rock Maker'!$D$71*'Mineral Data Set'!BH71+'Phase Rock Maker'!$D$72*'Mineral Data Set'!BH72+'Phase Rock Maker'!$D$73*'Mineral Data Set'!BH73+'Phase Rock Maker'!$D$74*'Mineral Data Set'!BH74+'Phase Rock Maker'!$D$75*'Mineral Data Set'!BH75+'Phase Rock Maker'!$D$76*'Mineral Data Set'!BH76+'Phase Rock Maker'!$D$77*'Mineral Data Set'!BH77+'Phase Rock Maker'!$D$78*'Mineral Data Set'!BH78+'Phase Rock Maker'!$D$79*'Mineral Data Set'!BH79+'Phase Rock Maker'!$D$80*'Mineral Data Set'!BH80+'Phase Rock Maker'!$D$81*'Mineral Data Set'!BH81+'Phase Rock Maker'!$D$82*'Mineral Data Set'!BH82+'Phase Rock Maker'!$D$83*'Mineral Data Set'!BH83+'Phase Rock Maker'!$D$84*'Mineral Data Set'!BH84+'Phase Rock Maker'!$D$85*'Mineral Data Set'!BH85+'Phase Rock Maker'!$D$86*'Mineral Data Set'!BH86+'Phase Rock Maker'!$D$87*'Mineral Data Set'!BH87+'Phase Rock Maker'!$D$88*'Mineral Data Set'!BH88+'Phase Rock Maker'!$D$89*'Mineral Data Set'!BH89+'Phase Rock Maker'!$D$90*'Mineral Data Set'!BH90+'Phase Rock Maker'!$D$91*'Mineral Data Set'!BH91+'Phase Rock Maker'!$D$92*'Mineral Data Set'!BH92+'Phase Rock Maker'!$D$93*'Mineral Data Set'!BH93+'Phase Rock Maker'!$D$94*'Mineral Data Set'!BH94+'Phase Rock Maker'!$D$95*'Mineral Data Set'!BH95+'Phase Rock Maker'!$D$96*'Mineral Data Set'!BH96+'Phase Rock Maker'!$D$97*'Mineral Data Set'!BH97+'Phase Rock Maker'!$D$98*'Mineral Data Set'!BH98+'Phase Rock Maker'!$D$99*'Mineral Data Set'!BH99+'Phase Rock Maker'!$D$100*'Mineral Data Set'!BH100+'Phase Rock Maker'!$D$101*'Mineral Data Set'!BH101+'Phase Rock Maker'!$D$102*'Mineral Data Set'!BH102+'Phase Rock Maker'!$D$103*'Mineral Data Set'!BH103+'Phase Rock Maker'!$D$104*'Mineral Data Set'!BH104+'Phase Rock Maker'!$D$105*'Mineral Data Set'!BH105+'Phase Rock Maker'!$D$106*'Mineral Data Set'!BH106+'Phase Rock Maker'!$D$107*'Mineral Data Set'!BH107+'Phase Rock Maker'!$D$108*'Mineral Data Set'!BH108 -> 0
A16: ='Mineral Data Set'!A16 -> Ann70Phl30 | B16: ='Mineral Data Set'!B16 -> KMg0.9Fe2+2.1(Si3Al)O10(OH)2 | C16: 0 | D16: =C16/$I$23*'Mineral Data Set'!C16 -> 0 | E16: =D16/'Mineral Data Set'!AR16 -> 0 | H16: CO2 | I16: 0 | Q16: =$D$3*'Mineral Data Set'!BI3+'Phase Rock Maker'!$D$4*'Mineral Data Set'!BI4+'Phase Rock Maker'!$D$5*'Mineral Data Set'!BI5+'Phase Rock Maker'!$D$6*'Mineral Data Set'!BI6+'Phase Rock Maker'!$D$7*'Mineral Data Set'!BI7+'Phase Rock Maker'!$D$8*'Mineral Data Set'!BI8+'Phase Rock Maker'!$D$9*'Mineral Data Set'!BI9+'Phase Rock Maker'!$D$10*'Mineral Data Set'!BI10+'Phase Rock Maker'!$D$11*'Mineral Data Set'!BI11+'Phase Rock Maker'!$D$12*'Mineral Data Set'!BI12+'Phase Rock Maker'!$D$13*'Mineral Data Set'!BI13+'Phase Rock Maker'!$D$14*'Mineral Data Set'!BI14+'Phase Rock Maker'!$D$15*'Mineral Data Set'!BI15+'Phase Rock Maker'!$D$16*'Mineral Data Set'!BI16+'Phase Rock Maker'!$D$17*'Mineral Data Set'!BI17+'Phase Rock Maker'!$D$18*'Mineral Data Set'!BI18+'Phase Rock Maker'!$D$19*'Mineral Data Set'!BI19+'Phase Rock Maker'!$D$20*'Mineral Data Set'!BI20+'Phase Rock Maker'!$D$21*'Mineral Data Set'!BI21+'Phase Rock Maker'!$D$22*'Mineral Data Set'!BI22+'Phase Rock Maker'!$D$23*'Mineral Data Set'!BI23+'Phase Rock Maker'!$D$24*'Mineral Data Set'!BI24+'Phase Rock Maker'!$D$25*'Mineral Data Set'!BI25+'Phase Rock Maker'!$D$26*'Mineral Data Set'!BI26+'Phase Rock Maker'!$D$27*'Mineral Data Set'!BI27+'Phase Rock Maker'!$D$28*'Mineral Data Set'!BI28+'Phase Rock Maker'!$D$29*'Mineral Data Set'!BI29+'Phase Rock Maker'!$D$30*'Mineral Data Set'!BI30+'Phase Rock Maker'!$D$31*'Mineral Data Set'!BI31+'Phase Rock Maker'!$D$32*'Mineral Data Set'!BI32+'Phase Rock Maker'!$D$33*'Mineral Data Set'!BI33+'Phase Rock Maker'!$D$34*'Mineral Data Set'!BI34+'Phase Rock Maker'!$D$35*'Mineral Data Set'!BI35+'Phase Rock Maker'!$D$36*'Mineral Data Set'!BI36+'Phase Rock Maker'!$D$37*'Mineral Data Set'!BI37+'Phase Rock Maker'!$D$38*'Mineral Data Set'!BI38+'Phase Rock Maker'!$D$39*'Mineral Data Set'!BI39+'Phase Rock Maker'!$D$40*'Mineral Data Set'!BI40+'Phase Rock Maker'!$D$41*'Mineral Data Set'!BI41+'Phase Rock Maker'!$D$42*'Mineral Data Set'!BI42+'Phase Rock Maker'!$D$43*'Mineral Data Set'!BI43+'Phase Rock Maker'!$D$44*'Mineral Data Set'!BI44+'Phase Rock Maker'!$D$45*'Mineral Data Set'!BI45+'Phase Rock Maker'!$D$46*'Mineral Data Set'!BI46+'Phase Rock Maker'!$D$47*'Mineral Data Set'!BI47+'Phase Rock Maker'!$D$48*'Mineral Data Set'!BI48+'Phase Rock Maker'!$D$49*'Mineral Data Set'!BI49+'Phase Rock Maker'!$D$50*'Mineral Data Set'!BI50+'Phase Rock Maker'!$D$51*'Mineral Data Set'!BI51+'Phase Rock Maker'!$D$52*'Mineral Data Set'!BI52+'Phase Rock Maker'!$D$53*'Mineral Data Set'!BI53+'Phase Rock Maker'!$D$54*'Mineral Data Set'!BI54+'Phase Rock Maker'!$D$55*'Mineral Data Set'!BI55+'Phase Rock Maker'!$D$56*'Mineral Data Set'!BI56+'Phase Rock Maker'!$D$57*'Mineral Data Set'!BI57+'Phase Rock Maker'!$D$58*'Mineral Data Set'!BI58+'Phase Rock Maker'!$D$59*'Mineral Data Set'!BI59+'Phase Rock Maker'!$D$60*'Mineral Data Set'!BI60+'Phase Rock Maker'!$D$61*'Mineral Data Set'!BI61+'Phase Rock Maker'!$D$62*'Mineral Data Set'!BI62+'Phase Rock Maker'!$D$63*'Mineral Data Set'!BI63+'Phase Rock Maker'!$D$64*'Mineral Data Set'!BI64+'Phase Rock Maker'!$D$65*'Mineral Data Set'!BI65+'Phase Rock Maker'!$D$66*'Mineral Data Set'!BI66+'Phase Rock Maker'!$D$67*'Mineral Data Set'!BI67+'Phase Rock Maker'!$D$68*'Mineral Data Set'!BI68+'Phase Rock Maker'!$D$69*'Mineral Data Set'!BI69+'Phase Rock Maker'!$D$70*'Mineral Data Set'!BI70+'Phase Rock Maker'!$D$71*'Mineral Data Set'!BI71+'Phase Rock Maker'!$D$72*'Mineral Data Set'!BI72+'Phase Rock Maker'!$D$73*'Mineral Data Set'!BI73+'Phase Rock Maker'!$D$74*'Mineral Data Set'!BI74+'Phase Rock Maker'!$D$75*'Mineral Data Set'!BI75+'Phase Rock Maker'!$D$76*'Mineral Data Set'!BI76+'Phase Rock Maker'!$D$77*'Mineral Data Set'!BI77+'Phase Rock Maker'!$D$78*'Mineral Data Set'!BI78+'Phase Rock Maker'!$D$79*'Mineral Data Set'!BI79+'Phase Rock Maker'!$D$80*'Mineral Data Set'!BI80+'Phase Rock Maker'!$D$81*'Mineral Data Set'!BI81+'Phase Rock Maker'!$D$82*'Mineral Data Set'!BI82+'Phase Rock Maker'!$D$83*'Mineral Data Set'!BI83+'Phase Rock Maker'!$D$84*'Mineral Data Set'!BI84+'Phase Rock Maker'!$D$85*'Mineral Data Set'!BI85+'Phase Rock Maker'!$D$86*'Mineral Data Set'!BI86+'Phase Rock Maker'!$D$87*'Mineral Data Set'!BI87+'Phase Rock Maker'!$D$88*'Mineral Data Set'!BI88+'Phase Rock Maker'!$D$89*'Mineral Data Set'!BI89+'Phase Rock Maker'!$D$90*'Mineral Data Set'!BI90+'Phase Rock Maker'!$D$91*'Mineral Data Set'!BI91+'Phase Rock Maker'!$D$92*'Mineral Data Set'!BI92+'Phase Rock Maker'!$D$93*'Mineral Data Set'!BI93+'Phase Rock Maker'!$D$94*'Mineral Data Set'!BI94+'Phase Rock Maker'!$D$95*'Mineral Data Set'!BI95+'Phase Rock Maker'!$D$96*'Mineral Data Set'!BI96+'Phase Rock Maker'!$D$97*'Mineral Data Set'!BI97+'Phase Rock Maker'!$D$98*'Mineral Data Set'!BI98+'Phase Rock Maker'!$D$99*'Mineral Data Set'!BI99+'Phase Rock Maker'!$D$100*'Mineral Data Set'!BI100+'Phase Rock Maker'!$D$101*'Mineral Data Set'!BI101+'Phase Rock Maker'!$D$102*'Mineral Data Set'!BI102+'Phase Rock Maker'!$D$103*'Mineral Data Set'!BI103+'Phase Rock Maker'!$D$104*'Mineral Data Set'!BI104+'Phase Rock Maker'!$D$105*'Mineral Data Set'!BI105+'Phase Rock Maker'!$D$106*'Mineral Data Set'!BI106+'Phase Rock Maker'!$D$107*'Mineral Data Set'!BI107+'Phase Rock Maker'!$D$108*'Mineral Data Set'!BI108 -> 0
A17: ='Mineral Data Set'!A17 -> Ann50Phl50 | B17: ='Mineral Data Set'!B17 -> KMg1.5Fe2+1.5(Si3Al)O10(OH)2 | C17: 0 | D17: =C17/$I$23*'Mineral Data Set'!C17 -> 0 | E17: =D17/'Mineral Data Set'!AR17 -> 0 | H17: SO3 | I17: 0 | Q17: =$D$3*'Mineral Data Set'!BF3+'Phase Rock Maker'!$D$4*'Mineral Data Set'!BF4+'Phase Rock Maker'!$D$5*'Mineral Data Set'!BF5+'Phase Rock Maker'!$D$6*'Mineral Data Set'!BF6+'Phase Rock Maker'!$D$7*'Mineral Data Set'!BF7+'Phase Rock Maker'!$D$8*'Mineral Data Set'!BF8+'Phase Rock Maker'!$D$9*'Mineral Data Set'!BF9+'Phase Rock Maker'!$D$10*'Mineral Data Set'!BF10+'Phase Rock Maker'!$D$11*'Mineral Data Set'!BF11+'Phase Rock Maker'!$D$12*'Mineral Data Set'!BF12+'Phase Rock Maker'!$D$13*'Mineral Data Set'!BF13+'Phase Rock Maker'!$D$14*'Mineral Data Set'!BF14+'Phase Rock Maker'!$D$15*'Mineral Data Set'!BF15+'Phase Rock Maker'!$D$16*'Mineral Data Set'!BF16+'Phase Rock Maker'!$D$17*'Mineral Data Set'!BF17+'Phase Rock Maker'!$D$18*'Mineral Data Set'!BF18+'Phase Rock Maker'!$D$19*'Mineral Data Set'!BF19+'Phase Rock Maker'!$D$20*'Mineral Data Set'!BF20+'Phase Rock Maker'!$D$21*'Mineral Data Set'!BF21+'Phase Rock Maker'!$D$22*'Mineral Data Set'!BF22+'Phase Rock Maker'!$D$23*'Mineral Data Set'!BF23+'Phase Rock Maker'!$D$24*'Mineral Data Set'!BF24+'Phase Rock Maker'!$D$25*'Mineral Data Set'!BF25+'Phase Rock Maker'!$D$26*'Mineral Data Set'!BF26+'Phase Rock Maker'!$D$27*'Mineral Data Set'!BF27+'Phase Rock Maker'!$D$28*'Mineral Data Set'!BF28+'Phase Rock Maker'!$D$29*'Mineral Data Set'!BF29+'Phase Rock Maker'!$D$30*'Mineral Data Set'!BF30+'Phase Rock Maker'!$D$31*'Mineral Data Set'!BF31+'Phase Rock Maker'!$D$32*'Mineral Data Set'!BF32+'Phase Rock Maker'!$D$33*'Mineral Data Set'!BF33+'Phase Rock Maker'!$D$34*'Mineral Data Set'!BF34+'Phase Rock Maker'!$D$35*'Mineral Data Set'!BF35+'Phase Rock Maker'!$D$36*'Mineral Data Set'!BF36+'Phase Rock Maker'!$D$37*'Mineral Data Set'!BF37+'Phase Rock Maker'!$D$38*'Mineral Data Set'!BF38+'Phase Rock Maker'!$D$39*'Mineral Data Set'!BF39+'Phase Rock Maker'!$D$40*'Mineral Data Set'!BF40+'Phase Rock Maker'!$D$41*'Mineral Data Set'!BF41+'Phase Rock Maker'!$D$42*'Mineral Data Set'!BF42+'Phase Rock Maker'!$D$43*'Mineral Data Set'!BF43+'Phase Rock Maker'!$D$44*'Mineral Data Set'!BF44+'Phase Rock Maker'!$D$45*'Mineral Data Set'!BF45+'Phase Rock Maker'!$D$46*'Mineral Data Set'!BF46+'Phase Rock Maker'!$D$47*'Mineral Data Set'!BF47+'Phase Rock Maker'!$D$48*'Mineral Data Set'!BF48+'Phase Rock Maker'!$D$49*'Mineral Data Set'!BF49+'Phase Rock Maker'!$D$50*'Mineral Data Set'!BF50+'Phase Rock Maker'!$D$51*'Mineral Data Set'!BF51+'Phase Rock Maker'!$D$52*'Mineral Data Set'!BF52+'Phase Rock Maker'!$D$53*'Mineral Data Set'!BF53+'Phase Rock Maker'!$D$54*'Mineral Data Set'!BF54+'Phase Rock Maker'!$D$55*'Mineral Data Set'!BF55+'Phase Rock Maker'!$D$56*'Mineral Data Set'!BF56+'Phase Rock Maker'!$D$57*'Mineral Data Set'!BF57+'Phase Rock Maker'!$D$58*'Mineral Data Set'!BF58+'Phase Rock Maker'!$D$59*'Mineral Data Set'!BF59+'Phase Rock Maker'!$D$60*'Mineral Data Set'!BF60+'Phase Rock Maker'!$D$61*'Mineral Data Set'!BF61+'Phase Rock Maker'!$D$62*'Mineral Data Set'!BF62+'Phase Rock Maker'!$D$63*'Mineral Data Set'!BF63+'Phase Rock Maker'!$D$64*'Mineral Data Set'!BF64+'Phase Rock Maker'!$D$65*'Mineral Data Set'!BF65+'Phase Rock Maker'!$D$66*'Mineral Data Set'!BF66+'Phase Rock Maker'!$D$67*'Mineral Data Set'!BF67+'Phase Rock Maker'!$D$68*'Mineral Data Set'!BF68+'Phase Rock Maker'!$D$69*'Mineral Data Set'!BF69+'Phase Rock Maker'!$D$70*'Mineral Data Set'!BF70+'Phase Rock Maker'!$D$71*'Mineral Data Set'!BF71+'Phase Rock Maker'!$D$72*'Mineral Data Set'!BF72+'Phase Rock Maker'!$D$73*'Mineral Data Set'!BF73+'Phase Rock Maker'!$D$74*'Mineral Data Set'!BF74+'Phase Rock Maker'!$D$75*'Mineral Data Set'!BF75+'Phase Rock Maker'!$D$76*'Mineral Data Set'!BF76+'Phase Rock Maker'!$D$77*'Mineral Data Set'!BF77+'Phase Rock Maker'!$D$78*'Mineral Data Set'!BF78+'Phase Rock Maker'!$D$79*'Mineral Data Set'!BF79+'Phase Rock Maker'!$D$80*'Mineral Data Set'!BF80+'Phase Rock Maker'!$D$81*'Mineral Data Set'!BF81+'Phase Rock Maker'!$D$82*'Mineral Data Set'!BF82+'Phase Rock Maker'!$D$83*'Mineral Data Set'!BF83+'Phase Rock Maker'!$D$84*'Mineral Data Set'!BF84+'Phase Rock Maker'!$D$85*'Mineral Data Set'!BF85+'Phase Rock Maker'!$D$86*'Mineral Data Set'!BF86+'Phase Rock Maker'!$D$87*'Mineral Data Set'!BF87+'Phase Rock Maker'!$D$88*'Mineral Data Set'!BF88+'Phase Rock Maker'!$D$89*'Mineral Data Set'!BF89+'Phase Rock Maker'!$D$90*'Mineral Data Set'!BF90+'Phase Rock Maker'!$D$91*'Mineral Data Set'!BF91+'Phase Rock Maker'!$D$92*'Mineral Data Set'!BF92+'Phase Rock Maker'!$D$93*'Mineral Data Set'!BF93+'Phase Rock Maker'!$D$94*'Mineral Data Set'!BF94+'Phase Rock Maker'!$D$95*'Mineral Data Set'!BF95+'Phase Rock Maker'!$D$96*'Mineral Data Set'!BF96+'Phase Rock Maker'!$D$97*'Mineral Data Set'!BF97+'Phase Rock Maker'!$D$98*'Mineral Data Set'!BF98+'Phase Rock Maker'!$D$99*'Mineral Data Set'!BF99+'Phase Rock Maker'!$D$100*'Mineral Data Set'!BF100+'Phase Rock Maker'!$D$101*'Mineral Data Set'!BF101+'Phase Rock Maker'!$D$102*'Mineral Data Set'!BF102+'Phase Rock Maker'!$D$103*'Mineral Data Set'!BF103+'Phase Rock Maker'!$D$104*'Mineral Data Set'!BF104+'Phase Rock Maker'!$D$105*'Mineral Data Set'!BF105+'Phase Rock Maker'!$D$106*'Mineral Data Set'!BF106+'Phase Rock Maker'!$D$107*'Mineral Data Set'!BF107+'Phase Rock Maker'!$D$108*'Mineral Data Set'!BF108 -> 0
A18: ='Mineral Data Set'!A18 -> Ann30Phl70 | B18: ='Mineral Data Set'!B18 -> KMg2.1Fe2+0.9(Si3Al)O10(OH)2 | C18: 0 | D18: =C18/$I$23*'Mineral Data Set'!C18 -> 0 | E18: =D18/'Mineral Data Set'!AR18 -> 0 | H18: O2 | I18: 0 | Q18: =$D$3*'Mineral Data Set'!BG3+'Phase Rock Maker'!$D$4*'Mineral Data Set'!BG4+'Phase Rock Maker'!$D$5*'Mineral Data Set'!BG5+'Phase Rock Maker'!$D$6*'Mineral Data Set'!BG6+'Phase Rock Maker'!$D$7*'Mineral Data Set'!BG7+'Phase Rock Maker'!$D$8*'Mineral Data Set'!BG8+'Phase Rock Maker'!$D$9*'Mineral Data Set'!BG9+'Phase Rock Maker'!$D$10*'Mineral Data Set'!BG10+'Phase Rock Maker'!$D$11*'Mineral Data Set'!BG11+'Phase Rock Maker'!$D$12*'Mineral Data Set'!BG12+'Phase Rock Maker'!$D$13*'Mineral Data Set'!BG13+'Phase Rock Maker'!$D$14*'Mineral Data Set'!BG14+'Phase Rock Maker'!$D$15*'Mineral Data Set'!BG15+'Phase Rock Maker'!$D$16*'Mineral Data Set'!BG16+'Phase Rock Maker'!$D$17*'Mineral Data Set'!BG17+'Phase Rock Maker'!$D$18*'Mineral Data Set'!BG18+'Phase Rock Maker'!$D$19*'Mineral Data Set'!BG19+'Phase Rock Maker'!$D$20*'Mineral Data Set'!BG20+'Phase Rock Maker'!$D$21*'Mineral Data Set'!BG21+'Phase Rock Maker'!$D$22*'Mineral Data Set'!BG22+'Phase Rock Maker'!$D$23*'Mineral Data Set'!BG23+'Phase Rock Maker'!$D$24*'Mineral Data Set'!BG24+'Phase Rock Maker'!$D$25*'Mineral Data Set'!BG25+'Phase Rock Maker'!$D$26*'Mineral Data Set'!BG26+'Phase Rock Maker'!$D$27*'Mineral Data Set'!BG27+'Phase Rock Maker'!$D$28*'Mineral Data Set'!BG28+'Phase Rock Maker'!$D$29*'Mineral Data Set'!BG29+'Phase Rock Maker'!$D$30*'Mineral Data Set'!BG30+'Phase Rock Maker'!$D$31*'Mineral Data Set'!BG31+'Phase Rock Maker'!$D$32*'Mineral Data Set'!BG32+'Phase Rock Maker'!$D$33*'Mineral Data Set'!BG33+'Phase Rock Maker'!$D$34*'Mineral Data Set'!BG34+'Phase Rock Maker'!$D$35*'Mineral Data Set'!BG35+'Phase Rock Maker'!$D$36*'Mineral Data Set'!BG36+'Phase Rock Maker'!$D$37*'Mineral Data Set'!BG37+'Phase Rock Maker'!$D$38*'Mineral Data Set'!BG38+'Phase Rock Maker'!$D$39*'Mineral Data Set'!BG39+'Phase Rock Maker'!$D$40*'Mineral Data Set'!BG40+'Phase Rock Maker'!$D$41*'Mineral Data Set'!BG41+'Phase Rock Maker'!$D$42*'Mineral Data Set'!BG42+'Phase Rock Maker'!$D$43*'Mineral Data Set'!BG43+'Phase Rock Maker'!$D$44*'Mineral Data Set'!BG44+'Phase Rock Maker'!$D$45*'Mineral Data Set'!BG45+'Phase Rock Maker'!$D$46*'Mineral Data Set'!BG46+'Phase Rock Maker'!$D$47*'Mineral Data Set'!BG47+'Phase Rock Maker'!$D$48*'Mineral Data Set'!BG48+'Phase Rock Maker'!$D$49*'Mineral Data Set'!BG49+'Phase Rock Maker'!$D$50*'Mineral Data Set'!BG50+'Phase Rock Maker'!$D$51*'Mineral Data Set'!BG51+'Phase Rock Maker'!$D$52*'Mineral Data Set'!BG52+'Phase Rock Maker'!$D$53*'Mineral Data Set'!BG53+'Phase Rock Maker'!$D$54*'Mineral Data Set'!BG54+'Phase Rock Maker'!$D$55*'Mineral Data Set'!BG55+'Phase Rock Maker'!$D$56*'Mineral Data Set'!BG56+'Phase Rock Maker'!$D$57*'Mineral Data Set'!BG57+'Phase Rock Maker'!$D$58*'Mineral Data Set'!BG58+'Phase Rock Maker'!$D$59*'Mineral Data Set'!BG59+'Phase Rock Maker'!$D$60*'Mineral Data Set'!BG60+'Phase Rock Maker'!$D$61*'Mineral Data Set'!BG61+'Phase Rock Maker'!$D$62*'Mineral Data Set'!BG62+'Phase Rock Maker'!$D$63*'Mineral Data Set'!BG63+'Phase Rock Maker'!$D$64*'Mineral Data Set'!BG64+'Phase Rock Maker'!$D$65*'Mineral Data Set'!BG65+'Phase Rock Maker'!$D$66*'Mineral Data Set'!BG66+'Phase Rock Maker'!$D$67*'Mineral Data Set'!BG67+'Phase Rock Maker'!$D$68*'Mineral Data Set'!BG68+'Phase Rock Maker'!$D$69*'Mineral Data Set'!BG69+'Phase Rock Maker'!$D$70*'Mineral Data Set'!BG70+'Phase Rock Maker'!$D$71*'Mineral Data Set'!BG71+'Phase Rock Maker'!$D$72*'Mineral Data Set'!BG72+'Phase Rock Maker'!$D$73*'Mineral Data Set'!BG73+'Phase Rock Maker'!$D$74*'Mineral Data Set'!BG74+'Phase Rock Maker'!$D$75*'Mineral Data Set'!BG75+'Phase Rock Maker'!$D$76*'Mineral Data Set'!BG76+'Phase Rock Maker'!$D$77*'Mineral Data Set'!BG77+'Phase Rock Maker'!$D$78*'Mineral Data Set'!BG78+'Phase Rock Maker'!$D$79*'Mineral Data Set'!BG79+'Phase Rock Maker'!$D$80*'Mineral Data Set'!BG80+'Phase Rock Maker'!$D$81*'Mineral Data Set'!BG81+'Phase Rock Maker'!$D$82*'Mineral Data Set'!BG82+'Phase Rock Maker'!$D$83*'Mineral Data Set'!BG83+'Phase Rock Maker'!$D$84*'Mineral Data Set'!BG84+'Phase Rock Maker'!$D$85*'Mineral Data Set'!BG85+'Phase Rock Maker'!$D$86*'Mineral Data Set'!BG86+'Phase Rock Maker'!$D$87*'Mineral Data Set'!BG87+'Phase Rock Maker'!$D$88*'Mineral Data Set'!BG88+'Phase Rock Maker'!$D$89*'Mineral Data Set'!BG89+'Phase Rock Maker'!$D$90*'Mineral Data Set'!BG90+'Phase Rock Maker'!$D$91*'Mineral Data Set'!BG91+'Phase Rock Maker'!$D$92*'Mineral Data Set'!BG92+'Phase Rock Maker'!$D$93*'Mineral Data Set'!BG93+'Phase Rock Maker'!$D$94*'Mineral Data Set'!BG94+'Phase Rock Maker'!$D$95*'Mineral Data Set'!BG95+'Phase Rock Maker'!$D$96*'Mineral Data Set'!BG96+'Phase Rock Maker'!$D$97*'Mineral Data Set'!BG97+'Phase Rock Maker'!$D$98*'Mineral Data Set'!BG98+'Phase Rock Maker'!$D$99*'Mineral Data Set'!BG99+'Phase Rock Maker'!$D$100*'Mineral Data Set'!BG100+'Phase Rock Maker'!$D$101*'Mineral Data Set'!BG101+'Phase Rock Maker'!$D$102*'Mineral Data Set'!BG102+'Phase Rock Maker'!$D$103*'Mineral Data Set'!BG103+'Phase Rock Maker'!$D$104*'Mineral Data Set'!BG104+'Phase Rock Maker'!$D$105*'Mineral Data Set'!BG105+'Phase Rock Maker'!$D$106*'Mineral Data Set'!BG106+'Phase Rock Maker'!$D$107*'Mineral Data Set'!BG107+'Phase Rock Maker'!$D$108*'Mineral Data Set'!BG108 -> 0
A19: ='Mineral Data Set'!A19 -> Muscovite | B19: ='Mineral Data Set'!B19 -> K(Si3Al3)O10(OH)2 | C19: 0 | D19: =C19/$I$23*'Mineral Data Set'!C19 -> 0 | E19: =D19/'Mineral Data Set'!AR19 -> 0 | H19: LiO2 | I19: 0 | Q19: =$D$3*'Mineral Data Set'!BJ3+'Phase Rock Maker'!$D$4*'Mineral Data Set'!BJ4+'Phase Rock Maker'!$D$5*'Mineral Data Set'!BJ5+'Phase Rock Maker'!$D$6*'Mineral Data Set'!BJ6+'Phase Rock Maker'!$D$7*'Mineral Data Set'!BJ7+'Phase Rock Maker'!$D$8*'Mineral Data Set'!BJ8+'Phase Rock Maker'!$D$9*'Mineral Data Set'!BJ9+'Phase Rock Maker'!$D$10*'Mineral Data Set'!BJ10+'Phase Rock Maker'!$D$11*'Mineral Data Set'!BJ11+'Phase Rock Maker'!$D$12*'Mineral Data Set'!BJ12+'Phase Rock Maker'!$D$13*'Mineral Data Set'!BJ13+'Phase Rock Maker'!$D$14*'Mineral Data Set'!BJ14+'Phase Rock Maker'!$D$15*'Mineral Data Set'!BJ15+'Phase Rock Maker'!$D$16*'Mineral Data Set'!BJ16+'Phase Rock Maker'!$D$17*'Mineral Data Set'!BJ17+'Phase Rock Maker'!$D$18*'Mineral Data Set'!BJ18+'Phase Rock Maker'!$D$19*'Mineral Data Set'!BJ19+'Phase Rock Maker'!$D$20*'Mineral Data Set'!BJ20+'Phase Rock Maker'!$D$21*'Mineral Data Set'!BJ21+'Phase Rock Maker'!$D$22*'Mineral Data Set'!BJ22+'Phase Rock Maker'!$D$23*'Mineral Data Set'!BJ23+'Phase Rock Maker'!$D$24*'Mineral Data Set'!BJ24+'Phase Rock Maker'!$D$25*'Mineral Data Set'!BJ25+'Phase Rock Maker'!$D$26*'Mineral Data Set'!BJ26+'Phase Rock Maker'!$D$27*'Mineral Data Set'!BJ27+'Phase Rock Maker'!$D$28*'Mineral Data Set'!BJ28+'Phase Rock Maker'!$D$29*'Mineral Data Set'!BJ29+'Phase Rock Maker'!$D$30*'Mineral Data Set'!BJ30+'Phase Rock Maker'!$D$31*'Mineral Data Set'!BJ31+'Phase Rock Maker'!$D$32*'Mineral Data Set'!BJ32+'Phase Rock Maker'!$D$33*'Mineral Data Set'!BJ33+'Phase Rock Maker'!$D$34*'Mineral Data Set'!BJ34+'Phase Rock Maker'!$D$35*'Mineral Data Set'!BJ35+'Phase Rock Maker'!$D$36*'Mineral Data Set'!BJ36+'Phase Rock Maker'!$D$37*'Mineral Data Set'!BJ37+'Phase Rock Maker'!$D$38*'Mineral Data Set'!BJ38+'Phase Rock Maker'!$D$39*'Mineral Data Set'!BJ39+'Phase Rock Maker'!$D$40*'Mineral Data Set'!BJ40+'Phase Rock Maker'!$D$41*'Mineral Data Set'!BJ41+'Phase Rock Maker'!$D$42*'Mineral Data Set'!BJ42+'Phase Rock Maker'!$D$43*'Mineral Data Set'!BJ43+'Phase Rock Maker'!$D$44*'Mineral Data Set'!BJ44+'Phase Rock Maker'!$D$45*'Mineral Data Set'!BJ45+'Phase Rock Maker'!$D$46*'Mineral Data Set'!BJ46+'Phase Rock Maker'!$D$47*'Mineral Data Set'!BJ47+'Phase Rock Maker'!$D$48*'Mineral Data Set'!BJ48+'Phase Rock Maker'!$D$49*'Mineral Data Set'!BJ49+'Phase Rock Maker'!$D$50*'Mineral Data Set'!BJ50+'Phase Rock Maker'!$D$51*'Mineral Data Set'!BJ51+'Phase Rock Maker'!$D$52*'Mineral Data Set'!BJ52+'Phase Rock Maker'!$D$53*'Mineral Data Set'!BJ53+'Phase Rock Maker'!$D$54*'Mineral Data Set'!BJ54+'Phase Rock Maker'!$D$55*'Mineral Data Set'!BJ55+'Phase Rock Maker'!$D$56*'Mineral Data Set'!BJ56+'Phase Rock Maker'!$D$57*'Mineral Data Set'!BJ57+'Phase Rock Maker'!$D$58*'Mineral Data Set'!BJ58+'Phase Rock Maker'!$D$59*'Mineral Data Set'!BJ59+'Phase Rock Maker'!$D$60*'Mineral Data Set'!BJ60+'Phase Rock Maker'!$D$61*'Mineral Data Set'!BJ61+'Phase Rock Maker'!$D$62*'Mineral Data Set'!BJ62+'Phase Rock Maker'!$D$63*'Mineral Data Set'!BJ63+'Phase Rock Maker'!$D$64*'Mineral Data Set'!BJ64+'Phase Rock Maker'!$D$65*'Mineral Data Set'!BJ65+'Phase Rock Maker'!$D$66*'Mineral Data Set'!BJ66+'Phase Rock Maker'!$D$67*'Mineral Data Set'!BJ67+'Phase Rock Maker'!$D$68*'Mineral Data Set'!BJ68+'Phase Rock Maker'!$D$69*'Mineral Data Set'!BJ69+'Phase Rock Maker'!$D$70*'Mineral Data Set'!BJ70+'Phase Rock Maker'!$D$71*'Mineral Data Set'!BJ71+'Phase Rock Maker'!$D$72*'Mineral Data Set'!BJ72+'Phase Rock Maker'!$D$73*'Mineral Data Set'!BJ73+'Phase Rock Maker'!$D$74*'Mineral Data Set'!BJ74+'Phase Rock Maker'!$D$75*'Mineral Data Set'!BJ75+'Phase Rock Maker'!$D$76*'Mineral Data Set'!BJ76+'Phase Rock Maker'!$D$77*'Mineral Data Set'!BJ77+'Phase Rock Maker'!$D$78*'Mineral Data Set'!BJ78+'Phase Rock Maker'!$D$79*'Mineral Data Set'!BJ79+'Phase Rock Maker'!$D$80*'Mineral Data Set'!BJ80+'Phase Rock Maker'!$D$81*'Mineral Data Set'!BJ81+'Phase Rock Maker'!$D$82*'Mineral Data Set'!BJ82+'Phase Rock Maker'!$D$83*'Mineral Data Set'!BJ83+'Phase Rock Maker'!$D$84*'Mineral Data Set'!BJ84+'Phase Rock Maker'!$D$85*'Mineral Data Set'!BJ85+'Phase Rock Maker'!$D$86*'Mineral Data Set'!BJ86+'Phase Rock Maker'!$D$87*'Mineral Data Set'!BJ87+'Phase Rock Maker'!$D$88*'Mineral Data Set'!BJ88+'Phase Rock Maker'!$D$89*'Mineral Data Set'!BJ89+'Phase Rock Maker'!$D$90*'Mineral Data Set'!BJ90+'Phase Rock Maker'!$D$91*'Mineral Data Set'!BJ91+'Phase Rock Maker'!$D$92*'Mineral Data Set'!BJ92+'Phase Rock Maker'!$D$93*'Mineral Data Set'!BJ93+'Phase Rock Maker'!$D$94*'Mineral Data Set'!BJ94+'Phase Rock Maker'!$D$95*'Mineral Data Set'!BJ95+'Phase Rock Maker'!$D$96*'Mineral Data Set'!BJ96+'Phase Rock Maker'!$D$97*'Mineral Data Set'!BJ97+'Phase Rock Maker'!$D$98*'Mineral Data Set'!BJ98+'Phase Rock Maker'!$D$99*'Mineral Data Set'!BJ99+'Phase Rock Maker'!$D$100*'Mineral Data Set'!BJ100+'Phase Rock Maker'!$D$101*'Mineral Data Set'!BJ101+'Phase Rock Maker'!$D$102*'Mineral Data Set'!BJ102+'Phase Rock Maker'!$D$103*'Mineral Data Set'!BJ103+'Phase Rock Maker'!$D$104*'Mineral Data Set'!BJ104+'Phase Rock Maker'!$D$105*'Mineral Data Set'!BJ105+'Phase Rock Maker'!$D$106*'Mineral Data Set'!BJ106+'Phase Rock Maker'!$D$107*'Mineral Data Set'!BJ107+'Phase Rock Maker'!$D$108*'Mineral Data Set'!BJ108 -> 0
A20: ='Mineral Data Set'!A20 -> Talc | B20: ='Mineral Data Set'!B20 -> Mg3Si4O10(OH)2 | C20: 0 | D20: =C20/$I$23*'Mineral Data Set'!C20 -> 0 | E20: =D20/'Mineral Data Set'!AR20 -> 0 | H20: B2O3 | I20: 0 | Q20: =$D$3*'Mineral Data Set'!BK3+'Phase Rock Maker'!$D$4*'Mineral Data Set'!BK4+'Phase Rock Maker'!$D$5*'Mineral Data Set'!BK5+'Phase Rock Maker'!$D$6*'Mineral Data Set'!BK6+'Phase Rock Maker'!$D$7*'Mineral Data Set'!BK7+'Phase Rock Maker'!$D$8*'Mineral Data Set'!BK8+'Phase Rock Maker'!$D$9*'Mineral Data Set'!BK9+'Phase Rock Maker'!$D$10*'Mineral Data Set'!BK10+'Phase Rock Maker'!$D$11*'Mineral Data Set'!BK11+'Phase Rock Maker'!$D$12*'Mineral Data Set'!BK12+'Phase Rock Maker'!$D$13*'Mineral Data Set'!BK13+'Phase Rock Maker'!$D$14*'Mineral Data Set'!BK14+'Phase Rock Maker'!$D$15*'Mineral Data Set'!BK15+'Phase Rock Maker'!$D$16*'Mineral Data Set'!BK16+'Phase Rock Maker'!$D$17*'Mineral Data Set'!BK17+'Phase Rock Maker'!$D$18*'Mineral Data Set'!BK18+'Phase Rock Maker'!$D$19*'Mineral Data Set'!BK19+'Phase Rock Maker'!$D$20*'Mineral Data Set'!BK20+'Phase Rock Maker'!$D$21*'Mineral Data Set'!BK21+'Phase Rock Maker'!$D$22*'Mineral Data Set'!BK22+'Phase Rock Maker'!$D$23*'Mineral Data Set'!BK23+'Phase Rock Maker'!$D$24*'Mineral Data Set'!BK24+'Phase Rock Maker'!$D$25*'Mineral Data Set'!BK25+'Phase Rock Maker'!$D$26*'Mineral Data Set'!BK26+'Phase Rock Maker'!$D$27*'Mineral Data Set'!BK27+'Phase Rock Maker'!$D$28*'Mineral Data Set'!BK28+'Phase Rock Maker'!$D$29*'Mineral Data Set'!BK29+'Phase Rock Maker'!$D$30*'Mineral Data Set'!BK30+'Phase Rock Maker'!$D$31*'Mineral Data Set'!BK31+'Phase Rock Maker'!$D$32*'Mineral Data Set'!BK32+'Phase Rock Maker'!$D$33*'Mineral Data Set'!BK33+'Phase Rock Maker'!$D$34*'Mineral Data Set'!BK34+'Phase Rock Maker'!$D$35*'Mineral Data Set'!BK35+'Phase Rock Maker'!$D$36*'Mineral Data Set'!BK36+'Phase Rock Maker'!$D$37*'Mineral Data Set'!BK37+'Phase Rock Maker'!$D$38*'Mineral Data Set'!BK38+'Phase Rock Maker'!$D$39*'Mineral Data Set'!BK39+'Phase Rock Maker'!$D$40*'Mineral Data Set'!BK40+'Phase Rock Maker'!$D$41*'Mineral Data Set'!BK41+'Phase Rock Maker'!$D$42*'Mineral Data Set'!BK42+'Phase Rock Maker'!$D$43*'Mineral Data Set'!BK43+'Phase Rock Maker'!$D$44*'Mineral Data Set'!BK44+'Phase Rock Maker'!$D$45*'Mineral Data Set'!BK45+'Phase Rock Maker'!$D$46*'Mineral Data Set'!BK46+'Phase Rock Maker'!$D$47*'Mineral Data Set'!BK47+'Phase Rock Maker'!$D$48*'Mineral Data Set'!BK48+'Phase Rock Maker'!$D$49*'Mineral Data Set'!BK49+'Phase Rock Maker'!$D$50*'Mineral Data Set'!BK50+'Phase Rock Maker'!$D$51*'Mineral Data Set'!BK51+'Phase Rock Maker'!$D$52*'Mineral Data Set'!BK52+'Phase Rock Maker'!$D$53*'Mineral Data Set'!BK53+'Phase Rock Maker'!$D$54*'Mineral Data Set'!BK54+'Phase Rock Maker'!$D$55*'Mineral Data Set'!BK55+'Phase Rock Maker'!$D$56*'Mineral Data Set'!BK56+'Phase Rock Maker'!$D$57*'Mineral Data Set'!BK57+'Phase Rock Maker'!$D$58*'Mineral Data Set'!BK58+'Phase Rock Maker'!$D$59*'Mineral Data Set'!BK59+'Phase Rock Maker'!$D$60*'Mineral Data Set'!BK60+'Phase Rock Maker'!$D$61*'Mineral Data Set'!BK61+'Phase Rock Maker'!$D$62*'Mineral Data Set'!BK62+'Phase Rock Maker'!$D$63*'Mineral Data Set'!BK63+'Phase Rock Maker'!$D$64*'Mineral Data Set'!BK64+'Phase Rock Maker'!$D$65*'Mineral Data Set'!BK65+'Phase Rock Maker'!$D$66*'Mineral Data Set'!BK66+'Phase Rock Maker'!$D$67*'Mineral Data Set'!BK67+'Phase Rock Maker'!$D$68*'Mineral Data Set'!BK68+'Phase Rock Maker'!$D$69*'Mineral Data Set'!BK69+'Phase Rock Maker'!$D$70*'Mineral Data Set'!BK70+'Phase Rock Maker'!$D$71*'Mineral Data Set'!BK71+'Phase Rock Maker'!$D$72*'Mineral Data Set'!BK72+'Phase Rock Maker'!$D$73*'Mineral Data Set'!BK73+'Phase Rock Maker'!$D$74*'Mineral Data Set'!BK74+'Phase Rock Maker'!$D$75*'Mineral Data Set'!BK75+'Phase Rock Maker'!$D$76*'Mineral Data Set'!BK76+'Phase Rock Maker'!$D$77*'Mineral Data Set'!BK77+'Phase Rock Maker'!$D$78*'Mineral Data Set'!BK78+'Phase Rock Maker'!$D$79*'Mineral Data Set'!BK79+'Phase Rock Maker'!$D$80*'Mineral Data Set'!BK80+'Phase Rock Maker'!$D$81*'Mineral Data Set'!BK81+'Phase Rock Maker'!$D$82*'Mineral Data Set'!BK82+'Phase Rock Maker'!$D$83*'Mineral Data Set'!BK83+'Phase Rock Maker'!$D$84*'Mineral Data Set'!BK84+'Phase Rock Maker'!$D$85*'Mineral Data Set'!BK85+'Phase Rock Maker'!$D$86*'Mineral Data Set'!BK86+'Phase Rock Maker'!$D$87*'Mineral Data Set'!BK87+'Phase Rock Maker'!$D$88*'Mineral Data Set'!BK88+'Phase Rock Maker'!$D$89*'Mineral Data Set'!BK89+'Phase Rock Maker'!$D$90*'Mineral Data Set'!BK90+'Phase Rock Maker'!$D$91*'Mineral Data Set'!BK91+'Phase Rock Maker'!$D$92*'Mineral Data Set'!BK92+'Phase Rock Maker'!$D$93*'Mineral Data Set'!BK93+'Phase Rock Maker'!$D$94*'Mineral Data Set'!BK94+'Phase Rock Maker'!$D$95*'Mineral Data Set'!BK95+'Phase Rock Maker'!$D$96*'Mineral Data Set'!BK96+'Phase Rock Maker'!$D$97*'Mineral Data Set'!BK97+'Phase Rock Maker'!$D$98*'Mineral Data Set'!BK98+'Phase Rock Maker'!$D$99*'Mineral Data Set'!BK99+'Phase Rock Maker'!$D$100*'Mineral Data Set'!BK100+'Phase Rock Maker'!$D$101*'Mineral Data Set'!BK101+'Phase Rock Maker'!$D$102*'Mineral Data Set'!BK102+'Phase Rock Maker'!$D$103*'Mineral Data Set'!BK103+'Phase Rock Maker'!$D$104*'Mineral Data Set'!BK104+'Phase Rock Maker'!$D$105*'Mineral Data Set'!BK105+'Phase Rock Maker'!$D$106*'Mineral Data Set'!BK106+'Phase Rock Maker'!$D$107*'Mineral Data Set'!BK107+'Phase Rock Maker'!$D$108*'Mineral Data Set'!BK108 -> 0
A21: ='Mineral Data Set'!A21 -> Serpentine | B21: ='Mineral Data Set'!B21 -> Mg3Si2O5(OH)4 | C21: 0 | D21: =C21/$I$23*'Mineral Data Set'!C21 -> 0 | E21: =D21/'Mineral Data Set'!AR21 -> 0 | H21: P2O5 | I21: 0 | Q21: =$D$3*'Mineral Data Set'!BL3+'Phase Rock Maker'!$D$4*'Mineral Data Set'!BL4+'Phase Rock Maker'!$D$5*'Mineral Data Set'!BL5+'Phase Rock Maker'!$D$6*'Mineral Data Set'!BL6+'Phase Rock Maker'!$D$7*'Mineral Data Set'!BL7+'Phase Rock Maker'!$D$8*'Mineral Data Set'!BL8+'Phase Rock Maker'!$D$9*'Mineral Data Set'!BL9+'Phase Rock Maker'!$D$10*'Mineral Data Set'!BL10+'Phase Rock Maker'!$D$11*'Mineral Data Set'!BL11+'Phase Rock Maker'!$D$12*'Mineral Data Set'!BL12+'Phase Rock Maker'!$D$13*'Mineral Data Set'!BL13+'Phase Rock Maker'!$D$14*'Mineral Data Set'!BL14+'Phase Rock Maker'!$D$15*'Mineral Data Set'!BL15+'Phase Rock Maker'!$D$16*'Mineral Data Set'!BL16+'Phase Rock Maker'!$D$17*'Mineral Data Set'!BL17+'Phase Rock Maker'!$D$18*'Mineral Data Set'!BL18+'Phase Rock Maker'!$D$19*'Mineral Data Set'!BL19+'Phase Rock Maker'!$D$20*'Mineral Data Set'!BL20+'Phase Rock Maker'!$D$21*'Mineral Data Set'!BL21+'Phase Rock Maker'!$D$22*'Mineral Data Set'!BL22+'Phase Rock Maker'!$D$23*'Mineral Data Set'!BL23+'Phase Rock Maker'!$D$24*'Mineral Data Set'!BL24+'Phase Rock Maker'!$D$25*'Mineral Data Set'!BL25+'Phase Rock Maker'!$D$26*'Mineral Data Set'!BL26+'Phase Rock Maker'!$D$27*'Mineral Data Set'!BL27+'Phase Rock Maker'!$D$28*'Mineral Data Set'!BL28+'Phase Rock Maker'!$D$29*'Mineral Data Set'!BL29+'Phase Rock Maker'!$D$30*'Mineral Data Set'!BL30+'Phase Rock Maker'!$D$31*'Mineral Data Set'!BL31+'Phase Rock Maker'!$D$32*'Mineral Data Set'!BL32+'Phase Rock Maker'!$D$33*'Mineral Data Set'!BL33+'Phase Rock Maker'!$D$34*'Mineral Data Set'!BL34+'Phase Rock Maker'!$D$35*'Mineral Data Set'!BL35+'Phase Rock Maker'!$D$36*'Mineral Data Set'!BL36+'Phase Rock Maker'!$D$37*'Mineral Data Set'!BL37+'Phase Rock Maker'!$D$38*'Mineral Data Set'!BL38+'Phase Rock Maker'!$D$39*'Mineral Data Set'!BL39+'Phase Rock Maker'!$D$40*'Mineral Data Set'!BL40+'Phase Rock Maker'!$D$41*'Mineral Data Set'!BL41+'Phase Rock Maker'!$D$42*'Mineral Data Set'!BL42+'Phase Rock Maker'!$D$43*'Mineral Data Set'!BL43+'Phase Rock Maker'!$D$44*'Mineral Data Set'!BL44+'Phase Rock Maker'!$D$45*'Mineral Data Set'!BL45+'Phase Rock Maker'!$D$46*'Mineral Data Set'!BL46+'Phase Rock Maker'!$D$47*'Mineral Data Set'!BL47+'Phase Rock Maker'!$D$48*'Mineral Data Set'!BL48+'Phase Rock Maker'!$D$49*'Mineral Data Set'!BL49+'Phase Rock Maker'!$D$50*'Mineral Data Set'!BL50+'Phase Rock Maker'!$D$51*'Mineral Data Set'!BL51+'Phase Rock Maker'!$D$52*'Mineral Data Set'!BL52+'Phase Rock Maker'!$D$53*'Mineral Data Set'!BL53+'Phase Rock Maker'!$D$54*'Mineral Data Set'!BL54+'Phase Rock Maker'!$D$55*'Mineral Data Set'!BL55+'Phase Rock Maker'!$D$56*'Mineral Data Set'!BL56+'Phase Rock Maker'!$D$57*'Mineral Data Set'!BL57+'Phase Rock Maker'!$D$58*'Mineral Data Set'!BL58+'Phase Rock Maker'!$D$59*'Mineral Data Set'!BL59+'Phase Rock Maker'!$D$60*'Mineral Data Set'!BL60+'Phase Rock Maker'!$D$61*'Mineral Data Set'!BL61+'Phase Rock Maker'!$D$62*'Mineral Data Set'!BL62+'Phase Rock Maker'!$D$63*'Mineral Data Set'!BL63+'Phase Rock Maker'!$D$64*'Mineral Data Set'!BL64+'Phase Rock Maker'!$D$65*'Mineral Data Set'!BL65+'Phase Rock Maker'!$D$66*'Mineral Data Set'!BL66+'Phase Rock Maker'!$D$67*'Mineral Data Set'!BL67+'Phase Rock Maker'!$D$68*'Mineral Data Set'!BL68+'Phase Rock Maker'!$D$69*'Mineral Data Set'!BL69+'Phase Rock Maker'!$D$70*'Mineral Data Set'!BL70+'Phase Rock Maker'!$D$71*'Mineral Data Set'!BL71+'Phase Rock Maker'!$D$72*'Mineral Data Set'!BL72+'Phase Rock Maker'!$D$73*'Mineral Data Set'!BL73+'Phase Rock Maker'!$D$74*'Mineral Data Set'!BL74+'Phase Rock Maker'!$D$75*'Mineral Data Set'!BL75+'Phase Rock Maker'!$D$76*'Mineral Data Set'!BL76+'Phase Rock Maker'!$D$77*'Mineral Data Set'!BL77+'Phase Rock Maker'!$D$78*'Mineral Data Set'!BL78+'Phase Rock Maker'!$D$79*'Mineral Data Set'!BL79+'Phase Rock Maker'!$D$80*'Mineral Data Set'!BL80+'Phase Rock Maker'!$D$81*'Mineral Data Set'!BL81+'Phase Rock Maker'!$D$82*'Mineral Data Set'!BL82+'Phase Rock Maker'!$D$83*'Mineral Data Set'!BL83+'Phase Rock Maker'!$D$84*'Mineral Data Set'!BL84+'Phase Rock Maker'!$D$85*'Mineral Data Set'!BL85+'Phase Rock Maker'!$D$86*'Mineral Data Set'!BL86+'Phase Rock Maker'!$D$87*'Mineral Data Set'!BL87+'Phase Rock Maker'!$D$88*'Mineral Data Set'!BL88+'Phase Rock Maker'!$D$89*'Mineral Data Set'!BL89+'Phase Rock Maker'!$D$90*'Mineral Data Set'!BL90+'Phase Rock Maker'!$D$91*'Mineral Data Set'!BL91+'Phase Rock Maker'!$D$92*'Mineral Data Set'!BL92+'Phase Rock Maker'!$D$93*'Mineral Data Set'!BL93+'Phase Rock Maker'!$D$94*'Mineral Data Set'!BL94+'Phase Rock Maker'!$D$95*'Mineral Data Set'!BL95+'Phase Rock Maker'!$D$96*'Mineral Data Set'!BL96+'Phase Rock Maker'!$D$97*'Mineral Data Set'!BL97+'Phase Rock Maker'!$D$98*'Mineral Data Set'!BL98+'Phase Rock Maker'!$D$99*'Mineral Data Set'!BL99+'Phase Rock Maker'!$D$100*'Mineral Data Set'!BL100+'Phase Rock Maker'!$D$101*'Mineral Data Set'!BL101+'Phase Rock Maker'!$D$102*'Mineral Data Set'!BL102+'Phase Rock Maker'!$D$103*'Mineral Data Set'!BL103+'Phase Rock Maker'!$D$104*'Mineral Data Set'!BL104+'Phase Rock Maker'!$D$105*'Mineral Data Set'!BL105+'Phase Rock Maker'!$D$106*'Mineral Data Set'!BL106+'Phase Rock Maker'!$D$107*'Mineral Data Set'!BL107+'Phase Rock Maker'!$D$108*'Mineral Data Set'!BL108 -> 0
A22: ='Mineral Data Set'!A22 -> Kaolinite | B22: ='Mineral Data Set'!B22 -> Al2Si2O5(OH)4 | C22: 0 | D22: =C22/$I$23*'Mineral Data Set'!C22 -> 0 | E22: =D22/'Mineral Data Set'!AR22 -> 0 | H22: Total | I22: =SUM(I3:I21) -> 100 | Q22: =SUM(Q3:Q21) -> 10000
A23: ='Mineral Data Set'!A23 -> Illite | B23: ='Mineral Data Set'!B23 -> KAl5Si7O20(OH)4 | C23: 0 | D23: =C23/$I$23*'Mineral Data Set'!C23 -> 0 | E23: =D23/'Mineral Data Set'!AR23 -> 0 | H23: ρWR | I23: ='Mineral Data Set'!D109/'Phase Rock Maker'!C109 -> 2.65
A24: ='Mineral Data Set'!A24 -> Nepheline | B24: ='Mineral Data Set'!B24 -> Na3KSi4Al4O16 | C24: 0 | D24: =C24/$I$23*'Mineral Data Set'!C24 -> 0 | E24: =D24/'Mineral Data Set'!AR24 -> 0
A25: ='Mineral Data Set'!A25 -> Leucite | B25: ='Mineral Data Set'!B25 -> KAlSi2O6 | C25: 0 | D25: =C25/$I$23*'Mineral Data Set'!C25 -> 0 | E25: =D25/'Mineral Data Set'!AR25 -> 0
A26: ='Mineral Data Set'!A26 -> Cordierite | B26: ='Mineral Data Set'!B26 -> Mg2+2(Si5Al4)O18(OH) | C26: 0 | D26: =C26/$I$23*'Mineral Data Set'!C26 -> 0 | E26: =D26/'Mineral Data Set'!AR26 -> 0
A27: ='Mineral Data Set'!A27 -> Fe-Cordierite | B27: ='Mineral Data Set'!B27 -> Fe2+2(Si5Al4)O18(OH) | C27: 0 | D27: =C27/$I$23*'Mineral Data Set'!C27 -> 0 | E27: =D27/'Mineral Data Set'!AR27 -> 0
A28: ='Mineral Data Set'!A28 -> Mg80Fe20 Cordierite | B28: ='Mineral Data Set'!B28 -> Fe2+0.4Mg2+1.6(Si5Al4)O18(OH) | C28: 0 | D28: =C28/$I$23*'Mineral Data Set'!C28 -> 0 | E28: =D28/'Mineral Data Set'!AR28 -> 0
A29: ='Mineral Data Set'!A29 -> Fe Staurolite | B29: ='Mineral Data Set'!B29 -> Fe2+2Al9Si4O20(OH)2 | C29: 0 | D29: =C29/$I$23*'Mineral Data Set'!C29 -> 0 | E29: =D29/'Mineral Data Set'!AR29 -> 0
A30: ='Mineral Data Set'!A30 -> Fe80Mg20 Staurolite | B30: ='Mineral Data Set'!B30 -> Fe2+1.6Mg0.4Al9Si4O20(OH)2 | C30: 0 | D30: =C30/$I$23*'Mineral Data Set'!C30 -> 0 | E30: =D30/'Mineral Data Set'!AR30 -> 0
A31: ='Mineral Data Set'!A31 -> Fe Chloritoid | B31: ='Mineral Data Set'!B31 -> Fe2+Al2OSiO4(OH)2 | C31: 0 | D31: =C31/$I$23*'Mineral Data Set'!C31 -> 0 | E31: =D31/'Mineral Data Set'!AR31 -> 0
A32: ='Mineral Data Set'!A32 -> Mg Chloritoid | B32: ='Mineral Data Set'!B32 -> MgAl2OSiO4(OH)2 | C32: 0 | D32: =C32/$I$23*'Mineral Data Set'!C32 -> 0 | E32: =D32/'Mineral Data Set'!AR32 -> 0
A33: ='Mineral Data Set'!A33 -> Fe80Mg20 Chloritoid | B33: ='Mineral Data Set'!B33 -> Mg0.2Fe0.8Al2OSiO4(OH)2 | C33: 0 | D33: =C33/$I$23*'Mineral Data Set'!C33 -> 0 | E33: =D33/'Mineral Data Set'!AR33 -> 0
A34: ='Mineral Data Set'!A34 -> Sillimanite | B34: ='Mineral Data Set'!B34 -> Al2SiO5 | C34: 0 | D34: =C34/$I$23*'Mineral Data Set'!C34 -> 0 | E34: =D34/'Mineral Data Set'!AR34 -> 0
A35: ='Mineral Data Set'!A35 -> Kyanite | B35: ='Mineral Data Set'!B35 -> Al2SiO5 | C35: 0 | D35: =C35/$I$23*'Mineral Data Set'!C35 -> 0 | E35: =D35/'Mineral Data Set'!AR35 -> 0
A36: ='Mineral Data Set'!A36 -> Andalusite | B36: ='Mineral Data Set'!B36 -> Al2SiO5 | C36: 0 | D36: =C36/$I$23*'Mineral Data Set'!C36 -> 0 | E36: =D36/'Mineral Data Set'!AR36 -> 0
A37: ='Mineral Data Set'!A37 -> Almandine | B37: ='Mineral Data Set'!B37 -> Fe2+3Al2(SiO4)3 | C37: 0 | D37: =C37/$I$23*'Mineral Data Set'!C37 -> 0 | E37: =D37/'Mineral Data Set'!AR37 -> 0
A38: ='Mineral Data Set'!A38 -> Pyrope | B38: ='Mineral Data Set'!B38 -> Mg2+3Al2(SiO4)3 | C38: 0 | D38: =C38/$I$23*'Mineral Data Set'!C38 -> 0 | E38: =D38/'Mineral Data Set'!AR38 -> 0
A39: ='Mineral Data Set'!A39 -> Grossular | B39: ='Mineral Data Set'!B39 -> Ca2+3Al2(SiO4)3 | C39: 0 | D39: =C39/$I$23*'Mineral Data Set'!C39 -> 0 | E39: =D39/'Mineral Data Set'!AR39 -> 0
A40: ='Mineral Data Set'!A40 -> Andradite | B40: ='Mineral Data Set'!B40 -> Ca3Fe3+2(SiO4)3 | C40: 0 | D40: =C40/$I$23*'Mineral Data Set'!C40 -> 0 | E40: =D40/'Mineral Data Set'!AR40 -> 0
A41: ='Mineral Data Set'!A41 -> Spessartine | B41: ='Mineral Data Set'!B41 -> Mn3Fe3+2(SiO4)3 | C41: 0 | D41: =C41/$I$23*'Mineral Data Set'!C41 -> 0 | E41: =D41/'Mineral Data Set'!AR41 -> 0
A42: ='Mineral Data Set'!A42 -> Alm80Pyp20 | B42: ='Mineral Data Set'!B42 -> Fe2+2.4Mg0.6Al2(SiO4)3 | C42: 0 | D42: =C42/$I$23*'Mineral Data Set'!C42 -> 0 | E42: =D42/'Mineral Data Set'!AR42 -> 0
A43: ='Mineral Data Set'!A43 -> Alm70Pyp20Gross10 | B43: ='Mineral Data Set'!B43 -> Fe2+2.1Mg0.6Ca0.3Al2(SiO4)3 | C43: 0 | D43: =C43/$I$23*'Mineral Data Set'!C43 -> 0 | E43: =D43/'Mineral Data Set'!AR43 -> 0
A44: ='Mineral Data Set'!A44 -> Alm60Pyp20Spess10Gross10 | B44: ='Mineral Data Set'!B44 -> Fe2+1.8Mg0.6Ca0.3Mn0.3Al2(SiO4)3 | C44: 0 | D44: =C44/$I$23*'Mineral Data Set'!C44 -> 0 | E44: =D44/'Mineral Data Set'!AR44 -> 0
A45: ='Mineral Data Set'!A45 -> Forsterite | B45: ='Mineral Data Set'!B45 -> Mg2SiO4 | C45: 0 | D45: =C45/$I$23*'Mineral Data Set'!C45 -> 0 | E45: =D45/'Mineral Data Set'!AR45 -> 0
A46: ='Mineral Data Set'!A46 -> Fayalite | B46: ='Mineral Data Set'!B46 -> Fe2SiO4 | C46: 0 | D46: =C46/$I$23*'Mineral Data Set'!C46 -> 0 | E46: =D46/'Mineral Data Set'!AR46 -> 0
A47: ='Mineral Data Set'!A47 -> Chrysolite Fa20Fo80 | B47: ='Mineral Data Set'!B47 -> Fe0.4Mg1.6SiO4 | C47: 0 | D47: =C47/$I$23*'Mineral Data Set'!C47 -> 0 | E47: =D47/'Mineral Data Set'!AR47 -> 0
A48: ='Mineral Data Set'!A48 -> Hortonolite Fa50Fo50 | B48: ='Mineral Data Set'!B48 -> FeMgSiO4 | C48: 0 | D48: =C48/$I$23*'Mineral Data Set'!C48 -> 0 | E48: =D48/'Mineral Data Set'!AR48 -> 0
A49: ='Mineral Data Set'!A49 -> Ferro-Hortonolite Fo20Fa80 | B49: ='Mineral Data Set'!B49 -> Fe1.6Mg0.4SiO4 | C49: 0 | D49: =C49/$I$23*'Mineral Data Set'!C49 -> 0 | E49: =D49/'Mineral Data Set'!AR49 -> 0
A50: ='Mineral Data Set'!A50 -> Enstatite | B50: ='Mineral Data Set'!B50 -> Mg2Si2O6 | C50: 0 | D50: =C50/$I$23*'Mineral Data Set'!C50 -> 0 | E50: =D50/'Mineral Data Set'!AR50 -> 0
A51: ='Mineral Data Set'!A51 -> Ferrosilite | B51: ='Mineral Data Set'!B51 -> Fe2Si2O6 | C51: 0 | D51: =C51/$I$23*'Mineral Data Set'!C51 -> 0 | E51: =D51/'Mineral Data Set'!AR51 -> 0
A52: ='Mineral Data Set'!A52 -> HyperstheneEn50Fs50 | B52: ='Mineral Data Set'!B52 -> FeMgSi2O6 | C52: 0 | D52: =C52/$I$23*'Mineral Data Set'!C52 -> 0 | E52: =D52/'Mineral Data Set'!AR52 -> 0
A53: ='Mineral Data Set'!A53 -> Diopside | B53: ='Mineral Data Set'!B53 -> CaMgSi2O6 | C53: 0 | D53: =C53/$I$23*'Mineral Data Set'!C53 -> 0 | E53: =D53/'Mineral Data Set'!AR53 -> 0
A54: ='Mineral Data Set'!A54 -> Hedenbergite | B54: ='Mineral Data Set'!B54 -> CaFeSi2O6 | C54: 0 | D54: =C54/$I$23*'Mineral Data Set'!C54 -> 0 | E54: =D54/'Mineral Data Set'!AR54 -> 0
A55: ='Mineral Data Set'!A55 -> Salite Di50Hed50 | B55: ='Mineral Data Set'!B55 -> Ca2FeMgSi4O12 | C55: 0 | D55: =C55/$I$23*'Mineral Data Set'!C55 -> 0 | E55: =D55/'Mineral Data Set'!AR55 -> 0
A56: ='Mineral Data Set'!A56 -> Wollastonite | B56: ='Mineral Data Set'!B56 -> Ca2Si2O6 | C56: 0 | D56: =C56/$I$23*'Mineral Data Set'!C56 -> 0 | E56: =D56/'Mineral Data Set'!AR56 -> 0
A57: ='Mineral Data Set'!A57 -> Fe Chlorite (Chamosite) | B57: ='Mineral Data Set'!B57 -> Fe2+10Al4Si6O20(OH)16 | C57: 0 | D57: =C57/$I$23*'Mineral Data Set'!C57 -> 0 | E57: =D57/'Mineral Data Set'!AR57 -> 0
A58: ='Mineral Data Set'!A58 -> Mg Chlorite (Clinochlore) | B58: ='Mineral Data Set'!B58 -> Mg10Al4Si6O20(OH)16 | C58: 0 | D58: =C58/$I$23*'Mineral Data Set'!C58 -> 0 | E58: =D58/'Mineral Data Set'!AR58 -> 0
A59: ='Mineral Data Set'!A59 -> Chlorite Fe20Mg80 | B59: ='Mineral Data Set'!B59 -> Fe2+2Mg8Al4Si6O20(OH)16 | C59: 0 | D59: =C59/$I$23*'Mineral Data Set'!C59 -> 0 | E59: =D59/'Mineral Data Set'!AR59 -> 0
A60: ='Mineral Data Set'!A60 -> Chlorite Fe50Mg50 | B60: ='Mineral Data Set'!B60 -> Fe2+5Mg5Al4Si6O20(OH)16 | C60: 0 | D60: =C60/$I$23*'Mineral Data Set'!C60 -> 0 | E60: =D60/'Mineral Data Set'!AR60 -> 0
A61: ='Mineral Data Set'!A61 -> Chlorite Fe80Mg20 | B61: ='Mineral Data Set'!B61 -> Fe2+8Mg2Al4Si6O20(OH)16 | C61: 0 | D61: =C61/$I$23*'Mineral Data Set'!C61 -> 0 | E61: =D61/'Mineral Data Set'!AR61 -> 0
A62: ='Mineral Data Set'!A62 -> Hornblende | B62: ='Mineral Data Set'!B62 -> Ca2Fe2Mg2Al2Si7O22(OH)2 | C62: 0 | D62: =C62/$I$23*'Mineral Data Set'!C62 -> 0 | E62: =D62/'Mineral Data Set'!AR62 -> 0
A63: ='Mineral Data Set'!A63 -> Glaucophane | B63: ='Mineral Data Set'!B63 -> Na2Mg3Al2Si8O22(OH)2 | C63: 0 | D63: =C63/$I$23*'Mineral Data Set'!C63 -> 0 | E63: =D63/'Mineral Data Set'!AR63 -> 0
A64: ='Mineral Data Set'!A64 -> Tremolite | B64: ='Mineral Data Set'!B64 -> Ca2Mg5Si8O22(OH)2 | C64: 0 | D64: =C64/$I$23*'Mineral Data Set'!C64 -> 0 | E64: =D64/'Mineral Data Set'!AR64 -> 0
A65: ='Mineral Data Set'!A65 -> Actinolite | B65: ='Mineral Data Set'!B65 -> Ca2Fe2Mg3Si8O22(OH)2 | C65: 0 | D65: =C65/$I$23*'Mineral Data Set'!C65 -> 0 | E65: =D65/'Mineral Data Set'!AR65 -> 0
A66: ='Mineral Data Set'!A66 -> Ferro-Edenite | B66: ='Mineral Data Set'!B66 -> NaCa2Mg2Fe3AlSi7O22(OH)2 | C66: 0 | D66: =C66/$I$23*'Mineral Data Set'!C66 -> 0 | E66: =D66/'Mineral Data Set'!AR66 -> 0
A67: ='Mineral Data Set'!A67 -> Tschermakite | B67: ='Mineral Data Set'!B67 -> Ca2Mg3Al4Si6O22(OH)2 | C67: 0 | D67: =C67/$I$23*'Mineral Data Set'!C67 -> 0 | E67: =D67/'Mineral Data Set'!AR67 -> 0
A68: ='Mineral Data Set'!A68 -> Pargasite | B68: ='Mineral Data Set'!B68 -> NaCa2Fe2Mg2Al3Si6O22(OH)2 | C68: 0 | D68: =C68/$I$23*'Mineral Data Set'!C68 -> 0 | E68: =D68/'Mineral Data Set'!AR68 -> 0
A69: ='Mineral Data Set'!A69 -> Hastingsite | B69: ='Mineral Data Set'!B69 -> NaCa2Fe2+4Fe3+Al2Si6O22(OH)2 | C69: 0 | D69: =C69/$I$23*'Mineral Data Set'!C69 -> 0 | E69: =D69/'Mineral Data Set'!AR69 -> 0
A70: ='Mineral Data Set'!A70 -> NaCa Scapolite (Mizzonite) | B70: ='Mineral Data Set'!B70 -> Na4Ca4(Al9Si15O47.5)CO3SO4 | C70: 0 | D70: =C70/$I$23*'Mineral Data Set'!C70 -> 0 | E70: =D70/'Mineral Data Set'!AR70 -> 0 | F70: =E70/$E$109*100 -> 
A71: ='Mineral Data Set'!A71 -> Titanite | B71: ='Mineral Data Set'!B71 -> CaTiSiO5 | C71: 0 | D71: =C71/$I$23*'Mineral Data Set'!C71 -> 0 | E71: =D71/'Mineral Data Set'!AR71 -> 0
A72: ='Mineral Data Set'!A72 -> Rutile | B72: ='Mineral Data Set'!B72 -> TiO2 | C72: 0 | D72: =C72/$I$23*'Mineral Data Set'!C72 -> 0 | E72: =D72/'Mineral Data Set'!AR72 -> 0
A73: ='Mineral Data Set'!A73 -> Spinel | B73: ='Mineral Data Set'!B73 -> MgAl2O4 | C73: 0 | D73: =C73/$I$23*'Mineral Data Set'!C73 -> 0 | E73: =D73/'Mineral Data Set'!AR73 -> 0
A74: ='Mineral Data Set'!A74 -> Hercynite | B74: ='Mineral Data Set'!B74 -> Fe2+Al2O4 | C74: 0 | D74: =C74/$I$23*'Mineral Data Set'!C74 -> 0 | E74: =D74/'Mineral Data Set'!AR74 -> 0
A75: ='Mineral Data Set'!A75 -> Chromite | B75: ='Mineral Data Set'!B75 -> Fe2+Cr2O4 | C75: 0 | D75: =C75/$I$23*'Mineral Data Set'!C75 -> 0 | E75: =D75/'Mineral Data Set'!AR75 -> 0
A76: ='Mineral Data Set'!A76 -> Magnetite | B76: ='Mineral Data Set'!B76 -> Fe3O4 | C76: 0 | D76: =C76/$I$23*'Mineral Data Set'!C76 -> 0 | E76: =D76/'Mineral Data Set'!AR76 -> 0
A77: ='Mineral Data Set'!A77 -> Ilmenite | B77: ='Mineral Data Set'!B77 -> FeTiO3 | C77: 0 | D77: =C77/$I$23*'Mineral Data Set'!C77 -> 0 | E77: =D77/'Mineral Data Set'!AR77 -> 0
A78: ='Mineral Data Set'!A78 -> Hematite | B78: ='Mineral Data Set'!B78 -> Fe2O3 | C78: 0 | D78: =C78/$I$23*'Mineral Data Set'!C78 -> 0 | E78: =D78/'Mineral Data Set'!AR78 -> 0
A79: ='Mineral Data Set'!A79 -> Gypsum | B79: ='Mineral Data Set'!B79 -> CaSO4 ˑ 2H2O | C79: 0 | D79: =C79/$I$23*'Mineral Data Set'!C79 -> 0 | E79: =D79/'Mineral Data Set'!AR79 -> 0
A80: ='Mineral Data Set'!A80 -> Baryte | B80: ='Mineral Data Set'!B80 -> BaSO4 | C80: 0 | D80: =C80/$I$23*'Mineral Data Set'!C80 -> 0 | E80: =D80/'Mineral Data Set'!AR80 -> 0
A81: ='Mineral Data Set'!A81 -> Calcite | B81: ='Mineral Data Set'!B81 -> CaCO3 | C81: 0 | D81: =C81/$I$23*'Mineral Data Set'!C81 -> 0 | E81: =D81/'Mineral Data Set'!AR81 -> 0
A82: ='Mineral Data Set'!A82 -> Dolomite | B82: ='Mineral Data Set'!B82 -> MgCa(CO3)2 | C82: 0 | D82: =C82/$I$23*'Mineral Data Set'!C82 -> 0 | E82: =D82/'Mineral Data Set'!AR82 -> 0
A83: ='Mineral Data Set'!A83 -> Magnesite | B83: ='Mineral Data Set'!B83 -> MgCO3 | C83: 0 | D83: =C83/$I$23*'Mineral Data Set'!C83 -> 0 | E83: =D83/'Mineral Data Set'!AR83 -> 0
A84: ='Mineral Data Set'!A84 -> Siderite | B84: ='Mineral Data Set'!B84 -> FeCO3 | C84: 0 | D84: =C84/$I$23*'Mineral Data Set'!C84 -> 0 | E84: =D84/'Mineral Data Set'!AR84 -> 0
A85: ='Mineral Data Set'!A85 -> Corundum | B85: ='Mineral Data Set'!B85 -> Al2O3 | C85: 0 | D85: =C85/$I$23*'Mineral Data Set'!C85 -> 0 | E85: =D85/'Mineral Data Set'!AR85 -> 0
A86: ='Mineral Data Set'!A86 -> Epidote | B86: ='Mineral Data Set'!B86 -> Ca2Al2Fe3+Si3O12(OH) | C86: 0 | D86: =C86/$I$23*'Mineral Data Set'!C86 -> 0 | E86: =D86/'Mineral Data Set'!AR86 -> 0
A87: ='Mineral Data Set'!A87 -> Zoisite | B87: ='Mineral Data Set'!B87 -> Ca2Al3Si3O12(OH) | C87: 0 | D87: =C87/$I$23*'Mineral Data Set'!C87 -> 0 | E87: =D87/'Mineral Data Set'!AR87 -> 0
A88: ='Mineral Data Set'!A88 -> Apatite (Hydroxylapatite) | B88: ='Mineral Data Set'!B88 -> Ca5(PO4)3(OH) | C88: 0 | D88: =C88/$I$23*'Mineral Data Set'!C88 -> 0 | E88: =D88/'Mineral Data Set'!AR88 -> 0
A89: ='Mineral Data Set'!A89 -> Tourmaline Drav50Schorl50 | B89: ='Mineral Data Set'!B89 -> NaFe2+1.5Mg1.5Al6(BO3)3Si6O18(OH)4 | C89: 0 | D89: =C89/$I$23*'Mineral Data Set'!C89 -> 0 | E89: =D89/'Mineral Data Set'!AR89 -> 0
A90: ='Mineral Data Set'!A90 -> grt | B90: ='Mineral Data Set'!B90 -> HV6.2b_1 | C90: 0 | D90: =C90/$I$23*'Mineral Data Set'!C90 -> 0 | E90: =D90/'Mineral Data Set'!AR90 -> 
A91: ='Mineral Data Set'!A91 -> grt | B91: ='Mineral Data Set'!B91 -> HV6.2b_2 | C91: 0 | D91: =C91/$I$23*'Mineral Data Set'!C91 -> 0 | E91: =D91/'Mineral Data Set'!AR91 -> 
A92: ='Mineral Data Set'!A92 -> grt | B92: ='Mineral Data Set'!B92 -> HV6.2b_3 | C92: 0 | D92: =C92/$I$23*'Mineral Data Set'!C92 -> 0 | E92: =D92/'Mineral Data Set'!AR92 -> 
A93: ='Mineral Data Set'!A93 -> cpx | B93: ='Mineral Data Set'!B93 -> HV6.2b_6 | C93: 0 | D93: =C93/$I$23*'Mineral Data Set'!C93 -> 0 | E93: =D93/'Mineral Data Set'!AR93 -> 
A94: ='Mineral Data Set'!A94 -> cpx | B94: ='Mineral Data Set'!B94 -> HV6.2b_7 | C94: 0 | D94: =C94/$I$23*'Mineral Data Set'!C94 -> 0 | E94: =D94/'Mineral Data Set'!AR94 -> 
A95: ='Mineral Data Set'!A95 -> cpx | B95: ='Mineral Data Set'!B95 -> HV6.2b_8 | C95: 0 | D95: =C95/$I$23*'Mineral Data Set'!C95 -> 0 | E95: =D95/'Mineral Data Set'!AR95 -> 
A96: ='Mineral Data Set'!A96 -> cpx | B96: ='Mineral Data Set'!B96 -> HV6.2b_11 | C96: 0 | D96: =C96/$I$23*'Mineral Data Set'!C96 -> 0 | E96: =D96/'Mineral Data Set'!AR96 -> 
A97: ='Mineral Data Set'!A97 -> Hbl | B97: ='Mineral Data Set'!B97 -> HV6.2b_9 | C97: 0 | D97: =C97/$I$23*'Mineral Data Set'!C97 -> 0 | E97: =D97/'Mineral Data Set'!AR97 -> 
A98: ='Mineral Data Set'!A98 -> Hbl | B98: ='Mineral Data Set'!B98 -> HV6.2b_10 | C98: 0 | D98: =C98/$I$23*'Mineral Data Set'!C98 -> 0 | E98: =D98/'Mineral Data Set'!AR98 -> 
A99: ='Mineral Data Set'!A99 -> Prg | B99: ='Mineral Data Set'!B99 -> HV6.2b_18 | C99: 0 | D99: =C99/$I$23*'Mineral Data Set'!C99 -> 0 | E99: =D99/'Mineral Data Set'!AR99 -> 
A100: ='Mineral Data Set'!A100 -> Prg | B100: ='Mineral Data Set'!B100 -> HV6.2b_19 | C100: 0 | D100: =C100/$I$23*'Mineral Data Set'!C100 -> 0 | E100: =D100/'Mineral Data Set'!AR100 -> 
A101: ='Mineral Data Set'!A101 -> Chl | B101: ='Mineral Data Set'!B101 -> HV6.2a_3 | C101: 0 | D101: =C101/$I$23*'Mineral Data Set'!C101 -> 0 | E101: =D101/'Mineral Data Set'!AR101 -> 
A102: ='Mineral Data Set'!A102 -> Chl | B102: ='Mineral Data Set'!B102 -> HV6.2a_4 | C102: 0 | D102: =C102/$I$23*'Mineral Data Set'!C102 -> 0 | E102: =D102/'Mineral Data Set'!AR102 -> 
A103: ='Mineral Data Set'!A103 -> Ep | B103: ='Mineral Data Set'!B103 -> HV6.2b_7 | C103: 0 | D103: =C103/$I$23*'Mineral Data Set'!C103 -> 0 | E103: =D103/'Mineral Data Set'!AR103 -> 
A104: ='Mineral Data Set'!A104 -> Ep | B104: ='Mineral Data Set'!B104 -> HV6.2b_8 | C104: 0 | D104: =C104/$I$23*'Mineral Data Set'!C104 -> 0 | E104: =D104/'Mineral Data Set'!AR104 -> 
A105: ='Mineral Data Set'!A105 -> New Phase | B105: ='Mineral Data Set'!B105 -> 0 | C105: 0 | D105: =C105/$I$23*'Mineral Data Set'!C105 -> 0 | E105: =D105/'Mineral Data Set'!AR105 -> 0
A106: ='Mineral Data Set'!A106 -> New Phase | B106: ='Mineral Data Set'!B106 -> 0 | C106: 0 | D106: =C106/$I$23*'Mineral Data Set'!C106 -> 0 | E106: =D106/'Mineral Data Set'!AR106 -> 0
A107: ='Mineral Data Set'!A107 -> New Phase | B107: ='Mineral Data Set'!B107 -> 0 | C107: 0 | D107: =C107/$I$23*'Mineral Data Set'!C107 -> 0 | E107: =D107/'Mineral Data Set'!AR107 -> 0
A108: ='Mineral Data Set'!A108 -> New Phase | B108: ='Mineral Data Set'!B108 -> 0 | C108: 0 | D108: =C108/$I$23*'Mineral Data Set'!C108 -> 0 | E108: =D108/'Mineral Data Set'!AR108 -> 0
B109: Total | C109: =SUM(C3:C108) -> 100 | D109: =SUM(D3:D108) -> 100 | E109: =SUM(E3:E108) -> 

Sheet Phase Theriak converter
B2: Input oxide wt% | C2: Oxide mole prop. | D2: Atomic prop. | F2: Copy to Theriak-Domino THERIN file
A3: Wt% SiO2 | B3: ='Phase Rock Maker'!I3 -> 100 | C3: =B3/Info!C25 -> 1.664314436 | D3: =INT('Phase Rock Maker'!$Q$22*C3/$C$23)/100 -> 100 | F3: ="SI("&D3&")AL("&D4&")FE("&D22&")MG("&D9&")CA("&D11&")NA("&D12&")K("&D13&")O(?)H("&D15&")C("&D16&")S("&D17&")O("&D18&")" -> SI(100)AL(0)FE(0)MG(0)CA(0)NA(0)K(0)O(?)H(0)C(0)S(0)O(0)
A4: Al2O3 | B4: ='Phase Rock Maker'!I4 -> 0 | C4: =2*B4/Info!C27 -> 0 | D4: =INT('Phase Rock Maker'!$Q$22*C4/$C$23)/100 -> 0
A5: Fe2O3 | B5: ='Phase Rock Maker'!I5 -> 0 | C5: - | D5: -
A6: Cr2O3 | B6: ='Phase Rock Maker'!I6 -> 0 | C6: =2*B6/Info!C28 -> 0 | D6: =INT('Phase Rock Maker'!$Q$22*C6/$C$23)/100 -> 0
A7: TiO2 | B7: ='Phase Rock Maker'!I7 -> 0 | C7: =B7/Info!C26 -> 0 | D7: =INT('Phase Rock Maker'!$Q$22*C7/$C$23)/100 -> 0
A8: FeO | B8: ='Phase Rock Maker'!I8 -> 0 | C8: - | D8: -
A9: MgO | B9: ='Phase Rock Maker'!I9 -> 0 | C9: =B9/Info!C29 -> 0 | D9: =INT('Phase Rock Maker'!$Q$22*C9/$C$23)/100 -> 0
A10: MnO | B10: ='Phase Rock Maker'!I10 -> 0 | C10: =B10/Info!C31 -> 0 | D10: =INT('Phase Rock Maker'!$Q$22*C10/$C$23)/100 -> 0
A11: CaO | B11: ='Phase Rock Maker'!I11 -> 0 | C11: =B11/Info!C30 -> 0 | D11: =INT('Phase Rock Maker'!$Q$22*C11/$C$23)/100 -> 0
A12: Na2O | B12: ='Phase Rock Maker'!I12 -> 0 | C12: =2*B12/Info!C35 -> 0 | D12: =INT('Phase Rock Maker'!$Q$22*C12/$C$23)/100 -> 0
A13: K2O | B13: ='Phase Rock Maker'!I13 -> 0 | C13: =2*B13/Info!C36 -> 0 | D13: =INT('Phase Rock Maker'!$Q$22*C13/$C$23)/100 -> 0
A14: BaO | B14: ='Phase Rock Maker'!I14 -> 0 | C14: =B14/Info!C34 -> 0 | D14: =INT('Phase Rock Maker'!$Q$22*C14/$C$23)/100 -> 0
A15: H2O | B15: ='Phase Rock Maker'!I15 -> 0 | C15: =2*B15/Info!C39 -> 0 | D15: =INT('Phase Rock Maker'!$Q$22*C15/$C$23)/100 -> 0
A16: CO2 | B16: ='Phase Rock Maker'!I16 -> 0 | C16: =B16/Info!C40 -> 0 | D16: =INT('Phase Rock Maker'!$Q$22*C16/$C$23)/100 -> 0
A17: SO3 | B17: ='Phase Rock Maker'!I17 -> 0 | C17: =B17/Info!C37 -> 0 | D17: =INT('Phase Rock Maker'!$Q$22*C17/$C$23)/100 -> 0
A18: O2 | B18: ='Phase Rock Maker'!I18 -> 0 | C18: =B18/Info!C38 -> 0 | D18: =INT('Phase Rock Maker'!$Q$22*C18/$C$23)/100 -> 0
A19: Li2O | B19: ='Phase Rock Maker'!I19 -> 0 | C19: =2*B19/Info!C43 -> 0 | D19: =INT('Phase Rock Maker'!$Q$22*C19/$C$23)/100 -> 0
A20: B2O3 | B20: ='Phase Rock Maker'!I20 -> 0 | C20: =B20*B20/Info!C41 -> 0 | D20: =INT('Phase Rock Maker'!$Q$22*C20/$C$23)/100 -> 0
A21: P2O5 | B21: ='Phase Rock Maker'!I21 -> 0 | C21: =2*B21/Info!C42 -> 0 | D21: =INT('Phase Rock Maker'!$Q$22*C21/$C$23)/100 -> 0
A22: FeOtot | B22: =B8+B5*0.8998 -> 0 | C22: =B22/Info!C32 -> 0 | D22: =INT('Phase Rock Maker'!$Q$22*C22/$C$23)/100 -> 0
A23: Total | B23: ='Whole Rock Maker'!C86 -> 100 | C23: =SUM(C3:C22) -> 1.664314436 | D23: =SUM(D3:D22) -> 100
A26: Important!
A27: The value Fe2O3 from the chemical analysis is transformed into FeO (FeOtot = FeO+Fe2O3 x 0.8998).

Sheet Mineral Maker
B2: Input oxide wt% | C2: Oxide mole prop. | D2: Atomic prop. | E2: Oxygens | G2: Norm Atom prop. | H2: Rounded
A3: Wt% SiO2 | B3: 38.79873023 | C3: =B3/Info!C25 -> 0.6457328681 | D3: =INT(100*$B$22*C3/$C$22)/100 -> 30 | E3: =D3*2 -> 60 | F3: Si | G3: =(D3*$G$25) -> 3 | H3: =ROUND((D3*$G$25), 2) -> 3 | J3: ="Si("&H3&")Al("&H4&")Fe3+("&H5&")Cr("&H6&")Ti("&H7&")Fe2+("&H8&")Mg("&H9&")Mn("&H10&")Ca("&H11&")Na("&H12&")K("&H13&")Ba("&H14&")Li("&H19&")B("&H20&")PO4("&H21&")OH("&H15&")CO2("&H16&")SO3("&H17&")O2("&H18&")O("&G24-0.5*H15&")" -> Si(3)Al(1)Fe3+(0)Cr(0)Ti(0)Fe2+(1.5)Mg(1.5)Mn(0)Ca(0)Na(0)K(1)Ba(0)Li(0)B(0)PO4(0)OH(2)CO2(0)SO3(0)O2(0)O(10)
A4: Al2O3 | B4: 10.97328302 | C4: =2*B4/Info!C27 -> 0.2152442894 | D4: 10 | E4: =D4*1.5 -> 15 | F4: Al | G4: =(D4*$G$25) -> 1 | H4: =ROUND((D4*$G$25), 2) -> 1
A5: Fe2O3 | B5: 0 | C5: =2*B5/Info!C33 -> 0 | D5: 0 | E5: =D5*1.5 -> 0 | F5: Fe3+ | G5: =(D5*$G$25) -> 0 | H5: 0
A6: Cr2O3 | B6: 0 | C6: =2*B6/Info!C28 -> 0 | D6: 0 | E6: =D6*1.5 -> 0 | F6: Cr | G6: 0 | H6: 0
A7: TiO2 | B7: 0 | C7: =B7/Info!C26 -> 0 | D7: 0 | E7: =D7*2 -> 0 | F7: Ti | G7: 0 | H7: 0
A8: FeO | B8: 23.19679097 | C8: =B8/Info!C32 -> 0.322866434 | D8: 15 | E8: =D8 -> 15 | F8: Fe2+ | G8: 1.5 | H8: 1.5
A9: MgO | B9: 13.01519797 | C9: =B9/Info!C29 -> 0.322866434 | D9: 15 | E9: =D9 -> 15 | F9: Mg | G9: 1.5 | H9: 1.5
A10: MnO | B10: 0 | C10: =B10/Info!C31 -> 0 | D10: 0 | E10: =D10 -> 0 | F10: Mn | G10: 0 | H10: 0
A11: CaO | B11: 0 | C11: =B11/Info!C30 -> 0 | D11: 0 | E11: =D11 -> 0 | F11: Ca | G11: 0 | H11: 0
A12: Na2O | B12: 0 | C12: =2*B12/Info!C35 -> 0 | D12: 0 | E12: =D12*0.5 -> 0 | F12: Na | G12: 0 | H12: 0
A13: K2O | B13: 10.13837194 | C13: =2*B13/Info!C36 -> 0.2152442894 | D13: 10 | E13: =D13*0.5 -> 5 | F13: K | G13: 1 | H13: 1
A14: BaO | B14: 0 | C14: =B14/Info!C34 -> 0 | D14: 0 | E14: =D14 -> 0 | F14: Ba | G14: 0 | H14: 0
A15: H2O | B15: 3.877625873 | C15: =2*B15/Info!C39 -> 0.4304885787 | D15: 20 | E15: =D15*0.5 -> 10 | F15: OH | G15: 2 | H15: 2
A16: CO2 | B16: 0 | C16: =B16/Info!C40 -> 0 | D16: 0 | E16: =D16*2 -> 0 | F16: (CO2) | G16: 0 | H16: 0
A17: SO3 | B17: 0 | C17: =B17/Info!C37 -> 0 | D17: 0 | E17: =D17*3 -> 0 | F17: (SO3) | G17: 0 | H17: 0
A18: O2 | B18: 0 | C18: =B18/Info!C38 -> 0 | D18: 0 | E18: =D18 -> 0 | F18: (O2) | G18: 0 | H18: 0
A19: Li2O | B19: 0 | C19: =2*B19/Info!C43 -> 0 | D19: 0 | E19: =D19*0.5 -> 0 | F19: Li | G19: 0 | H19: 0
A20: B2O3 | B20: 0 | C20: =2*B20/Info!C41 -> 0 | D20: 0 | E20: =D20*1.5 -> 0 | F20: BO3 | G20: 0 | H20: 0
A21: P2O5 | B21: 0 | C21: =2*B21/Info!C42 -> 0 | D21: 0 | E21: =D21*2.5 -> 0 | F21: PO4 | G21: 0 | H21: 0
A22: Total | B22: =SUM(B3:B21) -> 100 | C22: =SUM(C3:C21) -> 2.152442894 | D22: =SUM(D3:D21) -> 100 | E22: =SUM(E3:E14)+E19+E20+E21 -> 110 | F22: Total | G22: =SUM(G3:G21) -> 10 | H22: =SUM(H3:H21) -> 10
F24: Normalise to | G24: 11 | H24: cation+ anionic oxygens*
F25: Factor | G25: =G24/E22 -> 0.1
F27: *Add all oxygens in molecules (CO3, SO4, BO3, etc.), but for (OH) only 0.5 oxygens.
F28: Leave out oxygen in (OH) if this (OH) is not part of the structure (e.g. in cordierite)
F29: and correct the oxygen number in the structural formula accordingly.

Sheet Mineral Data Set
E1: Molar Proportions | Y1: Oxide Weight Proportions | AT1: Oxide wt%
A2: Phase | B2: Structural formula | C2: Density | D2: Prop. density | E2: SiO2 | F2: Al2O3 | G2: MgO | H2: FeO | I2: Fe2O3 | J2: MnO | K2: CaO | L2: K2O | M2: Na2O | N2: BaO | O2: Cr2O3 | P2: TiO2 | Q2: SO3 | R2: O2 | S2: H2O | T2: CO2 | U2: Li2O | V2: B2O3 | W2: P2O5 | Y2: SiO2 | Z2: Al2O3 | AA2: MgO | AB2: FeO | AC2: Fe2O3 | AD2: MnO | AE2: CaO | AF2: K2O | AG2: Na2O | AH2: BaO | AI2: Cr2O3 | AJ2: TiO2 | AK2: SO3 | AL2: O2 | AM2: H2O | AN2: CO2 | AO2: Li2O | AP2: B2O3 | AQ2: P2O5 | AR2: Molar mass | AT2: SiO2 | AU2: Al2O3 | AV2: MgO | AW2: FeO | AX2: Fe2O3 | AY2: MnO | AZ2: CaO | BA2: K2O | BB2: Na2O | BC2: BaO | BD2: Cr2O3 | BE2: TiO2 | BF2: SO3 | BG2: O2 | BH2: H2O | BI2: CO2 | BJ2: Li2O | BK2: B2O3 | BL2: P2O5 | BM2: Total
A3: Quartz | B3: SiO2 | C3: 2.65 | D3: =C3*'Phase Rock Maker'!C3 -> 265 | E3: 1 | Y3: =E3*Info!$C$25 -> 60.0848 | Z3: =F3*Info!$C$27 -> 0 | AA3: =G3*Info!$C$29 -> 0 | AB3: =H3*Info!$C$32 -> 0 | AC3: =I3*Info!$C$33 -> 0 | AD3: =J3*Info!$C$31 -> 0 | AE3: =K3*Info!$C$30 -> 0 | AF3: =L3*Info!$C$36 -> 0 | AG3: =M3*Info!$C$35 -> 0 | AH3: =N3*Info!$C$34 -> 0 | AI3: =O3*Info!$C$28 -> 0 | AJ3: =P3*Info!$C$26 -> 0 | AK3: =Q3*Info!$C$37 -> 0 | AL3: =R3*Info!$C$38 -> 0 | AM3: =S3*Info!$C$39 -> 0 | AN3: =T3*Info!$C$40 -> 0 | AO3: =U3*Info!$C$43 -> 0 | AP3: =V3*Info!$C$41 -> 0 | AQ3: =W3*Info!$C$42 -> 0 | AR3: =SUM(Y3:AQ3) -> 60.0848 | AT3: =Y3/$AR3*100 -> 100 | AU3: 0 | AV3: 0 | AW3: 0 | AX3: 0 | AY3: 0 | AZ3: 0 | BA3: 0 | BB3: 0 | BC3: 0 | BD3: 0 | BE3: 0 | BF3: 0 | BG3: 0 | BH3: 0 | BI3: 0 | BJ3: 0 | BK3: =AP3/$AR3*100 -> 0 | BL3: =AQ3/$AR3*100 -> 0 | BM3: =SUM(AT3:BL3) -> 100
A4: Albite | B4: NaAlSi3O8 | C4: 2.62 | D4: =C4*'Phase Rock Maker'!C4 -> 0 | E4: 3 | F4: 0.5 | M4: 0.5 | Y4: =E4*Info!$C$25 -> 180.2544 | Z4: =F4*Info!$C$27 -> 50.9806 | AA4: =G4*Info!$C$29 -> 0 | AB4: =H4*Info!$C$32 -> 0 | AC4: =I4*Info!$C$33 -> 0 | AD4: =J4*Info!$C$31 -> 0 | AE4: =K4*Info!$C$30 -> 0 | AF4: =L4*Info!$C$36 -> 0 | AG4: =M4*Info!$C$35 -> 30.9895 | AH4: =N4*Info!$C$34 -> 0 | AI4: =O4*Info!$C$28 -> 0 | AJ4: =P4*Info!$C$26 -> 0 | AK4: =Q4*Info!$C$37 -> 0 | AL4: =R4*Info!$C$38 -> 0 | AM4: =S4*Info!$C$39 -> 0 | AN4: =T4*Info!$C$40 -> 0 | AO4: =U4*Info!$C$43 -> 0 | AP4: =V4*Info!$C$41 -> 0 | AQ4: =W4*Info!$C$42 -> 0 | AR4: =SUM(Y4:AQ4) -> 262.2245 | AT4: =Y4/$AR4*100 -> 68.74048764 | AU4: =Z4/$AR4*100 -> 19.44158536 | AV4: =AA4/$AR4*100 -> 0 | AW4: =AB4/$AR4*100 -> 0 | AX4: =AC4/$AR4*100 -> 0 | AY4: =AD4/$AR4*100 -> 0 | AZ4: =AE4/$AR4*100 -> 0 | BA4: =AF4/$AR4*100 -> 0 | BB4: =AG4/$AR4*100 -> 11.81792701 | BC4: =AH4/$AR4*100 -> 0 | BD4: =AI4/$AR4*100 -> 0 | BE4: =AJ4/$AR4*100 -> 0 | BF4: =AK4/$AR4*100 -> 0 | BG4: =AL4/$AR4*100 -> 0 | BH4: =AM4/$AR4*100 -> 0 | BI4: =AN4/$AR4*100 -> 0 | BJ4: 0 | BK4: =AP4/$AR4*100 -> 0 | BL4: =AQ4/$AR4*100 -> 0 | BM4: =SUM(AT4:BL4) -> 100
A5: Anorthite | B5: CaAl2Si2O8 | C5: 2.76 | D5: =C5*'Phase Rock Maker'!C5 -> 0 | E5: 2 | F5: 1 | K5: 1 | Y5: =E5*Info!$C$25 -> 120.1696 | Z5: =F5*Info!$C$27 -> 101.9612 | AA5: =G5*Info!$C$29 -> 0 | AB5: =H5*Info!$C$32 -> 0 | AC5: =I5*Info!$C$33 -> 0 | AD5: =J5*Info!$C$31 -> 0 | AE5: =K5*Info!$C$30 -> 56.0794 | AF5: =L5*Info!$C$36 -> 0 | AG5: =M5*Info!$C$35 -> 0 | AH5: =N5*Info!$C$34 -> 0 | AI5: =O5*Info!$C$28 -> 0 | AJ5: =P5*Info!$C$26 -> 0 | AK5: =Q5*Info!$C$37 -> 0 | AL5: =R5*Info!$C$38 -> 0 | AM5: =S5*Info!$C$39 -> 0 | AN5: =T5*Info!$C$40 -> 0 | AO5: =U5*Info!$C$43 -> 0 | AP5: =V5*Info!$C$41 -> 0 | AQ5: =W5*Info!$C$42 -> 0 | AR5: 278.2102 | AT5: =Y5/$AR5*100 -> 43.19381532 | AU5: 36.6489798 | AV5: 0 | AW5: 0 | AX5: 0 | AY5: 0 | AZ5: 20.15720488 | BA5: 0 | BB5: 0 | BC5: 0 | BD5: 0 | BE5: 0 | BF5: 0 | BG5: 0 | BH5: 0 | BI5: 0 | BJ5: 0 | BK5: 0 | BL5: 0 | BM5: =SUM(AT5:BL5) -> 100
A6: Oligoclase An15 | B6: Na0.85Ca0.15Al1.15Si2.85O8 | C6: 2.64 | D6: =C6*'Phase Rock Maker'!C6 -> 0 | E6: 2.85 | F6: 0.575 | K6: 0.15 | M6: 0.425 | Y6: =E6*Info!$C$25 -> 171.24168 | Z6: =F6*Info!$C$27 -> 58.62769 | AA6: =G6*Info!$C$29 -> 0 | AB6: =H6*Info!$C$32 -> 0 | AC6: =I6*Info!$C$33 -> 0 | AD6: =J6*Info!$C$31 -> 0 | AE6: =K6*Info!$C$30 -> 8.41191 | AF6: =L6*Info!$C$36 -> 0 | AG6: =M6*Info!$C$35 -> 26.341075 | AH6: =N6*Info!$C$34 -> 0 | AI6: =O6*Info!$C$28 -> 0 | AJ6: =P6*Info!$C$26 -> 0 | AK6: =Q6*Info!$C$37 -> 0 | AL6: =R6*Info!$C$38 -> 0 | AM6: =S6*Info!$C$39 -> 0 | AN6: =T6*Info!$C$40 -> 0 | AO6: =U6*Info!$C$43 -> 0 | AP6: =V6*Info!$C$41 -> 0 | AQ6: =W6*Info!$C$42 -> 0 | AR6: 264.622355 | AT6: =Y6/$AR6*100 -> 64.71172097 | AU6: =Z6/$AR6*100 -> 22.15522948 | AV6: =AA6/$AR6*100 -> 0 | AW6: =AB6/$AR6*100 -> 0 | AX6: =AC6/$AR6*100 -> 0 | AY6: =AD6/$AR6*100 -> 0 | AZ6: =AE6/$AR6*100 -> 3.178835741 | BA6: =AF6/$AR6*100 -> 0 | BB6: =AG6/$AR6*100 -> 9.954213808 | BC6: =AH6/$AR6*100 -> 0 | BD6: =AI6/$AR6*100 -> 0 | BE6: =AJ6/$AR6*100 -> 0 | BF6: =AK6/$AR6*100 -> 0 | BG6: =AL6/$AR6*100 -> 0 | BH6: =AM6/$AR6*100 -> 0 | BI6: =AN6/$AR6*100 -> 0 | BJ6: 0 | BK6: 0 | BL6: 0 | BM6: 100
A7: Andesine An40 | B7: Na0.6Ca0.4Al1.4Si2.6O8 | C7: 2.68 | D7: =C7*'Phase Rock Maker'!C7 -> 0 | E7: 2.6 | F7: 0.7 | K7: 0.4 | M7: 0.3 | Y7: =E7*Info!$C$25 -> 156.22048 | Z7: =F7*Info!$C$27 -> 71.37284 | AA7: =G7*Info!$C$29 -> 0 | AB7: =H7*Info!$C$32 -> 0 | AC7: =I7*Info!$C$33 -> 0 | AD7: =J7*Info!$C$31 -> 0 | AE7: =K7*Info!$C$30 -> 22.43176 | AF7: =L7*Info!$C$36 -> 0 | AG7: =M7*Info!$C$35 -> 18.5937 | AH7: =N7*Info!$C$34 -> 0 | AI7: =O7*Info!$C$28 -> 0 | AJ7: =P7*Info!$C$26 -> 0 | AK7: =Q7*Info!$C$37 -> 0 | AL7: =R7*Info!$C$38 -> 0 | AM7: =S7*Info!$C$39 -> 0 | AN7: =T7*Info!$C$40 -> 0 | AO7: =U7*Info!$C$43 -> 0 | AP7: =V7*Info!$C$41 -> 0 | AQ7: =W7*Info!$C$42 -> 0 | AR7: 268.61878 | AT7: 58.15694644 | AU7: 26.57030905 | AV7: 0 | AW7: 0 | AX7: 0 | AY7: 0 | AZ7: 8.35077875 | BA7: 0 | BB7: 6.921965769 | BC7: 0 | BD7: 0 | BE7: 0 | BF7: 0 | BG7: 0 | BH7: 0 | BI7: 0 | BJ7: 0 | BK7: 0 | BL7: 0 | BM7: 100
A8: Labradorite An60 | B8: Na0.4Ca0.6Al1.6Si2.4O8 | C8: 2.7 | D8: =C8*'Phase Rock Maker'!C8 -> 0 | E8: 2.4 | F8: 0.8 | K8: 0.6 | M8: 0.2 | Y8: =E8*Info!$C$25 -> 144.20352 | Z8: =F8*Info!$C$27 -> 81.56896 | AA8: =G8*Info!$C$29 -> 0 | AB8: =H8*Info!$C$32 -> 0 | AC8: =I8*Info!$C$33 -> 0 | AD8: =J8*Info!$C$31 -> 0 | AE8: =K8*Info!$C$30 -> 33.64764 | AF8: =L8*Info!$C$36 -> 0 | AG8: =M8*Info!$C$35 -> 12.3958 | AH8: =N8*Info!$C$34 -> 0 | AI8: =O8*Info!$C$28 -> 0 | AJ8: =P8*Info!$C$26 -> 0 | AK8: =Q8*Info!$C$37 -> 0 | AL8: =R8*Info!$C$38 -> 0 | AM8: =S8*Info!$C$39 -> 0 | AN8: =T8*Info!$C$40 -> 0 | AO8: =U8*Info!$C$43 -> 0 | AP8: =V8*Info!$C$41 -> 0 | AQ8: =W8*Info!$C$42 -> 0 | AR8: 271.81592 | AT8: 53.05190366 | AU8: 30.0088972 | AV8: 0 | AW8: 0 | AX8: 0 | AY8: 0 | AZ8: 12.37883344 | BA8: 0 | BB8: 4.560365706 | BC8: 0 | BD8: 0 | BE8: 0 | BF8: 0 | BG8: 0 | BH8: 0 | BI8: 0 | BJ8: 0 | BK8: 0 | BL8: 0 | BM8: 100
A9: Bytownite An80 | B9: Na0.2Ca0.8Al1.8Si2.2O8 | C9: 2.73 | D9: =C9*'Phase Rock Maker'!C9 -> 0 | E9: 2.2 | F9: 0.9 | K9: 0.8 | M9: 0.1 | Y9: =E9*Info!$C$25 -> 132.18656 | Z9: =F9*Info!$C$27 -> 91.76508 | AA9: =G9*Info!$C$29 -> 0 | AB9: =H9*Info!$C$32 -> 0 | AC9: =I9*Info!$C$33 -> 0 | AD9: =J9*Info!$C$31 -> 0 | AE9: =K9*Info!$C$30 -> 44.86352 | AF9: =L9*Info!$C$36 -> 0 | AG9: =M9*Info!$C$35 -> 6.1979 | AH9: =N9*Info!$C$34 -> 0 | AI9: =O9*Info!$C$28 -> 0 | AJ9: =P9*Info!$C$26 -> 0 | AK9: =Q9*Info!$C$37 -> 0 | AL9: =R9*Info!$C$38 -> 0 | AM9: =S9*Info!$C$39 -> 0 | AN9: =T9*Info!$C$40 -> 0 | AO9: =U9*Info!$C$43 -> 0 | AP9: =V9*Info!$C$41 -> 0 | AQ9: =W9*Info!$C$42 -> 0 | AR9: 275.01306 | AT9: 48.06555732 | AU9: 33.36753535 | AV9: 0 | AW9: 0 | AX9: 0 | AY9: 0 | AZ9: 16.31323254 | BA9: 0 | BB9: 2.253674789 | BC9: 0 | BD9: 0 | BE9: 0 | BF9: 0 | BG9: 0 | BH9: 0 | BI9: 0 | BJ9: 0 | BK9: 0 | BL9: 0 | BM9: 100
A10: Orthoclase | B10: KAlSi3O8 | C10: 2.563 | D10: =C10*'Phase Rock Maker'!C10 -> 0 | E10: 3 | F10: 0.5 | L10: 0.5 | Y10: =E10*Info!$C$25 -> 180.2544 | Z10: =F10*Info!$C$27 -> 50.9806 | AA10: =G10*Info!$C$29 -> 0 | AB10: =H10*Info!$C$32 -> 0 | AC10: =I10*Info!$C$33 -> 0 | AD10: =J10*Info!$C$31 -> 0 | AE10: =K10*Info!$C$30 -> 0 | AF10: =L10*Info!$C$36 -> 47.1017 | AG10: =M10*Info!$C$35 -> 0 | AH10: =N10*Info!$C$34 -> 0 | AI10: =O10*Info!$C$28 -> 0 | AJ10: =P10*Info!$C$26 -> 0 | AK10: =Q10*Info!$C$37 -> 0 | AL10: =R10*Info!$C$38 -> 0 | AM10: =S10*Info!$C$39 -> 0 | AN10: =T10*Info!$C$40 -> 0 | AO10: =U10*Info!$C$43 -> 0 | AP10: =V10*Info!$C$41 -> 0 | AQ10: =W10*Info!$C$42 -> 0 | AR10: 278.3367 | AT10: 64.76127654 | AU10: 18.31616168 | AV10: 0 | AW10: 0 | AX10: 0 | AY10: 0 | AZ10: 0 | BA10: 16.92256178 | BB10: 0 | BC10: 0 | BD10: 0 | BE10: 0 | BF10: 0 | BG10: 0 | BH10: 0 | BI10: 0 | BJ10: 0 | BK10: 0 | BL10: 0 | BM10: 100
A11: Perthite Or70Ab30 | B11: K0.7Na0.3AlSi3O8 | C11: 2.57 | D11: =C11*'Phase Rock Maker'!C11 -> 0 | E11: 3 | F11: 0.5 | L11: 0.35 | M11: 0.15 | Y11: =E11*Info!$C$25 -> 180.2544 | Z11: =F11*Info!$C$27 -> 50.9806 | AA11: =G11*Info!$C$29 -> 0 | AB11: =H11*Info!$C$32 -> 0 | AC11: =I11*Info!$C$33 -> 0 | AD11: =J11*Info!$C$31 -> 0 | AE11: =K11*Info!$C$30 -> 0 | AF11: =L11*Info!$C$36 -> 32.97119 | AG11: =M11*Info!$C$35 -> 9.29685 | AH11: =N11*Info!$C$34 -> 0 | AI11: =O11*Info!$C$28 -> 0 | AJ11: =P11*Info!$C$26 -> 0 | AK11: =Q11*Info!$C$37 -> 0 | AL11: =R11*Info!$C$38 -> 0 | AM11: =S11*Info!$C$39 -> 0 | AN11: =T11*Info!$C$40 -> 0 | AO11: =U11*Info!$C$43 -> 0 | AP11: =V11*Info!$C$41 -> 0 | AQ11: =W11*Info!$C$42 -> 0 | AR11: 273.50304 | AT11: 65.90581224 | AU11: 18.63986594 | AV11: 0 | AW11: 0 | AX11: 0 | AY11: 0 | AZ11: 0 | BA11: 12.05514571 | BB11: 3.399176112 | BC11: 0 | BD11: 0 | BE11: 0 | BF11: 0 | BG11: 0 | BH11: 0 | BI11: 0 | BJ11: 0 | BK11: 0 | BL11: 0 | BM11: 100
A12: Mesoperthite Or50Ab50 | B12: K0.5Na0.5AlSi3O8 | C12: 2.59 | D12: =C12*'Phase Rock Maker'!C12 -> 0 | E12: 3 | F12: 0.5 | L12: 0.25 | M12: 0.25 | Y12: =E12*Info!$C$25 -> 180.2544 | Z12: =F12*Info!$C$27 -> 50.9806 | AA12: =G12*Info!$C$29 -> 0 | AB12: =H12*Info!$C$32 -> 0 | AC12: =I12*Info!$C$33 -> 0 | AD12: =J12*Info!$C$31 -> 0 | AE12: =K12*Info!$C$30 -> 0 | AF12: =L12*Info!$C$36 -> 23.55085 | AG12: =M12*Info!$C$35 -> 15.49475 | AH12: =N12*Info!$C$34 -> 0 | AI12: =O12*Info!$C$28 -> 0 | AJ12: =P12*Info!$C$26 -> 0 | AK12: =Q12*Info!$C$37 -> 0 | AL12: =R12*Info!$C$38 -> 0 | AM12: =S12*Info!$C$39 -> 0 | AN12: =T12*Info!$C$40 -> 0 | AO12: =U12*Info!$C$43 -> 0 | AP12: =V12*Info!$C$41 -> 0 | AQ12: =W12*Info!$C$42 -> 0 | AR12: 270.2806 | AT12: 66.69157905 | AU12: 18.86210109 | AV12: 0 | AW12: 0 | AX12: 0 | AY12: 0 | AZ12: 0 | BA12: 8.713481471 | BB12: 5.732838391 | BC12: 0 | BD12: 0 | BE12: 0 | BF12: 0 | BG12: 0 | BH12: 0 | BI12: 0 | BJ12: 0 | BK12: 0 | BL12: 0 | BM12: 100
A13: Mesoperthite Or30Ab70 | B13: K0.3Na0.7AlSi3O8 | C13: 2.6 | D13: =C13*'Phase Rock Maker'!C13 -> 0 | E13: 3 | F13: 0.5 | L13: 0.15 | M13: 0.35 | Y13: =E13*Info!$C$25 -> 180.2544 | Z13: =F13*Info!$C$27 -> 50.9806 | AA13: =G13*Info!$C$29 -> 0 | AB13: =H13*Info!$C$32 -> 0 | AC13: =I13*Info!$C$33 -> 0 | AD13: =J13*Info!$C$31 -> 0 | AE13: =K13*Info!$C$30 -> 0 | AF13: =L13*Info!$C$36 -> 14.13051 | AG13: =M13*Info!$C$35 -> 21.69265 | AH13: =N13*Info!$C$34 -> 0 | AI13: =O13*Info!$C$28 -> 0 | AJ13: =P13*Info!$C$26 -> 0 | AK13: =Q13*Info!$C$37 -> 0 | AL13: =R13*Info!$C$38 -> 0 | AM13: =S13*Info!$C$39 -> 0 | AN13: =T13*Info!$C$40 -> 0 | AO13: =U13*Info!$C$43 -> 0 | AP13: =V13*Info!$C$41 -> 0 | AQ13: =W13*Info!$C$42 -> 0 | AR13: 267.05816 | AT13: 67.49630867 | AU13: 19.08969941 | AV13: 0 | AW13: 0 | AX13: 0 | AY13: 0 | AZ13: 0 | BA13: 5.291173279 | BB13: 8.12281864 | BC13: 0 | BD13: 0 | BE13: 0 | BF13: 0 | BG13: 0 | BH13: 0 | BI13: 0 | BJ13: 0 | BK13: 0 | BL13: 0 | BM13: 100
A14: Annite | B14: KFe2+3(Si3Al)O10(OH)2 | C14: 3.36 | D14: =C14*'Phase Rock Maker'!C14 -> 0 | E14: 3 | F14: 0.5 | H14: 3 | L14: 0.5 | S14: 1 | Y14: =E14*Info!$C$25 -> 180.2544 | Z14: =F14*Info!$C$27 -> 50.9806 | AA14: =G14*Info!$C$29 -> 0 | AB14: =H14*Info!$C$32 -> 215.5392 | AC14: =I14*Info!$C$33 -> 0 | AD14: =J14*Info!$C$31 -> 0 | AE14: =K14*Info!$C$30 -> 0 | AF14: =L14*Info!$C$36 -> 47.1017 | AG14: =M14*Info!$C$35 -> 0 | AH14: =N14*Info!$C$34 -> 0 | AI14: =O14*Info!$C$28 -> 0 | AJ14: =P14*Info!$C$26 -> 0 | AK14: =Q14*Info!$C$37 -> 0 | AL14: =R14*Info!$C$38 -> 0 | AM14: =S14*Info!$C$39 -> 18.015 | AN14: =T14*Info!$C$40 -> 0 | AO14: =U14*Info!$C$43 -> 0 | AP14: =V14*Info!$C$41 -> 0 | AQ14: =W14*Info!$C$42 -> 0 | AR14: 511.8909 | AT14: 35.21344099 | AU14: 9.959270618 | AV14: 0 | AW14: 42.1064723 | AX14: 0 | AY14: 0 | AZ14: 0 | BA14: 9.201511494 | BB14: 0 | BC14: 0 | BD14: 0 | BE14: 0 | BF14: 0 | BG14: 0 | BH14: 3.519304602 | BI14: 0 | BJ14: 0 | BK14: 0 | BL14: 0 | BM14: 100
A15: Phlogopite | B15: KMg2+3(Si3Al)O10(OH)2 | C15: 2.79 | D15: =C15*'Phase Rock Maker'!C15 -> 0 | E15: 3 | F15: 0.5 | G15: 3 | L15: 0.5 | S15: 1 | Y15: =E15*Info!$C$25 -> 180.2544 | Z15: =F15*Info!$C$27 -> 50.9806 | AA15: =G15*Info!$C$29 -> 120.9342 | AB15: =H15*Info!$C$32 -> 0 | AC15: =I15*Info!$C$33 -> 0 | AD15: =J15*Info!$C$31 -> 0 | AE15: =K15*Info!$C$30 -> 0 | AF15: =L15*Info!$C$36 -> 47.1017 | AG15: =M15*Info!$C$35 -> 0 | AH15: =N15*Info!$C$34 -> 0 | AI15: =O15*Info!$C$28 -> 0 | AJ15: =P15*Info!$C$26 -> 0 | AK15: =Q15*Info!$C$37 -> 0 | AL15: =R15*Info!$C$38 -> 0 | AM15: =S15*Info!$C$39 -> 18.015 | AN15: =T15*Info!$C$40 -> 0 | AO15: =U15*Info!$C$43 -> 0 | AP15: =V15*Info!$C$41 -> 0 | AQ15: =W15*Info!$C$42 -> 0 | AR15: 417.2859 | AT15: 43.19685856 | AU15: 12.2171873 | AV15: 28.98113739 | AW15: 0 | AX15: 0 | AY15: 0 | AZ15: 0 | BA15: 11.28763277 | BB15: 0 | BC15: 0 | BD15: 0 | BE15: 0 | BF15: 0 | BG15: 0 | BH15: 4.317183974 | BI15: 0 | BJ15: 0 | BK15: 0 | BL15: 0 | BM15: 100
A16: Ann70Phl30 | B16: KMg0.9Fe2+2.1(Si3Al)O10(OH)2 | C16: 3.19 | D16: =C16*'Phase Rock Maker'!C16 -> 0 | E16: 3 | F16: 0.5 | G16: 0.9 | H16: 2.1 | L16: 0.5 | S16: 1 | Y16: =E16*Info!$C$25 -> 180.2544 | Z16: =F16*Info!$C$27 -> 50.9806 | AA16: =G16*Info!$C$29 -> 36.28026 | AB16: =H16*Info!$C$32 -> 150.87744 | AC16: =I16*Info!$C$33 -> 0 | AD16: =J16*Info!$C$31 -> 0 | AE16: =K16*Info!$C$30 -> 0 | AF16: =L16*Info!$C$36 -> 47.1017 | AG16: =M16*Info!$C$35 -> 0 | AH16: =N16*Info!$C$34 -> 0 | AI16: =O16*Info!$C$28 -> 0 | AJ16: =P16*Info!$C$26 -> 0 | AK16: =Q16*Info!$C$37 -> 0 | AL16: =R16*Info!$C$38 -> 0 | AM16: =S16*Info!$C$39 -> 18.015 | AN16: =T16*Info!$C$40 -> 0 | AO16: =U16*Info!$C$43 -> 0 | AP16: =V16*Info!$C$41 -> 0 | AQ16: =W16*Info!$C$42 -> 0 | AR16: 483.5094 | AT16: 37.28043343 | AU16: 10.54386947 | AV16: 7.503527336 | AW16: 31.20465497 | AX16: 0 | AY16: 0 | AZ16: 0 | BA16: 9.741630669 | BB16: 0 | BC16: 0 | BD16: 0 | BE16: 0 | BF16: 0 | BG16: 0 | BH16: 3.72588413 | BI16: 0 | BJ16: 0 | BK16: 0 | BL16: 0 | BM16: 100
A17: Ann50Phl50 | B17: KMg1.5Fe2+1.5(Si3Al)O10(OH)2 | C17: 3.075 | D17: =C17*'Phase Rock Maker'!C17 -> 0 | E17: 3 | F17: 0.5 | G17: 1.5 | H17: 1.5 | L17: 0.5 | S17: 1 | Y17: =E17*Info!$C$25 -> 180.2544 | Z17: =F17*Info!$C$27 -> 50.9806 | AA17: =G17*Info!$C$29 -> 60.4671 | AB17: =H17*Info!$C$32 -> 107.7696 | AC17: =I17*Info!$C$33 -> 0 | AD17: =J17*Info!$C$31 -> 0 | AE17: =K17*Info!$C$30 -> 0 | AF17: =L17*Info!$C$36 -> 47.1017 | AG17: =M17*Info!$C$35 -> 0 | AH17: =N17*Info!$C$34 -> 0 | AI17: =O17*Info!$C$28 -> 0 | AJ17: =P17*Info!$C$26 -> 0 | AK17: =Q17*Info!$C$37 -> 0 | AL17: =R17*Info!$C$38 -> 0 | AM17: =S17*Info!$C$39 -> 18.015 | AN17: =T17*Info!$C$40 -> 0 | AO17: =U17*Info!$C$43 -> 0 | AP17: =V17*Info!$C$41 -> 0 | AQ17: =W17*Info!$C$42 -> 0 | AR17: 464.5884 | AT17: 38.79873023 | AU17: 10.97328302 | AV17: 13.01519797 | AW17: 23.19679097 | AX17: 0 | AY17: 0 | AZ17: 0 | BA17: 10.13837194 | BB17: 0 | BC17: 0 | BD17: 0 | BE17: 0 | BF17: 0 | BG17: 0 | BH17: 3.877625873 | BI17: 0 | BJ17: 0 | BK17: 0 | BL17: 0 | BM17: 100
A18: Ann30Phl70 | B18: KMg2.1Fe2+0.9(Si3Al)O10(OH)2 | C18: 2.96 | D18: =C18*'Phase Rock Maker'!C18 -> 0 | E18: 3 | F18: 0.5 | G18: 2.1 | H18: 0.9 | L18: 0.5 | S18: 1 | Y18: =E18*Info!$C$25 -> 180.2544 | Z18: =F18*Info!$C$27 -> 50.9806 | AA18: =G18*Info!$C$29 -> 84.65394 | AB18: =H18*Info!$C$32 -> 64.66176 | AC18: =I18*Info!$C$33 -> 0 | AD18: =J18*Info!$C$31 -> 0 | AE18: =K18*Info!$C$30 -> 0 | AF18: =L18*Info!$C$36 -> 47.1017 | AG18: =M18*Info!$C$35 -> 0 | AH18: =N18*Info!$C$34 -> 0 | AI18: =O18*Info!$C$28 -> 0 | AJ18: =P18*Info!$C$26 -> 0 | AK18: =Q18*Info!$C$37 -> 0 | AL18: =R18*Info!$C$38 -> 0 | AM18: =S18*Info!$C$39 -> 18.015 | AN18: =T18*Info!$C$40 -> 0 | AO18: =U18*Info!$C$43 -> 0 | AP18: =V18*Info!$C$41 -> 0 | AQ18: =W18*Info!$C$42 -> 0 | AR18: 445.6674 | AT18: 40.44594691 | AU18: 11.43915844 | AV18: 18.99486927 | AW18: 14.50897239 | AX18: 0 | AY18: 0 | AZ18: 0 | BA18: 10.56880086 | BB18: 0 | BC18: 0 | BD18: 0 | BE18: 0 | BF18: 0 | BG18: 0 | BH18: 4.042252137 | BI18: 0 | BJ18: 0 | BK18: 0 | BL18: 0 | BM18: 100
A19: Muscovite | B19: K(Si3Al3)O10(OH)2 | C19: 2.83 | D19: =C19*'Phase Rock Maker'!C19 -> 0 | E19: 3 | F19: 1.5 | L19: 0.5 | S19: 1 | Y19: =E19*Info!$C$25 -> 180.2544 | Z19: =F19*Info!$C$27 -> 152.9418 | AA19: =G19*Info!$C$29 -> 0 | AB19: =H19*Info!$C$32 -> 0 | AC19: =I19*Info!$C$33 -> 0 | AD19: =J19*Info!$C$31 -> 0 | AE19: =K19*Info!$C$30 -> 0 | AF19: =L19*Info!$C$36 -> 47.1017 | AG19: =M19*Info!$C$35 -> 0 | AH19: =N19*Info!$C$34 -> 0 | AI19: =O19*Info!$C$28 -> 0 | AJ19: =P19*Info!$C$26 -> 0 | AK19: =Q19*Info!$C$37 -> 0 | AL19: =R19*Info!$C$38 -> 0 | AM19: =S19*Info!$C$39 -> 18.015 | AN19: =T19*Info!$C$40 -> 0 | AO19: =U19*Info!$C$43 -> 0 | AP19: =V19*Info!$C$41 -> 0 | AQ19: =W19*Info!$C$42 -> 0 | AR19: 398.3129 | AT19: =Y19/$AR19*100 -> 45.25447205 | AU19: =Z19/$AR19*100 -> 38.39740064 | AV19: =AA19/$AR19*100 -> 0 | AW19: =AB19/$AR19*100 -> 0 | AX19: =AC19/$AR19*100 -> 0 | AY19: =AD19/$AR19*100 -> 0 | AZ19: =AE19/$AR19*100 -> 0 | BA19: =AF19/$AR19*100 -> 11.82530116 | BB19: =AG19/$AR19*100 -> 0 | BC19: =AH19/$AR19*100 -> 0 | BD19: =AI19/$AR19*100 -> 0 | BE19: =AJ19/$AR19*100 -> 0 | BF19: =AK19/$AR19*100 -> 0 | BG19: =AL19/$AR19*100 -> 0 | BH19: =AM19/$AR19*100 -> 4.52282615 | BI19: =AN19/$AR19*100 -> 0 | BJ19: 0 | BK19: 0 | BL19: 0 | BM19: 100
A20: Talc | B20: Mg3Si4O10(OH)2 | C20: 2.78 | D20: =C20*'Phase Rock Maker'!C20 -> 0 | E20: 4 | G20: 3 | S20: 1 | Y20: =E20*Info!$C$25 -> 240.3392 | Z20: =F20*Info!$C$27 -> 0 | AA20: =G20*Info!$C$29 -> 120.9342 | AB20: =H20*Info!$C$32 -> 0 | AC20: =I20*Info!$C$33 -> 0 | AD20: =J20*Info!$C$31 -> 0 | AE20: =K20*Info!$C$30 -> 0 | AF20: =L20*Info!$C$36 -> 0 | AG20: =M20*Info!$C$35 -> 0 | AH20: =N20*Info!$C$34 -> 0 | AI20: =O20*Info!$C$28 -> 0 | AJ20: =P20*Info!$C$26 -> 0 | AK20: =Q20*Info!$C$37 -> 0 | AL20: =R20*Info!$C$38 -> 0 | AM20: =S20*Info!$C$39 -> 18.015 | AN20: =T20*Info!$C$40 -> 0 | AO20: =U20*Info!$C$43 -> 0 | AP20: =V20*Info!$C$41 -> 0 | AQ20: =W20*Info!$C$42 -> 0 | AR20: 379.2884 | AT20: 63.36581873 | AU20: 0 | AV20: 31.88449739 | AW20: 0 | AX20: 0 | AY20: 0 | AZ20: 0 | BA20: 0 | BB20: 0 | BC20: 0 | BD20: 0 | BE20: 0 | BF20: 0 | BG20: 0 | BH20: 4.749683882 | BI20: 0 | BJ20: 0 | BK20: 0 | BL20: 0 | BM20: 100
A21: Serpentine | B21: Mg3Si2O5(OH)4 | C21: 2.57 | D21: =C21*'Phase Rock Maker'!C21 -> 0 | E21: 2 | G21: 3 | S21: 2 | Y21: =E21*Info!$C$25 -> 120.1696 | Z21: =F21*Info!$C$27 -> 0 | AA21: =G21*Info!$C$29 -> 120.9342 | AB21: =H21*Info!$C$32 -> 0 | AC21: =I21*Info!$C$33 -> 0 | AD21: =J21*Info!$C$31 -> 0 | AE21: =K21*Info!$C$30 -> 0 | AF21: =L21*Info!$C$36 -> 0 | AG21: =M21*Info!$C$35 -> 0 | AH21: =N21*Info!$C$34 -> 0 | AI21: =O21*Info!$C$28 -> 0 | AJ21: =P21*Info!$C$26 -> 0 | AK21: =Q21*Info!$C$37 -> 0 | AL21: =R21*Info!$C$38 -> 0 | AM21: =S21*Info!$C$39 -> 36.03 | AN21: =T21*Info!$C$40 -> 0 | AO21: =U21*Info!$C$43 -> 0 | AP21: =V21*Info!$C$41 -> 0 | AQ21: =W21*Info!$C$42 -> 0 | AR21: 277.1338 | AT21: 43.36158202 | AU21: 0 | AV21: 43.63747764 | AW21: 0 | AX21: 0 | AY21: 0 | AZ21: 0 | BA21: 0 | BB21: 0 | BC21: 0 | BD21: 0 | BE21: 0 | BF21: 0 | BG21: 0 | BH21: 13.00094034 | BI21: 0 | BJ21: 0 | BK21: 0 | BL21: 0 | BM21: 100
A22: Kaolinite | B22: Al2Si2O5(OH)4 | C22: 2.63 | D22: =C22*'Phase Rock Maker'!C22 -> 0 | E22: 2 | F22: 1 | S22: 2 | Y22: =E22*Info!$C$25 -> 120.1696 | Z22: =F22*Info!$C$27 -> 101.9612 | AA22: =G22*Info!$C$29 -> 0 | AB22: =H22*Info!$C$32 -> 0 | AC22: =I22*Info!$C$33 -> 0 | AD22: =J22*Info!$C$31 -> 0 | AE22: =K22*Info!$C$30 -> 0 | AF22: =L22*Info!$C$36 -> 0 | AG22: =M22*Info!$C$35 -> 0 | AH22: =N22*Info!$C$34 -> 0 | AI22: =O22*Info!$C$28 -> 0 | AJ22: =P22*Info!$C$26 -> 0 | AK22: =Q22*Info!$C$37 -> 0 | AL22: =R22*Info!$C$38 -> 0 | AM22: =S22*Info!$C$39 -> 36.03 | AN22: =T22*Info!$C$40 -> 0 | AO22: =U22*Info!$C$43 -> 0 | AP22: =V22*Info!$C$41 -> 0 | AQ22: =W22*Info!$C$42 -> 0 | AR22: 258.1608 | AT22: 46.54835281 | AU22: 39.49522933 | AV22: 0 | AW22: 0 | AX22: 0 | AY22: 0 | AZ22: 0 | BA22: 0 | BB22: 0 | BC22: 0 | BD22: 0 | BE22: 0 | BF22: 0 | BG22: 0 | BH22: 13.95641786 | BI22: 0 | BJ22: 0 | BK22: 0 | BL22: 0 | BM22: 100
A23: Illite | B23: KAl5Si7O20(OH)4 | C23: 2.75 | D23: =C23*'Phase Rock Maker'!C23 -> 0 | E23: 7 | F23: 2.5 | L23: 0.5 | S23: 2 | Y23: =E23*Info!$C$25 -> 420.5936 | Z23: =F23*Info!$C$27 -> 254.903 | AA23: =G23*Info!$C$29 -> 0 | AB23: =H23*Info!$C$32 -> 0 | AC23: =I23*Info!$C$33 -> 0 | AD23: =J23*Info!$C$31 -> 0 | AE23: =K23*Info!$C$30 -> 0 | AF23: =L23*Info!$C$36 -> 47.1017 | AG23: =M23*Info!$C$35 -> 0 | AH23: =N23*Info!$C$34 -> 0 | AI23: =O23*Info!$C$28 -> 0 | AJ23: =P23*Info!$C$26 -> 0 | AK23: =Q23*Info!$C$37 -> 0 | AL23: =R23*Info!$C$38 -> 0 | AM23: =S23*Info!$C$39 -> 36.03 | AN23: =T23*Info!$C$40 -> 0 | AO23: =U23*Info!$C$43 -> 0 | AP23: =V23*Info!$C$41 -> 0 | AQ23: =W23*Info!$C$42 -> 0 | AR23: 758.6283 | AT23: 55.44132746 | AU23: 33.60051293 | AV23: 0 | AW23: 0 | AX23: 0 | AY23: 0 | AZ23: 0 | BA23: 6.208798169 | BB23: 0 | BC23: 0 | BD23: 0 | BE23: 0 | BF23: 0 | BG23: 0 | BH23: 4.749361446 | BI23: 0 | BJ23: 0 | BK23: 0 | BL23: 0 | BM23: 100
A24: Nepheline | B24: Na3KSi4Al4O16 | C24: 2.64 | D24: =C24*'Phase Rock Maker'!C24 -> 0 | E24: 4 | F24: 2 | L24: 0.5 | M24: 1.5 | Y24: =E24*Info!$C$25 -> 240.3392 | Z24: =F24*Info!$C$27 -> 203.9224 | AA24: =G24*Info!$C$29 -> 0 | AB24: =H24*Info!$C$32 -> 0 | AC24: =I24*Info!$C$33 -> 0 | AD24: =J24*Info!$C$31 -> 0 | AE24: =K24*Info!$C$30 -> 0 | AF24: =L24*Info!$C$36 -> 47.1017 | AG24: =M24*Info!$C$35 -> 92.9685 | AH24: =N24*Info!$C$34 -> 0 | AI24: =O24*Info!$C$28 -> 0 | AJ24: =P24*Info!$C$26 -> 0 | AK24: =Q24*Info!$C$37 -> 0 | AL24: =R24*Info!$C$38 -> 0 | AM24: =S24*Info!$C$39 -> 0 | AN24: =T24*Info!$C$40 -> 0 | AO24: =U24*Info!$C$43 -> 0 | AP24: =V24*Info!$C$41 -> 0 | AQ24: =W24*Info!$C$42 -> 0 | AR24: 584.3318 | AT24: 41.13060422 | AU24: 34.89839163 | AV24: 0 | AW24: 0 | AX24: 0 | AY24: 0 | AZ24: 0 | BA24: 8.060779851 | BB24: 15.91022429 | BC24: 0 | BD24: 0 | BE24: 0 | BF24: 0 | BG24: 0 | BH24: 0 | BI24: 0 | BJ24: 0 | BK24: 0 | BL24: 0 | BM24: 100
A25: Leucite | B25: KAlSi2O6 | C25: 2.46 | D25: =C25*'Phase Rock Maker'!C25 -> 0 | E25: 2 | F25: 0.5 | L25: 0.5 | Y25: =E25*Info!$C$25 -> 120.1696 | Z25: =F25*Info!$C$27 -> 50.9806 | AA25: =G25*Info!$C$29 -> 0 | AB25: =H25*Info!$C$32 -> 0 | AC25: =I25*Info!$C$33 -> 0 | AD25: =J25*Info!$C$31 -> 0 | AE25: =K25*Info!$C$30 -> 0 | AF25: =L25*Info!$C$36 -> 47.1017 | AG25: =M25*Info!$C$35 -> 0 | AH25: =N25*Info!$C$34 -> 0 | AI25: =O25*Info!$C$28 -> 0 | AJ25: =P25*Info!$C$26 -> 0 | AK25: =Q25*Info!$C$37 -> 0 | AL25: =R25*Info!$C$38 -> 0 | AM25: =S25*Info!$C$39 -> 0 | AN25: =T25*Info!$C$40 -> 0 | AO25: =U25*Info!$C$43 -> 0 | AP25: =V25*Info!$C$41 -> 0 | AQ25: =W25*Info!$C$42 -> 0 | AR25: 218.2519 | AT25: 55.06004759 | AU25: 23.35860535 | AV25: 0 | AW25: 0 | AX25: 0 | AY25: 0 | AZ25: 0 | BA25: 21.58134706 | BB25: 0 | BC25: 0 | BD25: 0 | BE25: 0 | BF25: 0 | BG25: 0 | BH25: 0 | BI25: 0 | BJ25: 0 | BK25: 0 | BL25: 0 | BM25: 100
A26: Cordierite | B26: Mg2+2(Si5Al4)O18(OH) | C26: 2.54 | D26: =C26*'Phase Rock Maker'!C26 -> 0 | E26: 5 | F26: 2 | G26: 2 | S26: 0.5 | Y26: =E26*Info!$C$25 -> 300.424 | Z26: =F26*Info!$C$27 -> 203.9224 | AA26: =G26*Info!$C$29 -> 80.6228 | AB26: =H26*Info!$C$32 -> 0 | AC26: =I26*Info!$C$33 -> 0 | AD26: =J26*Info!$C$31 -> 0 | AE26: =K26*Info!$C$30 -> 0 | AF26: =L26*Info!$C$36 -> 0 | AG26: =M26*Info!$C$35 -> 0 | AH26: =N26*Info!$C$34 -> 0 | AI26: =O26*Info!$C$28 -> 0 | AJ26: =P26*Info!$C$26 -> 0 | AK26: =Q26*Info!$C$37 -> 0 | AL26: =R26*Info!$C$38 -> 0 | AM26: =S26*Info!$C$39 -> 9.0075 | AN26: =T26*Info!$C$40 -> 0 | AO26: =U26*Info!$C$43 -> 0 | AP26: =V26*Info!$C$41 -> 0 | AQ26: =W26*Info!$C$42 -> 0 | AR26: 593.9767 | AT26: 50.57841494 | AU26: 34.33171705 | AV26: 13.57339438 | AW26: 0 | AX26: 0 | AY26: 0 | AZ26: 0 | BA26: 0 | BB26: 0 | BC26: 0 | BD26: 0 | BE26: 0 | BF26: 0 | BG26: 0 | BH26: 1.516473626 | BI26: 0 | BJ26: 0 | BK26: 0 | BL26: 0 | BM26: 100
A27: Fe-Cordierite | B27: Fe2+2(Si5Al4)O18(OH) | C27: 2.785 | D27: =C27*'Phase Rock Maker'!C27 -> 0 | E27: 5 | F27: 2 | H27: 2 | S27: 0.5 | Y27: =E27*Info!$C$25 -> 300.424 | Z27: =F27*Info!$C$27 -> 203.9224 | AA27: =G27*Info!$C$29 -> 0 | AB27: =H27*Info!$C$32 -> 143.6928 | AC27: =I27*Info!$C$33 -> 0 | AD27: =J27*Info!$C$31 -> 0 | AE27: =K27*Info!$C$30 -> 0 | AF27: =L27*Info!$C$36 -> 0 | AG27: =M27*Info!$C$35 -> 0 | AH27: =N27*Info!$C$34 -> 0 | AI27: =O27*Info!$C$28 -> 0 | AJ27: =P27*Info!$C$26 -> 0 | AK27: =Q27*Info!$C$37 -> 0 | AL27: =R27*Info!$C$38 -> 0 | AM27: =S27*Info!$C$39 -> 9.0075 | AN27: =T27*Info!$C$40 -> 0 | AO27: =U27*Info!$C$43 -> 0 | AP27: =V27*Info!$C$41 -> 0 | AQ27: =W27*Info!$C$42 -> 0 | AR27: 657.0467 | AT27: 45.72338618 | AU27: 31.03621097 | AV27: 0 | AW27: 21.86949573 | AX27: 0 | AY27: 0 | AZ27: 0 | BA27: 0 | BB27: 0 | BC27: 0 | BD27: 0 | BE27: 0 | BF27: 0 | BG27: 0 | BH27: 1.370907121 | BI27: 0 | BJ27: 0 | BK27: 0 | BL27: 0 | BM27: 100
A28: Mg80Fe20 Cordierite | B28: Fe2+0.4Mg2+1.6(Si5Al4)O18(OH) | C28: 2.59 | D28: =C28*'Phase Rock Maker'!C28 -> 0 | E28: 5 | F28: 2 | G28: 1.6 | H28: 0.4 | S28: 0.5 | Y28: =E28*Info!$C$25 -> 300.424 | Z28: =F28*Info!$C$27 -> 203.9224 | AA28: =G28*Info!$C$29 -> 64.49824 | AB28: =H28*Info!$C$32 -> 28.73856 | AC28: =I28*Info!$C$33 -> 0 | AD28: =J28*Info!$C$31 -> 0 | AE28: =K28*Info!$C$30 -> 0 | AF28: =L28*Info!$C$36 -> 0 | AG28: =M28*Info!$C$35 -> 0 | AH28: =N28*Info!$C$34 -> 0 | AI28: =O28*Info!$C$28 -> 0 | AJ28: =P28*Info!$C$26 -> 0 | AK28: =Q28*Info!$C$37 -> 0 | AL28: =R28*Info!$C$38 -> 0 | AM28: =S28*Info!$C$39 -> 9.0075 | AN28: =T28*Info!$C$40 -> 0 | AO28: =U28*Info!$C$43 -> 0 | AP28: =V28*Info!$C$41 -> 0 | AQ28: =W28*Info!$C$42 -> 0 | AR28: 606.5907 | AT28: 49.52664128 | AU28: 33.61779203 | AV28: 10.63290947 | AW28: 4.737718531 | AX28: 0 | AY28: 0 | AZ28: 0 | BA28: 0 | BB28: 0 | BC28: 0 | BD28: 0 | BE28: 0 | BF28: 0 | BG28: 0 | BH28: 1.484938691 | BI28: 0 | BJ28: 0 | BK28: 0 | BL28: 0 | BM28: 100
A29: Fe Staurolite | B29: Fe2+2Al9Si4O20(OH)2 | C29: 3.69 | D29: =C29*'Phase Rock Maker'!C29 -> 0 | E29: 4 | F29: 4.5 | H29: 2 | S29: 1 | Y29: =E29*Info!$C$25 -> 240.3392 | Z29: =F29*Info!$C$27 -> 458.8254 | AA29: =G29*Info!$C$29 -> 0 | AB29: =H29*Info!$C$32 -> 143.6928 | AC29: =I29*Info!$C$33 -> 0 | AD29: =J29*Info!$C$31 -> 0 | AE29: =K29*Info!$C$30 -> 0 | AF29: =L29*Info!$C$36 -> 0 | AG29: =M29*Info!$C$35 -> 0 | AH29: =N29*Info!$C$34 -> 0 | AI29: =O29*Info!$C$28 -> 0 | AJ29: =P29*Info!$C$26 -> 0 | AK29: =Q29*Info!$C$37 -> 0 | AL29: =R29*Info!$C$38 -> 0 | AM29: =S29*Info!$C$39 -> 18.015 | AN29: =T29*Info!$C$40 -> 0 | AO29: =U29*Info!$C$43 -> 0 | AP29: =V29*Info!$C$41 -> 0 | AQ29: =W29*Info!$C$42 -> 0 | AR29: 860.8724 | AT29: 27.91809797 | AU29: 53.29772449 | AV29: 0 | AW29: 16.69153291 | AX29: 0 | AY29: 0 | AZ29: 0 | BA29: 0 | BB29: 0 | BC29: 0 | BD29: 0 | BE29: 0 | BF29: 0 | BG29: 0 | BH29: 2.092644624 | BI29: 0 | BJ29: 0 | BK29: 0 | BL29: 0 | BM29: 100
A30: Fe80Mg20 Staurolite | B30: Fe2+1.6Mg0.4Al9Si4O20(OH)2 | C30: 3.76 | D30: =C30*'Phase Rock Maker'!C30 -> 0 | E30: 4 | F30: 4.5 | G30: 0.4 | H30: 1.6 | S30: 1 | Y30: =E30*Info!$C$25 -> 240.3392 | Z30: =F30*Info!$C$27 -> 458.8254 | AA30: =G30*Info!$C$29 -> 16.12456 | AB30: =H30*Info!$C$32 -> 114.95424 | AC30: =I30*Info!$C$33 -> 0 | AD30: =J30*Info!$C$31 -> 0 | AE30: =K30*Info!$C$30 -> 0 | AF30: =L30*Info!$C$36 -> 0 | AG30: =M30*Info!$C$35 -> 0 | AH30: =N30*Info!$C$34 -> 0 | AI30: =O30*Info!$C$28 -> 0 | AJ30: =P30*Info!$C$26 -> 0 | AK30: =Q30*Info!$C$37 -> 0 | AL30: =R30*Info!$C$38 -> 0 | AM30: =S30*Info!$C$39 -> 18.015 | AN30: =T30*Info!$C$40 -> 0 | AO30: =U30*Info!$C$43 -> 0 | AP30: =V30*Info!$C$41 -> 0 | AQ30: =W30*Info!$C$42 -> 0 | AR30: 848.2584 | AT30: 28.33325317 | AU30: 54.09028664 | AV30: 1.900901895 | AW30: 13.55179507 | AX30: 0 | AY30: 0 | AZ30: 0 | BA30: 0 | BB30: 0 | BC30: 0 | BD30: 0 | BE30: 0 | BF30: 0 | BG30: 0 | BH30: 2.123763231 | BI30: 0 | BJ30: 0 | BK30: 0 | BL30: 0 | BM30: 100
A31: Fe Chloritoid | B31: Fe2+Al2OSiO4(OH)2 | C31: 3.8 | D31: =C31*'Phase Rock Maker'!C31 -> 0 | E31: 1 | F31: 1 | H31: 1 | S31: 1 | Y31: =E31*Info!$C$25 -> 60.0848 | Z31: =F31*Info!$C$27 -> 101.9612 | AA31: =G31*Info!$C$29 -> 0 | AB31: =H31*Info!$C$32 -> 71.8464 | AC31: =I31*Info!$C$33 -> 0 | AD31: =J31*Info!$C$31 -> 0 | AE31: =K31*Info!$C$30 -> 0 | AF31: =L31*Info!$C$36 -> 0 | AG31: =M31*Info!$C$35 -> 0 | AH31: =N31*Info!$C$34 -> 0 | AI31: =O31*Info!$C$28 -> 0 | AJ31: =P31*Info!$C$26 -> 0 | AK31: =Q31*Info!$C$37 -> 0 | AL31: =R31*Info!$C$38 -> 0 | AM31: =S31*Info!$C$39 -> 18.015 | AN31: =T31*Info!$C$40 -> 0 | AO31: =U31*Info!$C$43 -> 0 | AP31: =V31*Info!$C$41 -> 0 | AQ31: =W31*Info!$C$42 -> 0 | AR31: 251.9074 | AT31: 23.85193924 | AU31: 40.47566685 | AV31: 0 | AW31: 28.52095651 | AX31: 0 | AY31: 0 | AZ31: 0 | BA31: 0 | BB31: 0 | BC31: 0 | BD31: 0 | BE31: 0 | BF31: 0 | BG31: 0 | BH31: 7.151437393 | BI31: 0 | BJ31: 0 | BK31: 0 | BL31: 0 | BM31: 100
A32: Mg Chloritoid | B32: MgAl2OSiO4(OH)2 | C32: 3.46 | D32: =C32*'Phase Rock Maker'!C32 -> 0 | E32: 1 | F32: 1 | G32: 1 | S32: 1 | Y32: =E32*Info!$C$25 -> 60.0848 | Z32: =F32*Info!$C$27 -> 101.9612 | AA32: =G32*Info!$C$29 -> 40.3114 | AB32: =H32*Info!$C$32 -> 0 | AC32: =I32*Info!$C$33 -> 0 | AD32: =J32*Info!$C$31 -> 0 | AE32: =K32*Info!$C$30 -> 0 | AF32: =L32*Info!$C$36 -> 0 | AG32: =M32*Info!$C$35 -> 0 | AH32: =N32*Info!$C$34 -> 0 | AI32: =O32*Info!$C$28 -> 0 | AJ32: =P32*Info!$C$26 -> 0 | AK32: =Q32*Info!$C$37 -> 0 | AL32: =R32*Info!$C$38 -> 0 | AM32: =S32*Info!$C$39 -> 18.015 | AN32: =T32*Info!$C$40 -> 0 | AO32: =U32*Info!$C$43 -> 0 | AP32: =V32*Info!$C$41 -> 0 | AQ32: =W32*Info!$C$42 -> 0 | AR32: 220.3724 | AT32: 27.26512031 | AU32: 46.26768143 | AV32: 18.29239959 | AW32: 0 | AX32: 0 | AY32: 0 | AZ32: 0 | BA32: 0 | BB32: 0 | BC32: 0 | BD32: 0 | BE32: 0 | BF32: 0 | BG32: 0 | BH32: 8.174798659 | BI32: 0 | BJ32: 0 | BK32: 0 | BL32: 0 | BM32: 100
A33: Fe80Mg20 Chloritoid | B33: Mg0.2Fe0.8Al2OSiO4(OH)2 | C33: 3.73 | D33: =C33*'Phase Rock Maker'!C33 -> 0 | E33: 1 | F33: 1 | G33: 0.2 | H33: 0.8 | S33: 1 | Y33: =E33*Info!$C$25 -> 60.0848 | Z33: =F33*Info!$C$27 -> 101.9612 | AA33: =G33*Info!$C$29 -> 8.06228 | AB33: =H33*Info!$C$32 -> 57.47712 | AC33: =I33*Info!$C$33 -> 0 | AD33: =J33*Info!$C$31 -> 0 | AE33: =K33*Info!$C$30 -> 0 | AF33: =L33*Info!$C$36 -> 0 | AG33: =M33*Info!$C$35 -> 0 | AH33: =N33*Info!$C$34 -> 0 | AI33: =O33*Info!$C$28 -> 0 | AJ33: =P33*Info!$C$26 -> 0 | AK33: =Q33*Info!$C$37 -> 0 | AL33: =R33*Info!$C$38 -> 0 | AM33: =S33*Info!$C$39 -> 18.015 | AN33: =T33*Info!$C$40 -> 0 | AO33: =U33*Info!$C$43 -> 0 | AP33: =V33*Info!$C$41 -> 0 | AQ33: =W33*Info!$C$42 -> 0 | AR33: 245.6004 | AT33: 24.46445527 | AU33: 41.51507897 | AV33: 3.28268195 | AW33: 23.40269804 | AX33: 0 | AY33: 0 | AZ33: 0 | BA33: 0 | BB33: 0 | BC33: 0 | BD33: 0 | BE33: 0 | BF33: 0 | BG33: 0 | BH33: 7.335085773 | BI33: 0 | BJ33: 0 | BK33: 0 | BL33: 0 | BM33: 100
A34: Sillimanite | B34: Al2SiO5 | C34: 3.24 | D34: =C34*'Phase Rock Maker'!C34 -> 0 | E34: 1 | F34: 1 | Y34: =E34*Info!$C$25 -> 60.0848 | Z34: =F34*Info!$C$27 -> 101.9612 | AA34: =G34*Info!$C$29 -> 0 | AB34: =H34*Info!$C$32 -> 0 | AC34: =I34*Info!$C$33 -> 0 | AD34: =J34*Info!$C$31 -> 0 | AE34: =K34*Info!$C$30 -> 0 | AF34: =L34*Info!$C$36 -> 0 | AG34: =M34*Info!$C$35 -> 0 | AH34: =N34*Info!$C$34 -> 0 | AI34: =O34*Info!$C$28 -> 0 | AJ34: =P34*Info!$C$26 -> 0 | AK34: =Q34*Info!$C$37 -> 0 | AL34: =R34*Info!$C$38 -> 0 | AM34: =S34*Info!$C$39 -> 0 | AN34: =T34*Info!$C$40 -> 0 | AO34: =U34*Info!$C$43 -> 0 | AP34: =V34*Info!$C$41 -> 0 | AQ34: =W34*Info!$C$42 -> 0 | AR34: 162.046 | AT34: 37.07885415 | AU34: 62.92114585 | AV34: 0 | AW34: 0 | AX34: 0 | AY34: 0 | AZ34: 0 | BA34: 0 | BB34: 0 | BC34: 0 | BD34: 0 | BE34: 0 | BF34: 0 | BG34: 0 | BH34: 0 | BI34: 0 | BJ34: 0 | BK34: 0 | BL34: 0 | BM34: 100
A35: Kyanite | B35: Al2SiO5 | C35: 3.67 | D35: =C35*'Phase Rock Maker'!C35 -> 0 | E35: 1 | F35: 1 | Y35: =E35*Info!$C$25 -> 60.0848 | Z35: =F35*Info!$C$27 -> 101.9612 | AA35: =G35*Info!$C$29 -> 0 | AB35: =H35*Info!$C$32 -> 0 | AC35: =I35*Info!$C$33 -> 0 | AD35: =J35*Info!$C$31 -> 0 | AE35: =K35*Info!$C$30 -> 0 | AF35: =L35*Info!$C$36 -> 0 | AG35: =M35*Info!$C$35 -> 0 | AH35: =N35*Info!$C$34 -> 0 | AI35: =O35*Info!$C$28 -> 0 | AJ35: =P35*Info!$C$26 -> 0 | AK35: =Q35*Info!$C$37 -> 0 | AL35: =R35*Info!$C$38 -> 0 | AM35: =S35*Info!$C$39 -> 0 | AN35: =T35*Info!$C$40 -> 0 | AO35: =U35*Info!$C$43 -> 0 | AP35: =V35*Info!$C$41 -> 0 | AQ35: =W35*Info!$C$42 -> 0 | AR35: 162.046 | AT35: 37.07885415 | AU35: 62.92114585 | AV35: 0 | AW35: 0 | AX35: 0 | AY35: 0 | AZ35: 0 | BA35: 0 | BB35: 0 | BC35: 0 | BD35: 0 | BE35: 0 | BF35: 0 | BG35: 0 | BH35: 0 | BI35: 0 | BJ35: 0 | BK35: 0 | BL35: 0 | BM35: 100
A36: Andalusite | B36: Al2SiO5 | C36: 3.15 | D36: =C36*'Phase Rock Maker'!C36 -> 0 | E36: 1 | F36: 1 | Y36: =E36*Info!$C$25 -> 60.0848 | Z36: =F36*Info!$C$27 -> 101.9612 | AA36: =G36*Info!$C$29 -> 0 | AB36: =H36*Info!$C$32 -> 0 | AC36: =I36*Info!$C$33 -> 0 | AD36: =J36*Info!$C$31 -> 0 | AE36: =K36*Info!$C$30 -> 0 | AF36: =L36*Info!$C$36 -> 0 | AG36: =M36*Info!$C$35 -> 0 | AH36: =N36*Info!$C$34 -> 0 | AI36: =O36*Info!$C$28 -> 0 | AJ36: =P36*Info!$C$26 -> 0 | AK36: =Q36*Info!$C$37 -> 0 | AL36: =R36*Info!$C$38 -> 0 | AM36: =S36*Info!$C$39 -> 0 | AN36: =T36*Info!$C$40 -> 0 | AO36: =U36*Info!$C$43 -> 0 | AP36: =V36*Info!$C$41 -> 0 | AQ36: =W36*Info!$C$42 -> 0 | AR36: 162.046 | AT36: 37.07885415 | AU36: 62.92114585 | AV36: 0 | AW36: 0 | AX36: 0 | AY36: 0 | AZ36: 0 | BA36: 0 | BB36: 0 | BC36: 0 | BD36: 0 | BE36: 0 | BF36: 0 | BG36: 0 | BH36: 0 | BI36: 0 | BJ36: 0 | BK36: 0 | BL36: 0 | BM36: 100
A37: Almandine | B37: Fe2+3Al2(SiO4)3 | C37: 4.313 | D37: =C37*'Phase Rock Maker'!C37 -> 0 | E37: 3 | F37: 1 | H37: 3 | Y37: =E37*Info!$C$25 -> 180.2544 | Z37: =F37*Info!$C$27 -> 101.9612 | AA37: =G37*Info!$C$29 -> 0 | AB37: =H37*Info!$C$32 -> 215.5392 | AC37: =I37*Info!$C$33 -> 0 | AD37: =J37*Info!$C$31 -> 0 | AE37: =K37*Info!$C$30 -> 0 | AF37: =L37*Info!$C$36 -> 0 | AG37: =M37*Info!$C$35 -> 0 | AH37: =N37*Info!$C$34 -> 0 | AI37: =O37*Info!$C$28 -> 0 | AJ37: =P37*Info!$C$26 -> 0 | AK37: =Q37*Info!$C$37 -> 0 | AL37: =R37*Info!$C$38 -> 0 | AM37: =S37*Info!$C$39 -> 0 | AN37: =T37*Info!$C$40 -> 0 | AO37: =U37*Info!$C$43 -> 0 | AP37: =V37*Info!$C$41 -> 0 | AQ37: =W37*Info!$C$42 -> 0 | AR37: 497.7548 | AT37: 36.21349307 | AU37: 20.48422235 | AV37: 0 | AW37: 43.30228458 | AX37: 0 | AY37: 0 | AZ37: 0 | BA37: 0 | BB37: 0 | BC37: 0 | BD37: 0 | BE37: 0 | BF37: 0 | BG37: 0 | BH37: 0 | BI37: 0 | BJ37: 0 | BK37: 0 | BL37: 0 | BM37: 100
A38: Pyrope | B38: Mg2+3Al2(SiO4)3 | C38: 3.56 | D38: =C38*'Phase Rock Maker'!C38 -> 0 | E38: 3 | F38: 1 | G38: 3 | Y38: =E38*Info!$C$25 -> 180.2544 | Z38: =F38*Info!$C$27 -> 101.9612 | AA38: =G38*Info!$C$29 -> 120.9342 | AB38: =H38*Info!$C$32 -> 0 | AC38: =I38*Info!$C$33 -> 0 | AD38: =J38*Info!$C$31 -> 0 | AE38: =K38*Info!$C$30 -> 0 | AF38: =L38*Info!$C$36 -> 0 | AG38: =M38*Info!$C$35 -> 0 | AH38: =N38*Info!$C$34 -> 0 | AI38: =O38*Info!$C$28 -> 0 | AJ38: =P38*Info!$C$26 -> 0 | AK38: =Q38*Info!$C$37 -> 0 | AL38: =R38*Info!$C$38 -> 0 | AM38: =S38*Info!$C$39 -> 0 | AN38: =T38*Info!$C$40 -> 0 | AO38: =U38*Info!$C$43 -> 0 | AP38: =V38*Info!$C$41 -> 0 | AQ38: =W38*Info!$C$42 -> 0 | AR38: 403.1498 | AT38: 44.71151914 | AU38: 25.29114488 | AV38: 29.99733598 | AW38: 0 | AX38: 0 | AY38: 0 | AZ38: 0 | BA38: 0 | BB38: 0 | BC38: 0 | BD38: 0 | BE38: 0 | BF38: 0 | BG38: 0 | BH38: 0 | BI38: 0 | BJ38: 0 | BK38: 0 | BL38: 0 | BM38: 100
A39: Grossular | B39: Ca2+3Al2(SiO4)3 | C39: 3.594 | D39: =C39*'Phase Rock Maker'!C39 -> 0 | E39: 3 | F39: 1 | K39: 3 | Y39: =E39*Info!$C$25 -> 180.2544 | Z39: =F39*Info!$C$27 -> 101.9612 | AA39: =G39*Info!$C$29 -> 0 | AB39: =H39*Info!$C$32 -> 0 | AC39: =I39*Info!$C$33 -> 0 | AD39: =J39*Info!$C$31 -> 0 | AE39: =K39*Info!$C$30 -> 168.2382 | AF39: =L39*Info!$C$36 -> 0 | AG39: =M39*Info!$C$35 -> 0 | AH39: =N39*Info!$C$34 -> 0 | AI39: =O39*Info!$C$28 -> 0 | AJ39: =P39*Info!$C$26 -> 0 | AK39: =Q39*Info!$C$37 -> 0 | AL39: =R39*Info!$C$38 -> 0 | AM39: =S39*Info!$C$39 -> 0 | AN39: =T39*Info!$C$40 -> 0 | AO39: =U39*Info!$C$43 -> 0 | AP39: =V39*Info!$C$41 -> 0 | AQ39: =W39*Info!$C$42 -> 0 | AR39: 450.4538 | AT39: 40.01617924 | AU39: 22.63521808 | AV39: 0 | AW39: 0 | AX39: 0 | AY39: 0 | AZ39: 37.34860268 | BA39: 0 | BB39: 0 | BC39: 0 | BD39: 0 | BE39: 0 | BF39: 0 | BG39: 0 | BH39: 0 | BI39: 0 | BJ39: 0 | BK39: 0 | BL39: 0 | BM39: 100
A40: Andradite | B40: Ca3Fe3+2(SiO4)3 | C40: 3.859 | D40: =C40*'Phase Rock Maker'!C40 -> 0 | E40: 3 | I40: 1 | K40: 3 | Y40: =E40*Info!$C$25 -> 180.2544 | Z40: =F40*Info!$C$27 -> 0 | AA40: =G40*Info!$C$29 -> 0 | AB40: =H40*Info!$C$32 -> 0 | AC40: =I40*Info!$C$33 -> 159.6922 | AD40: =J40*Info!$C$31 -> 0 | AE40: =K40*Info!$C$30 -> 168.2382 | AF40: =L40*Info!$C$36 -> 0 | AG40: =M40*Info!$C$35 -> 0 | AH40: =N40*Info!$C$34 -> 0 | AI40: =O40*Info!$C$28 -> 0 | AJ40: =P40*Info!$C$26 -> 0 | AK40: =Q40*Info!$C$37 -> 0 | AL40: =R40*Info!$C$38 -> 0 | AM40: =S40*Info!$C$39 -> 0 | AN40: =T40*Info!$C$40 -> 0 | AO40: =U40*Info!$C$43 -> 0 | AP40: =V40*Info!$C$41 -> 0 | AQ40: =W40*Info!$C$42 -> 0 | AR40: 508.1848 | AT40: 35.47024626 | AU40: 0 | AV40: 0 | AW40: 0 | AX40: 31.42404102 | AY40: 0 | AZ40: 33.10571272 | BA40: 0 | BB40: 0 | BC40: 0 | BD40: 0 | BE40: 0 | BF40: 0 | BG40: 0 | BH40: 0 | BI40: 0 | BJ40: 0 | BK40: 0 | BL40: 0 | BM40: 100
A41: Spessartine | B41: Mn3Fe3+2(SiO4)3 | C41: 4.18 | D41: =C41*'Phase Rock Maker'!C41 -> 0 | E41: 3 | F41: 1 | J41: 3 | Y41: =E41*Info!$C$25 -> 180.2544 | Z41: =F41*Info!$C$27 -> 101.9612 | AA41: =G41*Info!$C$29 -> 0 | AB41: =H41*Info!$C$32 -> 0 | AC41: =I41*Info!$C$33 -> 0 | AD41: =J41*Info!$C$31 -> 212.8125 | AE41: =K41*Info!$C$30 -> 0 | AF41: =L41*Info!$C$36 -> 0 | AG41: =M41*Info!$C$35 -> 0 | AH41: =N41*Info!$C$34 -> 0 | AI41: =O41*Info!$C$28 -> 0 | AJ41: =P41*Info!$C$26 -> 0 | AK41: =Q41*Info!$C$37 -> 0 | AL41: =R41*Info!$C$38 -> 0 | AM41: =S41*Info!$C$39 -> 0 | AN41: =T41*Info!$C$40 -> 0 | AO41: =U41*Info!$C$43 -> 0 | AP41: =V41*Info!$C$41 -> 0 | AQ41: =W41*Info!$C$42 -> 0 | AR41: 495.0281 | AT41: 36.41296322 | AU41: 20.59705298 | AV41: 0 | AW41: 0 | AX41: 0 | AY41: 42.9899838 | AZ41: 0 | BA41: 0 | BB41: 0 | BC41: 0 | BD41: 0 | BE41: 0 | BF41: 0 | BG41: 0 | BH41: 0 | BI41: 0 | BJ41: 0 | BK41: 0 | BL41: 0 | BM41: 100
A42: Alm80Pyp20 | B42: Fe2+2.4Mg0.6Al2(SiO4)3 | C42: 4.16 | D42: =C42*'Phase Rock Maker'!C42 -> 0 | E42: 3 | F42: 1 | G42: 0.6 | H42: 2.4 | Y42: =E42*Info!$C$25 -> 180.2544 | Z42: =F42*Info!$C$27 -> 101.9612 | AA42: =G42*Info!$C$29 -> 24.18684 | AB42: =H42*Info!$C$32 -> 172.43136 | AC42: =I42*Info!$C$33 -> 0 | AD42: =J42*Info!$C$31 -> 0 | AE42: =K42*Info!$C$30 -> 0 | AF42: =L42*Info!$C$36 -> 0 | AG42: =M42*Info!$C$35 -> 0 | AH42: =N42*Info!$C$34 -> 0 | AI42: =O42*Info!$C$28 -> 0 | AJ42: =P42*Info!$C$26 -> 0 | AK42: =Q42*Info!$C$37 -> 0 | AL42: =R42*Info!$C$38 -> 0 | AM42: =S42*Info!$C$39 -> 0 | AN42: =T42*Info!$C$40 -> 0 | AO42: =U42*Info!$C$43 -> 0 | AP42: =V42*Info!$C$41 -> 0 | AQ42: =W42*Info!$C$42 -> 0 | AR42: 478.8338 | AT42: 37.64446035 | AU42: 21.29365137 | AV42: 5.051197305 | AW42: 36.01069097 | AX42: 0 | AY42: 0 | AZ42: 0 | BA42: 0 | BB42: 0 | BC42: 0 | BD42: 0 | BE42: 0 | BF42: 0 | BG42: 0 | BH42: 0 | BI42: 0 | BJ42: 0 | BK42: 0 | BL42: 0 | BM42: 100
A43: Alm70Pyp20Gross10 | B43: Fe2+2.1Mg0.6Ca0.3Al2(SiO4)3 | C43: 4.085 | D43: =C43*'Phase Rock Maker'!C43 -> 0 | E43: 3 | F43: 1 | G43: 0.6 | H43: 2.1 | K43: 0.3 | Y43: =E43*Info!$C$25 -> 180.2544 | Z43: =F43*Info!$C$27 -> 101.9612 | AA43: =G43*Info!$C$29 -> 24.18684 | AB43: =H43*Info!$C$32 -> 150.87744 | AC43: =I43*Info!$C$33 -> 0 | AD43: =J43*Info!$C$31 -> 0 | AE43: =K43*Info!$C$30 -> 16.82382 | AF43: =L43*Info!$C$36 -> 0 | AG43: =M43*Info!$C$35 -> 0 | AH43: =N43*Info!$C$34 -> 0 | AI43: =O43*Info!$C$28 -> 0 | AJ43: =P43*Info!$C$26 -> 0 | AK43: =Q43*Info!$C$37 -> 0 | AL43: =R43*Info!$C$38 -> 0 | AM43: =S43*Info!$C$39 -> 0 | AN43: =T43*Info!$C$40 -> 0 | AO43: =U43*Info!$C$43 -> 0 | AP43: =V43*Info!$C$41 -> 0 | AQ43: =W43*Info!$C$42 -> 0 | AR43: 474.1037 | AT43: 38.02003654 | AU43: 21.50609666 | AV43: 5.101592753 | AW43: 31.82372127 | AX43: 0 | AY43: 0 | AZ43: 3.548552774 | BA43: 0 | BB43: 0 | BC43: 0 | BD43: 0 | BE43: 0 | BF43: 0 | BG43: 0 | BH43: 0 | BI43: 0 | BJ43: 0 | BK43: 0 | BL43: 0 | BM43: 100
A44: Alm60Pyp20Spess10Gross10 | B44: Fe2+1.8Mg0.6Ca0.3Mn0.3Al2(SiO4)3 | C44: 4.06 | D44: =C44*'Phase Rock Maker'!C44 -> 0 | E44: 3 | F44: 1 | G44: 0.6 | H44: 1.8 | J44: 0.3 | K44: 0.3 | Y44: =E44*Info!$C$25 -> 180.2544 | Z44: =F44*Info!$C$27 -> 101.9612 | AA44: =G44*Info!$C$29 -> 24.18684 | AB44: =H44*Info!$C$32 -> 129.32352 | AC44: =I44*Info!$C$33 -> 0 | AD44: =J44*Info!$C$31 -> 21.28125 | AE44: =K44*Info!$C$30 -> 16.82382 | AF44: =L44*Info!$C$36 -> 0 | AG44: =M44*Info!$C$35 -> 0 | AH44: =N44*Info!$C$34 -> 0 | AI44: =O44*Info!$C$28 -> 0 | AJ44: =P44*Info!$C$26 -> 0 | AK44: =Q44*Info!$C$37 -> 0 | AL44: =R44*Info!$C$38 -> 0 | AM44: =S44*Info!$C$39 -> 0 | AN44: =T44*Info!$C$40 -> 0 | AO44: =U44*Info!$C$43 -> 0 | AP44: =V44*Info!$C$41 -> 0 | AQ44: =W44*Info!$C$42 -> 0 | AR44: 473.83103 | AT44: 38.04191549 | AU44: 21.51847252 | AV44: 5.104528507 | AW44: 27.29317242 | AX44: 0 | AY44: 4.49131624 | AZ44: 3.550594819 | BA44: 0 | BB44: 0 | BC44: 0 | BD44: 0 | BE44: 0 | BF44: 0 | BG44: 0 | BH44: 0 | BI44: 0 | BJ44: 0 | BK44: 0 | BL44: 0 | BM44: 100
A45: Forsterite | B45: Mg2SiO4 | C45: 3.27 | D45: =C45*'Phase Rock Maker'!C45 -> 0 | E45: 1 | G45: 2 | Y45: =E45*Info!$C$25 -> 60.0848 | Z45: =F45*Info!$C$27 -> 0 | AA45: =G45*Info!$C$29 -> 80.6228 | AB45: =H45*Info!$C$32 -> 0 | AC45: =I45*Info!$C$33 -> 0 | AD45: =J45*Info!$C$31 -> 0 | AE45: =K45*Info!$C$30 -> 0 | AF45: =L45*Info!$C$36 -> 0 | AG45: =M45*Info!$C$35 -> 0 | AH45: =N45*Info!$C$34 -> 0 | AI45: =O45*Info!$C$28 -> 0 | AJ45: =P45*Info!$C$26 -> 0 | AK45: =Q45*Info!$C$37 -> 0 | AL45: =R45*Info!$C$38 -> 0 | AM45: =S45*Info!$C$39 -> 0 | AN45: =T45*Info!$C$40 -> 0 | AO45: =U45*Info!$C$43 -> 0 | AP45: =V45*Info!$C$41 -> 0 | AQ45: =W45*Info!$C$42 -> 0 | AR45: 140.7076 | AT45: 42.70188675 | AU45: 0 | AV45: 57.29811325 | AW45: 0 | AX45: 0 | AY45: 0 | AZ45: 0 | BA45: 0 | BB45: 0 | BC45: 0 | BD45: 0 | BE45: 0 | BF45: 0 | BG45: 0 | BH45: 0 | BI45: 0 | BJ45: 0 | BK45: 0 | BL45: 0 | BM45: 100
A46: Fayalite | B46: Fe2SiO4 | C46: 4.4 | D46: =C46*'Phase Rock Maker'!C46 -> 0 | E46: 1 | H46: 2 | Y46: =E46*Info!$C$25 -> 60.0848 | Z46: =F46*Info!$C$27 -> 0 | AA46: =G46*Info!$C$29 -> 0 | AB46: =H46*Info!$C$32 -> 143.6928 | AC46: =I46*Info!$C$33 -> 0 | AD46: =J46*Info!$C$31 -> 0 | AE46: =K46*Info!$C$30 -> 0 | AF46: =L46*Info!$C$36 -> 0 | AG46: =M46*Info!$C$35 -> 0 | AH46: =N46*Info!$C$34 -> 0 | AI46: =O46*Info!$C$28 -> 0 | AJ46: =P46*Info!$C$26 -> 0 | AK46: =Q46*Info!$C$37 -> 0 | AL46: =R46*Info!$C$38 -> 0 | AM46: =S46*Info!$C$39 -> 0 | AN46: =T46*Info!$C$40 -> 0 | AO46: =U46*Info!$C$43 -> 0 | AP46: =V46*Info!$C$41 -> 0 | AQ46: =W46*Info!$C$42 -> 0 | AR46: 203.7776 | AT46: 29.48547829 | AU46: 0 | AV46: 0 | AW46: 70.51452171 | AX46: 0 | AY46: 0 | AZ46: 0 | BA46: 0 | BB46: 0 | BC46: 0 | BD46: 0 | BE46: 0 | BF46: 0 | BG46: 0 | BH46: 0 | BI46: 0 | BJ46: 0 | BK46: 0 | BL46: 0 | BM46: 100
A47: Chrysolite Fa20Fo80 | B47: Fe0.4Mg1.6SiO4 | C47: 3.4 | D47: =C47*'Phase Rock Maker'!C47 -> 0 | E47: 1 | G47: 1.6 | H47: 0.4 | Y47: =E47*Info!$C$25 -> 60.0848 | Z47: =F47*Info!$C$27 -> 0 | AA47: =G47*Info!$C$29 -> 64.49824 | AB47: =H47*Info!$C$32 -> 28.73856 | AC47: =I47*Info!$C$33 -> 0 | AD47: =J47*Info!$C$31 -> 0 | AE47: =K47*Info!$C$30 -> 0 | AF47: =L47*Info!$C$36 -> 0 | AG47: =M47*Info!$C$35 -> 0 | AH47: =N47*Info!$C$34 -> 0 | AI47: =O47*Info!$C$28 -> 0 | AJ47: =P47*Info!$C$26 -> 0 | AK47: =Q47*Info!$C$37 -> 0 | AL47: =R47*Info!$C$38 -> 0 | AM47: =S47*Info!$C$39 -> 0 | AN47: =T47*Info!$C$40 -> 0 | AO47: =U47*Info!$C$43 -> 0 | AP47: =V47*Info!$C$41 -> 0 | AQ47: =W47*Info!$C$42 -> 0 | AR47: 153.3216 | AT47: 39.18873792 | AU47: 0 | AV47: 42.06728863 | AW47: 18.74397345 | AX47: 0 | AY47: 0 | AZ47: 0 | BA47: 0 | BB47: 0 | BC47: 0 | BD47: 0 | BE47: 0 | BF47: 0 | BG47: 0 | BH47: 0 | BI47: 0 | BJ47: 0 | BK47: 0 | BL47: 0 | BM47: 100
A48: Hortonolite Fa50Fo50 | B48: FeMgSiO4 | C48: 3.75 | D48: =C48*'Phase Rock Maker'!C48 -> 0 | E48: 1 | G48: 1 | H48: 1 | Y48: =E48*Info!$C$25 -> 60.0848 | Z48: =F48*Info!$C$27 -> 0 | AA48: =G48*Info!$C$29 -> 40.3114 | AB48: =H48*Info!$C$32 -> 71.8464 | AC48: =I48*Info!$C$33 -> 0 | AD48: =J48*Info!$C$31 -> 0 | AE48: =K48*Info!$C$30 -> 0 | AF48: =L48*Info!$C$36 -> 0 | AG48: =M48*Info!$C$35 -> 0 | AH48: =N48*Info!$C$34 -> 0 | AI48: =O48*Info!$C$28 -> 0 | AJ48: =P48*Info!$C$26 -> 0 | AK48: =Q48*Info!$C$37 -> 0 | AL48: =R48*Info!$C$38 -> 0 | AM48: =S48*Info!$C$39 -> 0 | AN48: =T48*Info!$C$40 -> 0 | AO48: =U48*Info!$C$43 -> 0 | AP48: =V48*Info!$C$41 -> 0 | AQ48: =W48*Info!$C$42 -> 0 | AR48: 172.2426 | AT48: 34.88382084 | AU48: 0 | AV48: 23.40385015 | AW48: 41.71232901 | AX48: 0 | AY48: 0 | AZ48: 0 | BA48: 0 | BB48: 0 | BC48: 0 | BD48: 0 | BE48: 0 | BF48: 0 | BG48: 0 | BH48: 0 | BI48: 0 | BJ48: 0 | BK48: 0 | BL48: 0 | BM48: 100
A49: Ferro-Hortonolite Fo20Fa80 | B49: Fe1.6Mg0.4SiO4 | C49: 4.1 | D49: =C49*'Phase Rock Maker'!C49 -> 0 | E49: 1 | G49: 0.4 | H49: 1.6 | Y49: =E49*Info!$C$25 -> 60.0848 | Z49: =F49*Info!$C$27 -> 0 | AA49: =G49*Info!$C$29 -> 16.12456 | AB49: =H49*Info!$C$32 -> 114.95424 | AC49: =I49*Info!$C$33 -> 0 | AD49: =J49*Info!$C$31 -> 0 | AE49: =K49*Info!$C$30 -> 0 | AF49: =L49*Info!$C$36 -> 0 | AG49: =M49*Info!$C$35 -> 0 | AH49: =N49*Info!$C$34 -> 0 | AI49: =O49*Info!$C$28 -> 0 | AJ49: =P49*Info!$C$26 -> 0 | AK49: =Q49*Info!$C$37 -> 0 | AL49: =R49*Info!$C$38 -> 0 | AM49: =S49*Info!$C$39 -> 0 | AN49: =T49*Info!$C$40 -> 0 | AO49: =U49*Info!$C$43 -> 0 | AP49: =V49*Info!$C$41 -> 0 | AQ49: =W49*Info!$C$42 -> 0 | AR49: 191.1636 | AT49: 31.43108835 | AU49: 0 | AV49: 8.434953098 | AW49: 60.13395856 | AX49: 0 | AY49: 0 | AZ49: 0 | BA49: 0 | BB49: 0 | BC49: 0 | BD49: 0 | BE49: 0 | BF49: 0 | BG49: 0 | BH49: 0 | BI49: 0 | BJ49: 0 | BK49: 0 | BL49: 0 | BM49: 100
A50: Enstatite | B50: Mg2Si2O6 | C50: 3.19 | D50: =C50*'Phase Rock Maker'!C50 -> 0 | E50: 2 | G50: 2 | Y50: =E50*Info!$C$25 -> 120.1696 | Z50: =F50*Info!$C$27 -> 0 | AA50: =G50*Info!$C$29 -> 80.6228 | AB50: =H50*Info!$C$32 -> 0 | AC50: =I50*Info!$C$33 -> 0 | AD50: =J50*Info!$C$31 -> 0 | AE50: =K50*Info!$C$30 -> 0 | AF50: =L50*Info!$C$36 -> 0 | AG50: =M50*Info!$C$35 -> 0 | AH50: =N50*Info!$C$34 -> 0 | AI50: =O50*Info!$C$28 -> 0 | AJ50: =P50*Info!$C$26 -> 0 | AK50: =Q50*Info!$C$37 -> 0 | AL50: =R50*Info!$C$38 -> 0 | AM50: =S50*Info!$C$39 -> 0 | AN50: =T50*Info!$C$40 -> 0 | AO50: =U50*Info!$C$43 -> 0 | AP50: =V50*Info!$C$41 -> 0 | AQ50: =W50*Info!$C$42 -> 0 | AR50: 200.7924 | AT50: 59.84768348 | AU50: 0 | AV50: 40.15231652 | AW50: 0 | AX50: 0 | AY50: 0 | AZ50: 0 | BA50: 0 | BB50: 0 | BC50: 0 | BD50: 0 | BE50: 0 | BF50: 0 | BG50: 0 | BH50: 0 | BI50: 0 | BJ50: 0 | BK50: 0 | BL50: 0 | BM50: 100
A51: Ferrosilite | B51: Fe2Si2O6 | C51: 3.87 | D51: =C51*'Phase Rock Maker'!C51 -> 0 | E51: 2 | H51: 2 | Y51: =E51*Info!$C$25 -> 120.1696 | Z51: =F51*Info!$C$27 -> 0 | AA51: =G51*Info!$C$29 -> 0 | AB51: =H51*Info!$C$32 -> 143.6928 | AC51: =I51*Info!$C$33 -> 0 | AD51: =J51*Info!$C$31 -> 0 | AE51: =K51*Info!$C$30 -> 0 | AF51: =L51*Info!$C$36 -> 0 | AG51: =M51*Info!$C$35 -> 0 | AH51: =N51*Info!$C$34 -> 0 | AI51: =O51*Info!$C$28 -> 0 | AJ51: =P51*Info!$C$26 -> 0 | AK51: =Q51*Info!$C$37 -> 0 | AL51: =R51*Info!$C$38 -> 0 | AM51: =S51*Info!$C$39 -> 0 | AN51: =T51*Info!$C$40 -> 0 | AO51: =U51*Info!$C$43 -> 0 | AP51: =V51*Info!$C$41 -> 0 | AQ51: =W51*Info!$C$42 -> 0 | AR51: 263.8624 | AT51: 45.54252519 | AU51: 0 | AV51: 0 | AW51: 54.45747481 | AX51: 0 | AY51: 0 | AZ51: 0 | BA51: 0 | BB51: 0 | BC51: 0 | BD51: 0 | BE51: 0 | BF51: 0 | BG51: 0 | BH51: 0 | BI51: 0 | BJ51: 0 | BK51: 0 | BL51: 0 | BM51: 100
A52: HyperstheneEn50Fs50 | B52: FeMgSi2O6 | C52: 3.59 | D52: =C52*'Phase Rock Maker'!C52 -> 0 | E52: 2 | G52: 1 | H52: 1 | Y52: =E52*Info!$C$25 -> 120.1696 | Z52: =F52*Info!$C$27 -> 0 | AA52: =G52*Info!$C$29 -> 40.3114 | AB52: =H52*Info!$C$32 -> 71.8464 | AC52: =I52*Info!$C$33 -> 0 | AD52: =J52*Info!$C$31 -> 0 | AE52: =K52*Info!$C$30 -> 0 | AF52: =L52*Info!$C$36 -> 0 | AG52: =M52*Info!$C$35 -> 0 | AH52: =N52*Info!$C$34 -> 0 | AI52: =O52*Info!$C$28 -> 0 | AJ52: =P52*Info!$C$26 -> 0 | AK52: =Q52*Info!$C$37 -> 0 | AL52: =R52*Info!$C$38 -> 0 | AM52: =S52*Info!$C$39 -> 0 | AN52: =T52*Info!$C$40 -> 0 | AO52: =U52*Info!$C$43 -> 0 | AP52: =V52*Info!$C$41 -> 0 | AQ52: =W52*Info!$C$42 -> 0 | AR52: 232.3274 | AT52: 51.72424776 | AU52: 0 | AV52: 17.35111743 | AW52: 30.9246348 | AX52: 0 | AY52: 0 | AZ52: 0 | BA52: 0 | BB52: 0 | BC52: 0 | BD52: 0 | BE52: 0 | BF52: 0 | BG52: 0 | BH52: 0 | BI52: 0 | BJ52: 0 | BK52: 0 | BL52: 0 | BM52: 100
A53: Diopside | B53: CaMgSi2O6 | C53: 3.28 | D53: =C53*'Phase Rock Maker'!C53 -> 0 | E53: 2 | G53: 1 | K53: 1 | Y53: =E53*Info!$C$25 -> 120.1696 | Z53: =F53*Info!$C$27 -> 0 | AA53: =G53*Info!$C$29 -> 40.3114 | AB53: =H53*Info!$C$32 -> 0 | AC53: =I53*Info!$C$33 -> 0 | AD53: =J53*Info!$C$31 -> 0 | AE53: =K53*Info!$C$30 -> 56.0794 | AF53: =L53*Info!$C$36 -> 0 | AG53: =M53*Info!$C$35 -> 0 | AH53: =N53*Info!$C$34 -> 0 | AI53: =O53*Info!$C$28 -> 0 | AJ53: =P53*Info!$C$26 -> 0 | AK53: =Q53*Info!$C$37 -> 0 | AL53: =R53*Info!$C$38 -> 0 | AM53: =S53*Info!$C$39 -> 0 | AN53: =T53*Info!$C$40 -> 0 | AO53: =U53*Info!$C$43 -> 0 | AP53: =V53*Info!$C$41 -> 0 | AQ53: =W53*Info!$C$42 -> 0 | AR53: 216.5604 | AT53: 55.49010807 | AU53: 0 | AV53: 18.61439118 | AW53: 0 | AX53: 0 | AY53: 0 | AZ53: 25.89550075 | BA53: 0 | BB53: 0 | BC53: 0 | BD53: 0 | BE53: 0 | BF53: 0 | BG53: 0 | BH53: 0 | BI53: 0 | BJ53: 0 | BK53: 0 | BL53: 0 | BM53: 100
A54: Hedenbergite | B54: CaFeSi2O6 | C54: 3.65 | D54: =C54*'Phase Rock Maker'!C54 -> 0 | E54: 2 | H54: 1 | K54: 1 | Y54: =E54*Info!$C$25 -> 120.1696 | Z54: =F54*Info!$C$27 -> 0 | AA54: =G54*Info!$C$29 -> 0 | AB54: =H54*Info!$C$32 -> 71.8464 | AC54: =I54*Info!$C$33 -> 0 | AD54: =J54*Info!$C$31 -> 0 | AE54: =K54*Info!$C$30 -> 56.0794 | AF54: =L54*Info!$C$36 -> 0 | AG54: =M54*Info!$C$35 -> 0 | AH54: =N54*Info!$C$34 -> 0 | AI54: =O54*Info!$C$28 -> 0 | AJ54: =P54*Info!$C$26 -> 0 | AK54: =Q54*Info!$C$37 -> 0 | AL54: =R54*Info!$C$38 -> 0 | AM54: =S54*Info!$C$39 -> 0 | AN54: =T54*Info!$C$40 -> 0 | AO54: =U54*Info!$C$43 -> 0 | AP54: =V54*Info!$C$41 -> 0 | AQ54: =W54*Info!$C$42 -> 0 | AR54: 248.0954 | AT54: 48.43685131 | AU54: 0 | AV54: 0 | AW54: 28.95918264 | AX54: 0 | AY54: 0 | AZ54: 22.60396605 | BA54: 0 | BB54: 0 | BC54: 0 | BD54: 0 | BE54: 0 | BF54: 0 | BG54: 0 | BH54: 0 | BI54: 0 | BJ54: 0 | BK54: 0 | BL54: 0 | BM54: 100
A55: Salite Di50Hed50 | B55: Ca2FeMgSi4O12 | C55: 3.44 | D55: =C55*'Phase Rock Maker'!C55 -> 0 | E55: 4 | G55: 1 | H55: 1 | K55: 2 | Y55: =E55*Info!$C$25 -> 240.3392 | Z55: =F55*Info!$C$27 -> 0 | AA55: =G55*Info!$C$29 -> 40.3114 | AB55: =H55*Info!$C$32 -> 71.8464 | AC55: =I55*Info!$C$33 -> 0 | AD55: =J55*Info!$C$31 -> 0 | AE55: =K55*Info!$C$30 -> 112.1588 | AF55: =L55*Info!$C$36 -> 0 | AG55: =M55*Info!$C$35 -> 0 | AH55: =N55*Info!$C$34 -> 0 | AI55: =O55*Info!$C$28 -> 0 | AJ55: =P55*Info!$C$26 -> 0 | AK55: =Q55*Info!$C$37 -> 0 | AL55: =R55*Info!$C$38 -> 0 | AM55: =S55*Info!$C$39 -> 0 | AN55: =T55*Info!$C$40 -> 0 | AO55: =U55*Info!$C$43 -> 0 | AP55: =V55*Info!$C$41 -> 0 | AQ55: =W55*Info!$C$42 -> 0 | AR55: 464.6558 | AT55: 51.72413645 | AU55: 0 | AV55: 8.675540045 | AW55: 15.46228413 | AX55: 0 | AY55: 0 | AZ55: 24.13803938 | BA55: 0 | BB55: 0 | BC55: 0 | BD55: 0 | BE55: 0 | BF55: 0 | BG55: 0 | BH55: 0 | BI55: 0 | BJ55: 0 | BK55: 0 | BL55: 0 | BM55: 100
A56: Wollastonite | B56: Ca2Si2O6 | C56: 2.9 | D56: =C56*'Phase Rock Maker'!C56 -> 0 | E56: 2 | K56: 2 | Y56: =E56*Info!$C$25 -> 120.1696 | Z56: =F56*Info!$C$27 -> 0 | AA56: =G56*Info!$C$29 -> 0 | AB56: =H56*Info!$C$32 -> 0 | AC56: =I56*Info!$C$33 -> 0 | AD56: =J56*Info!$C$31 -> 0 | AE56: =K56*Info!$C$30 -> 112.1588 | AF56: =L56*Info!$C$36 -> 0 | AG56: =M56*Info!$C$35 -> 0 | AH56: =N56*Info!$C$34 -> 0 | AI56: =O56*Info!$C$28 -> 0 | AJ56: =P56*Info!$C$26 -> 0 | AK56: =Q56*Info!$C$37 -> 0 | AL56: =R56*Info!$C$38 -> 0 | AM56: =S56*Info!$C$39 -> 0 | AN56: =T56*Info!$C$40 -> 0 | AO56: =U56*Info!$C$43 -> 0 | AP56: =V56*Info!$C$41 -> 0 | AQ56: =W56*Info!$C$42 -> 0 | AR56: 232.3284 | AT56: 51.72402513 | AU56: 0 | AV56: 0 | AW56: 0 | AX56: 0 | AY56: 0 | AZ56: 48.27597487 | BA56: 0 | BB56: 0 | BC56: 0 | BD56: 0 | BE56: 0 | BF56: 0 | BG56: 0 | BH56: 0 | BI56: 0 | BJ56: 0 | BK56: 0 | BL56: 0 | BM56: 100
A57: Fe Chlorite (Chamosite) | B57: Fe2+10Al4Si6O20(OH)16 | C57: 3.13 | D57: =C57*'Phase Rock Maker'!C57 -> 0 | E57: 6 | F57: 2 | H57: 10 | S57: 8 | Y57: =E57*Info!$C$25 -> 360.5088 | Z57: =F57*Info!$C$27 -> 203.9224 | AA57: =G57*Info!$C$29 -> 0 | AB57: =H57*Info!$C$32 -> 718.464 | AC57: =I57*Info!$C$33 -> 0 | AD57: =J57*Info!$C$31 -> 0 | AE57: =K57*Info!$C$30 -> 0 | AF57: =L57*Info!$C$36 -> 0 | AG57: =M57*Info!$C$35 -> 0 | AH57: =N57*Info!$C$34 -> 0 | AI57: =O57*Info!$C$28 -> 0 | AJ57: =P57*Info!$C$26 -> 0 | AK57: =Q57*Info!$C$37 -> 0 | AL57: =R57*Info!$C$38 -> 0 | AM57: =S57*Info!$C$39 -> 144.12 | AN57: =T57*Info!$C$40 -> 0 | AO57: =U57*Info!$C$43 -> 0 | AP57: =V57*Info!$C$41 -> 0 | AQ57: =W57*Info!$C$42 -> 0 | AR57: 1427.0152 | AT57: 25.26313665 | AU57: 14.2901351 | AV57: 0 | AW57: 50.34732636 | AX57: 0 | AY57: 0 | AZ57: 0 | BA57: 0 | BB57: 0 | BC57: 0 | BD57: 0 | BE57: 0 | BF57: 0 | BG57: 0 | BH57: 10.09940188 | BI57: 0 | BJ57: 0 | BK57: 0 | BL57: 0 | BM57: 100
A58: Mg Chlorite (Clinochlore) | B58: Mg10Al4Si6O20(OH)16 | C58: 2.628 | D58: =C58*'Phase Rock Maker'!C58 -> 0 | E58: 6 | F58: 2 | G58: 10 | S58: 8 | Y58: =E58*Info!$C$25 -> 360.5088 | Z58: =F58*Info!$C$27 -> 203.9224 | AA58: =G58*Info!$C$29 -> 403.114 | AB58: =H58*Info!$C$32 -> 0 | AC58: =I58*Info!$C$33 -> 0 | AD58: =J58*Info!$C$31 -> 0 | AE58: =K58*Info!$C$30 -> 0 | AF58: =L58*Info!$C$36 -> 0 | AG58: =M58*Info!$C$35 -> 0 | AH58: =N58*Info!$C$34 -> 0 | AI58: =O58*Info!$C$28 -> 0 | AJ58: =P58*Info!$C$26 -> 0 | AK58: =Q58*Info!$C$37 -> 0 | AL58: =R58*Info!$C$38 -> 0 | AM58: =S58*Info!$C$39 -> 144.12 | AN58: =T58*Info!$C$40 -> 0 | AO58: =U58*Info!$C$43 -> 0 | AP58: =V58*Info!$C$41 -> 0 | AQ58: =W58*Info!$C$42 -> 0 | AR58: 1111.6652 | AT58: 32.42962 | AU58: 18.34386828 | AV58: 36.26217678 | AW58: 0 | AX58: 0 | AY58: 0 | AZ58: 0 | BA58: 0 | BB58: 0 | BC58: 0 | BD58: 0 | BE58: 0 | BF58: 0 | BG58: 0 | BH58: 12.96433495 | BI58: 0 | BJ58: 0 | BK58: 0 | BL58: 0 | BM58: 100
A59: Chlorite Fe20Mg80 | B59: Fe2+2Mg8Al4Si6O20(OH)16 | C59: 2.78 | D59: =C59*'Phase Rock Maker'!C59 -> 0 | E59: 6 | F59: 2 | G59: 8 | H59: 2 | S59: 8 | Y59: =E59*Info!$C$25 -> 360.5088 | Z59: =F59*Info!$C$27 -> 203.9224 | AA59: =G59*Info!$C$29 -> 322.4912 | AB59: =H59*Info!$C$32 -> 143.6928 | AC59: =I59*Info!$C$33 -> 0 | AD59: =J59*Info!$C$31 -> 0 | AE59: =K59*Info!$C$30 -> 0 | AF59: =L59*Info!$C$36 -> 0 | AG59: =M59*Info!$C$35 -> 0 | AH59: =N59*Info!$C$34 -> 0 | AI59: =O59*Info!$C$28 -> 0 | AJ59: =P59*Info!$C$26 -> 0 | AK59: =Q59*Info!$C$37 -> 0 | AL59: =R59*Info!$C$38 -> 0 | AM59: =S59*Info!$C$39 -> 144.12 | AN59: =T59*Info!$C$40 -> 0 | AO59: =U59*Info!$C$43 -> 0 | AP59: =V59*Info!$C$41 -> 0 | AQ59: =W59*Info!$C$42 -> 0 | AR59: 1174.7352 | AT59: 30.68851602 | AU59: 17.35900993 | AV59: 27.45224626 | AW59: 12.23193108 | AX59: 0 | AY59: 0 | AZ59: 0 | BA59: 0 | BB59: 0 | BC59: 0 | BD59: 0 | BE59: 0 | BF59: 0 | BG59: 0 | BH59: 12.26829672 | BI59: 0 | BJ59: 0 | BK59: 0 | BL59: 0 | BM59: 100
A60: Chlorite Fe50Mg50 | B60: Fe2+5Mg5Al4Si6O20(OH)16 | C60: 2.98 | D60: =C60*'Phase Rock Maker'!C60 -> 0 | E60: 6 | F60: 2 | G60: 5 | H60: 5 | S60: 8 | Y60: =E60*Info!$C$25 -> 360.5088 | Z60: =F60*Info!$C$27 -> 203.9224 | AA60: =G60*Info!$C$29 -> 201.557 | AB60: =H60*Info!$C$32 -> 359.232 | AC60: =I60*Info!$C$33 -> 0 | AD60: =J60*Info!$C$31 -> 0 | AE60: =K60*Info!$C$30 -> 0 | AF60: =L60*Info!$C$36 -> 0 | AG60: =M60*Info!$C$35 -> 0 | AH60: =N60*Info!$C$34 -> 0 | AI60: =O60*Info!$C$28 -> 0 | AJ60: =P60*Info!$C$26 -> 0 | AK60: =Q60*Info!$C$37 -> 0 | AL60: =R60*Info!$C$38 -> 0 | AM60: =S60*Info!$C$39 -> 144.12 | AN60: =T60*Info!$C$40 -> 0 | AO60: =U60*Info!$C$43 -> 0 | AP60: =V60*Info!$C$41 -> 0 | AQ60: =W60*Info!$C$42 -> 0 | AR60: 1269.3402 | AT60: 28.40127493 | AU60: 16.06522822 | AV60: 15.87887944 | AW60: 28.30068724 | AX60: 0 | AY60: 0 | AZ60: 0 | BA60: 0 | BB60: 0 | BC60: 0 | BD60: 0 | BE60: 0 | BF60: 0 | BG60: 0 | BH60: 11.35393018 | BI60: 0 | BJ60: 0 | BK60: 0 | BL60: 0 | BM60: 100
A61: Chlorite Fe80Mg20 | B61: Fe2+8Mg2Al4Si6O20(OH)16 | C61: 3.17 | D61: =C61*'Phase Rock Maker'!C61 -> 0 | E61: 6 | F61: 2 | G61: 2 | H61: 8 | S61: 8 | Y61: =E61*Info!$C$25 -> 360.5088 | Z61: =F61*Info!$C$27 -> 203.9224 | AA61: =G61*Info!$C$29 -> 80.6228 | AB61: =H61*Info!$C$32 -> 574.7712 | AC61: =I61*Info!$C$33 -> 0 | AD61: =J61*Info!$C$31 -> 0 | AE61: =K61*Info!$C$30 -> 0 | AF61: =L61*Info!$C$36 -> 0 | AG61: =M61*Info!$C$35 -> 0 | AH61: =N61*Info!$C$34 -> 0 | AI61: =O61*Info!$C$28 -> 0 | AJ61: =P61*Info!$C$26 -> 0 | AK61: =Q61*Info!$C$37 -> 0 | AL61: =R61*Info!$C$38 -> 0 | AM61: =S61*Info!$C$39 -> 144.12 | AN61: =T61*Info!$C$40 -> 0 | AO61: =U61*Info!$C$43 -> 0 | AP61: =V61*Info!$C$41 -> 0 | AQ61: =W61*Info!$C$42 -> 0 | AR61: 1363.9452 | AT61: 26.43132583 | AU61: 14.95092325 | AV61: 5.910999943 | AW61: 42.14034405 | AX61: 0 | AY61: 0 | AZ61: 0 | BA61: 0 | BB61: 0 | BC61: 0 | BD61: 0 | BE61: 0 | BF61: 0 | BG61: 0 | BH61: 10.56640692 | BI61: 0 | BJ61: 0 | BK61: 0 | BL61: 0 | BM61: 100
A62: Hornblende | B62: Ca2Fe2Mg2Al2Si7O22(OH)2 | C62: 3 | D62: =C62*'Phase Rock Maker'!C62 -> 0 | E62: 7 | F62: 1 | G62: 2 | H62: 2 | K62: 2 | S62: 1 | Y62: =E62*Info!$C$25 -> 420.5936 | Z62: =F62*Info!$C$27 -> 101.9612 | AA62: =G62*Info!$C$29 -> 80.6228 | AB62: =H62*Info!$C$32 -> 143.6928 | AC62: =I62*Info!$C$33 -> 0 | AD62: =J62*Info!$C$31 -> 0 | AE62: =K62*Info!$C$30 -> 112.1588 | AF62: =L62*Info!$C$36 -> 0 | AG62: =M62*Info!$C$35 -> 0 | AH62: =N62*Info!$C$34 -> 0 | AI62: =O62*Info!$C$28 -> 0 | AJ62: =P62*Info!$C$26 -> 0 | AK62: =Q62*Info!$C$37 -> 0 | AL62: =R62*Info!$C$38 -> 0 | AM62: =S62*Info!$C$39 -> 18.015 | AN62: =T62*Info!$C$40 -> 0 | AO62: =U62*Info!$C$43 -> 0 | AP62: =V62*Info!$C$41 -> 0 | AQ62: =W62*Info!$C$42 -> 0 | AR62: 877.0442 | AT62: 47.95580428 | AU62: 11.62554863 | AV62: 9.192558368 | AW62: 16.38375808 | AX62: 0 | AY62: 0 | AZ62: 12.78827224 | BA62: 0 | BB62: 0 | BC62: 0 | BD62: 0 | BE62: 0 | BF62: 0 | BG62: 0 | BH62: 2.054058393 | BI62: 0 | BJ62: 0 | BK62: 0 | BL62: 0 | BM62: 100
A63: Glaucophane | B63: Na2Mg3Al2Si8O22(OH)2 | C63: 3.13 | D63: =C63*'Phase Rock Maker'!C63 -> 0 | E63: 8 | F63: 1 | G63: 3 | M63: 1 | S63: 1 | Y63: =E63*Info!$C$25 -> 480.6784 | Z63: =F63*Info!$C$27 -> 101.9612 | AA63: =G63*Info!$C$29 -> 120.9342 | AB63: =H63*Info!$C$32 -> 0 | AC63: =I63*Info!$C$33 -> 0 | AD63: =J63*Info!$C$31 -> 0 | AE63: =K63*Info!$C$30 -> 0 | AF63: =L63*Info!$C$36 -> 0 | AG63: =M63*Info!$C$35 -> 61.979 | AH63: =N63*Info!$C$34 -> 0 | AI63: =O63*Info!$C$28 -> 0 | AJ63: =P63*Info!$C$26 -> 0 | AK63: =Q63*Info!$C$37 -> 0 | AL63: =R63*Info!$C$38 -> 0 | AM63: =S63*Info!$C$39 -> 18.015 | AN63: =T63*Info!$C$40 -> 0 | AO63: =U63*Info!$C$43 -> 0 | AP63: =V63*Info!$C$41 -> 0 | AQ63: =W63*Info!$C$42 -> 0 | AR63: 783.5678 | AT63: 61.34483832 | AU63: 13.01242854 | AV63: 15.43378888 | AW63: 0 | AX63: 0 | AY63: 0 | AZ63: 0 | BA63: 0 | BB63: 7.909845198 | BC63: 0 | BD63: 0 | BE63: 0 | BF63: 0 | BG63: 0 | BH63: 2.29909907 | BI63: 0 | BJ63: 0 | BK63: 0 | BL63: 0 | BM63: 100
A64: Tremolite | B64: Ca2Mg5Si8O22(OH)2 | C64: 2.964 | D64: =C64*'Phase Rock Maker'!C64 -> 0 | E64: 8 | G64: 5 | K64: 2 | S64: 1 | Y64: =E64*Info!$C$25 -> 480.6784 | Z64: =F64*Info!$C$27 -> 0 | AA64: =G64*Info!$C$29 -> 201.557 | AB64: =H64*Info!$C$32 -> 0 | AC64: =I64*Info!$C$33 -> 0 | AD64: =J64*Info!$C$31 -> 0 | AE64: =K64*Info!$C$30 -> 112.1588 | AF64: =L64*Info!$C$36 -> 0 | AG64: =M64*Info!$C$35 -> 0 | AH64: =N64*Info!$C$34 -> 0 | AI64: =O64*Info!$C$28 -> 0 | AJ64: =P64*Info!$C$26 -> 0 | AK64: =Q64*Info!$C$37 -> 0 | AL64: =R64*Info!$C$38 -> 0 | AM64: =S64*Info!$C$39 -> 18.015 | AN64: =T64*Info!$C$40 -> 0 | AO64: =U64*Info!$C$43 -> 0 | AP64: =V64*Info!$C$41 -> 0 | AQ64: =W64*Info!$C$42 -> 0 | AR64: 812.4092 | AT64: 59.1670306 | AU64: 0 | AV64: 24.80978797 | AW64: 0 | AX64: 0 | AY64: 0 | AZ64: 13.80570284 | BA64: 0 | BB64: 0 | BC64: 0 | BD64: 0 | BE64: 0 | BF64: 0 | BG64: 0 | BH64: 2.217478581 | BI64: 0 | BJ64: 0 | BK64: 0 | BL64: 0 | BM64: 100
A65: Actinolite | B65: Ca2Fe2Mg3Si8O22(OH)2 | C65: 3.07 | D65: =C65*'Phase Rock Maker'!C65 -> 0 | E65: 8 | G65: 3 | H65: 2 | K65: 2 | S65: 1 | Y65: =E65*Info!$C$25 -> 480.6784 | Z65: =F65*Info!$C$27 -> 0 | AA65: =G65*Info!$C$29 -> 120.9342 | AB65: =H65*Info!$C$32 -> 143.6928 | AC65: =I65*Info!$C$33 -> 0 | AD65: =J65*Info!$C$31 -> 0 | AE65: =K65*Info!$C$30 -> 112.1588 | AF65: =L65*Info!$C$36 -> 0 | AG65: =M65*Info!$C$35 -> 0 | AH65: =N65*Info!$C$34 -> 0 | AI65: =O65*Info!$C$28 -> 0 | AJ65: =P65*Info!$C$26 -> 0 | AK65: =Q65*Info!$C$37 -> 0 | AL65: =R65*Info!$C$38 -> 0 | AM65: =S65*Info!$C$39 -> 18.015 | AN65: =T65*Info!$C$40 -> 0 | AO65: =U65*Info!$C$43 -> 0 | AP65: =V65*Info!$C$41 -> 0 | AQ65: =W65*Info!$C$42 -> 0 | AR65: 875.4792 | AT65: 54.90460539 | AU65: 0 | AV65: 13.81348637 | AW65: 16.41304556 | AX65: 0 | AY65: 0 | AZ65: 12.81113246 | BA65: 0 | BB65: 0 | BC65: 0 | BD65: 0 | BE65: 0 | BF65: 0 | BG65: 0 | BH65: 2.057730212 | BI65: 0 | BJ65: 0 | BK65: 0 | BL65: 0 | BM65: 100
A66: Ferro-Edenite | B66: NaCa2Mg2Fe3AlSi7O22(OH)2 | C66: 3.4 | D66: =C66*'Phase Rock Maker'!C66 -> 0 | E66: 7 | F66: 0.5 | G66: 2 | H66: 3 | K66: 2 | M66: 0.5 | S66: 1 | Y66: =E66*Info!$C$25 -> 420.5936 | Z66: =F66*Info!$C$27 -> 50.9806 | AA66: =G66*Info!$C$29 -> 80.6228 | AB66: =H66*Info!$C$32 -> 215.5392 | AC66: =I66*Info!$C$33 -> 0 | AD66: =J66*Info!$C$31 -> 0 | AE66: =K66*Info!$C$30 -> 112.1588 | AF66: =L66*Info!$C$36 -> 0 | AG66: =M66*Info!$C$35 -> 30.9895 | AH66: =N66*Info!$C$34 -> 0 | AI66: =O66*Info!$C$28 -> 0 | AJ66: =P66*Info!$C$26 -> 0 | AK66: =Q66*Info!$C$37 -> 0 | AL66: =R66*Info!$C$38 -> 0 | AM66: =S66*Info!$C$39 -> 18.015 | AN66: =T66*Info!$C$40 -> 0 | AO66: =U66*Info!$C$43 -> 0 | AP66: =V66*Info!$C$41 -> 0 | AQ66: =W66*Info!$C$42 -> 0 | AR66: 928.8995 | AT66: 45.27869807 | AU66: 5.48827941 | AV66: 8.67938889 | AW66: 23.20371579 | AX66: 0 | AY66: 0 | AZ66: 12.07437403 | BA66: 0 | BB66: 3.336152081 | BC66: 0 | BD66: 0 | BE66: 0 | BF66: 0 | BG66: 0 | BH66: 1.939391721 | BI66: 0 | BJ66: 0 | BK66: 0 | BL66: 0 | BM66: 100
A67: Tschermakite | B67: Ca2Mg3Al4Si6O22(OH)2 | C67: 3.25 | D67: =C67*'Phase Rock Maker'!C67 -> 0 | E67: 6 | F67: 2 | G67: 3 | K67: 2 | S67: 1 | Y67: =E67*Info!$C$25 -> 360.5088 | Z67: =F67*Info!$C$27 -> 203.9224 | AA67: =G67*Info!$C$29 -> 120.9342 | AB67: =H67*Info!$C$32 -> 0 | AC67: =I67*Info!$C$33 -> 0 | AD67: =J67*Info!$C$31 -> 0 | AE67: =K67*Info!$C$30 -> 112.1588 | AF67: =L67*Info!$C$36 -> 0 | AG67: =M67*Info!$C$35 -> 0 | AH67: =N67*Info!$C$34 -> 0 | AI67: =O67*Info!$C$28 -> 0 | AJ67: =P67*Info!$C$26 -> 0 | AK67: =Q67*Info!$C$37 -> 0 | AL67: =R67*Info!$C$38 -> 0 | AM67: =S67*Info!$C$39 -> 18.015 | AN67: =T67*Info!$C$40 -> 0 | AO67: =U67*Info!$C$43 -> 0 | AP67: =V67*Info!$C$41 -> 0 | AQ67: =W67*Info!$C$42 -> 0 | AR67: 815.5392 | AT67: 44.2049628 | AU67: 25.00461045 | AV67: 14.82874152 | AW67: 0 | AX67: 0 | AY67: 0 | AZ67: 13.75271722 | BA67: 0 | BB67: 0 | BC67: 0 | BD67: 0 | BE67: 0 | BF67: 0 | BG67: 0 | BH67: 2.208968005 | BI67: 0 | BJ67: 0 | BK67: 0 | BL67: 0 | BM67: 100
A68: Pargasite | B68: NaCa2Fe2Mg2Al3Si6O22(OH)2 | C68: 3.21 | D68: =C68*'Phase Rock Maker'!C68 -> 0 | E68: 6 | F68: 1.5 | G68: 2 | H68: 2 | K68: 2 | M68: 0.5 | S68: 1 | Y68: =E68*Info!$C$25 -> 360.5088 | Z68: =F68*Info!$C$27 -> 152.9418 | AA68: =G68*Info!$C$29 -> 80.6228 | AB68: =H68*Info!$C$32 -> 143.6928 | AC68: =I68*Info!$C$33 -> 0 | AD68: =J68*Info!$C$31 -> 0 | AE68: =K68*Info!$C$30 -> 112.1588 | AF68: =L68*Info!$C$36 -> 0 | AG68: =M68*Info!$C$35 -> 30.9895 | AH68: =N68*Info!$C$34 -> 0 | AI68: =O68*Info!$C$28 -> 0 | AJ68: =P68*Info!$C$26 -> 0 | AK68: =Q68*Info!$C$37 -> 0 | AL68: =R68*Info!$C$38 -> 0 | AM68: =S68*Info!$C$39 -> 18.015 | AN68: =T68*Info!$C$40 -> 0 | AO68: =U68*Info!$C$43 -> 0 | AP68: =V68*Info!$C$41 -> 0 | AQ68: =W68*Info!$C$42 -> 0 | AR68: =SUM(Y68:AQ68) -> 898.9295 | AT68: 40.10423509 | AU68: 17.01377027 | AV68: 8.968756727 | AW68: 15.98487979 | AX68: 0 | AY68: 0 | AZ68: 12.4769295 | BA68: 0 | BB68: 3.447378243 | BC68: 0 | BD68: 0 | BE68: 0 | BF68: 0 | BG68: 0 | BH68: 2.004050373 | BI68: 0 | BJ68: 0 | BK68: =AP68/$AR68*100 -> 0 | BL68: =AQ68/$AR68*100 -> 0 | BM68: 100
A69: Hastingsite | B69: NaCa2Fe2+4Fe3+Al2Si6O22(OH)2 | C69: 3.42 | D69: =C69*'Phase Rock Maker'!C69 -> 0 | E69: 6 | F69: 1 | H69: 4 | I69: 1 | K69: 2 | M69: 0.5 | S69: 1 | Y69: =E69*Info!$C$25 -> 360.5088 | Z69: =F69*Info!$C$27 -> 101.9612 | AA69: =G69*Info!$C$29 -> 0 | AB69: =H69*Info!$C$32 -> 287.3856 | AC69: =I69*Info!$C$33 -> 159.6922 | AD69: =J69*Info!$C$31 -> 0 | AE69: =K69*Info!$C$30 -> 112.1588 | AF69: =L69*Info!$C$36 -> 0 | AG69: =M69*Info!$C$35 -> 30.9895 | AH69: =N69*Info!$C$34 -> 0 | AI69: =O69*Info!$C$28 -> 0 | AJ69: =P69*Info!$C$26 -> 0 | AK69: =Q69*Info!$C$37 -> 0 | AL69: =R69*Info!$C$38 -> 0 | AM69: =S69*Info!$C$39 -> 18.015 | AN69: =T69*Info!$C$40 -> 0 | AO69: =U69*Info!$C$43 -> 0 | AP69: =V69*Info!$C$41 -> 0 | AQ69: =W69*Info!$C$42 -> 0 | AR69: 1070.7111 | AT69: 33.6700348 | AU69: 9.522755485 | AV69: 0 | AW69: 26.84062956 | AX69: 14.91459274 | AY69: 0 | AZ69: 10.47516926 | BA69: 0 | BB69: 2.894291467 | BC69: 0 | BD69: 0 | BE69: 0 | BF69: 0 | BG69: 0 | BH69: 1.682526687 | BI69: 0 | BJ69: 0 | BK69: 0 | BL69: 0 | BM69: =SUM(AT69:BL69) -> 100
A70: NaCa Scapolite (Mizzonite) | B70: Na4Ca4(Al9Si15O47.5)CO3SO4 | C70: 2.7 | D70: =C70*'Phase Rock Maker'!C70 -> 0 | E70: 15 | F70: 4.5 | K70: 4 | M70: 2 | Q70: 1 | T70: 1 | Y70: =E70*Info!$C$25 -> 901.272 | Z70: =F70*Info!$C$27 -> 458.8254 | AA70: =G70*Info!$C$29 -> 0 | AB70: =H70*Info!$C$32 -> 0 | AC70: =I70*Info!$C$33 -> 0 | AD70: =J70*Info!$C$31 -> 0 | AE70: =K70*Info!$C$30 -> 224.3176 | AF70: =L70*Info!$C$36 -> 0 | AG70: =M70*Info!$C$35 -> 123.958 | AH70: =N70*Info!$C$34 -> 0 | AI70: =O70*Info!$C$28 -> 0 | AJ70: =P70*Info!$C$26 -> 0 | AK70: =Q70*Info!$C$37 -> 80.064 | AL70: =R70*Info!$C$38 -> 0 | AM70: =S70*Info!$C$39 -> 0 | AN70: =T70*Info!$C$40 -> 44.01 | AO70: =U70*Info!$C$43 -> 0 | AP70: =V70*Info!$C$41 -> 0 | AQ70: =W70*Info!$C$42 -> 0 | AR70: 1832.447 | AT70: 49.18406917 | AU70: 25.03894519 | AV70: 0 | AW70: 0 | AX70: 0 | AY70: 0 | AZ70: 12.24142363 | BA70: 0 | BB70: 6.764615839 | BC70: 0 | BD70: 0 | BE70: 0 | BF70: 4.369239601 | BG70: 0 | BH70: 0 | BI70: 2.401706571 | BJ70: 0 | BK70: 0 | BL70: 0 | BM70: 100
A71: Titanite | B71: CaTiSiO5 | C71: 3.53 | D71: =C71*'Phase Rock Maker'!C71 -> 0 | E71: 1 | K71: 1 | P71: 1 | Y71: =E71*Info!$C$25 -> 60.0848 | Z71: =F71*Info!$C$27 -> 0 | AA71: =G71*Info!$C$29 -> 0 | AB71: =H71*Info!$C$32 -> 0 | AC71: =I71*Info!$C$33 -> 0 | AD71: =J71*Info!$C$31 -> 0 | AE71: =K71*Info!$C$30 -> 56.0794 | AF71: =L71*Info!$C$36 -> 0 | AG71: =M71*Info!$C$35 -> 0 | AH71: =N71*Info!$C$34 -> 0 | AI71: =O71*Info!$C$28 -> 0 | AJ71: =P71*Info!$C$26 -> 79.8988 | AK71: =Q71*Info!$C$37 -> 0 | AL71: =R71*Info!$C$38 -> 0 | AM71: =S71*Info!$C$39 -> 0 | AN71: =T71*Info!$C$40 -> 0 | AO71: =U71*Info!$C$43 -> 0 | AP71: =V71*Info!$C$41 -> 0 | AQ71: =W71*Info!$C$42 -> 0 | AR71: 196.063 | AT71: 30.64565981 | AU71: 0 | AV71: 0 | AW71: 0 | AX71: 0 | AY71: 0 | AZ71: 28.60274504 | BA71: 0 | BB71: 0 | BC71: 0 | BD71: 0 | BE71: 40.75159515 | BF71: 0 | BG71: 0 | BH71: 0 | BI71: 0 | BJ71: 0 | BK71: 0 | BL71: 0 | BM71: 100
A72: Rutile | B72: TiO2 | C72: 4.25 | D72: =C72*'Phase Rock Maker'!C72 -> 0 | P72: 1 | Y72: =E72*Info!$C$25 -> 0 | Z72: =F72*Info!$C$27 -> 0 | AA72: =G72*Info!$C$29 -> 0 | AB72: =H72*Info!$C$32 -> 0 | AC72: =I72*Info!$C$33 -> 0 | AD72: =J72*Info!$C$31 -> 0 | AE72: =K72*Info!$C$30 -> 0 | AF72: =L72*Info!$C$36 -> 0 | AG72: =M72*Info!$C$35 -> 0 | AH72: =N72*Info!$C$34 -> 0 | AI72: =O72*Info!$C$28 -> 0 | AJ72: =P72*Info!$C$26 -> 79.8988 | AK72: =Q72*Info!$C$37 -> 0 | AL72: =R72*Info!$C$38 -> 0 | AM72: =S72*Info!$C$39 -> 0 | AN72: =T72*Info!$C$40 -> 0 | AO72: =U72*Info!$C$43 -> 0 | AP72: =V72*Info!$C$41 -> 0 | AQ72: =W72*Info!$C$42 -> 0 | AR72: 79.8988 | AT72: 0 | AU72: 0 | AV72: 0 | AW72: 0 | AX72: 0 | AY72: 0 | AZ72: 0 | BA72: 0 | BB72: 0 | BC72: 0 | BD72: 0 | BE72: 100 | BF72: 0 | BG72: 0 | BH72: 0 | BI72: 0 | BJ72: 0 | BK72: 0 | BL72: 0 | BM72: 100
A73: Spinel | B73: MgAl2O4 | C73: 3.58 | D73: =C73*'Phase Rock Maker'!C73 -> 0 | F73: 1 | G73: 1 | Y73: =E73*Info!$C$25 -> 0 | Z73: =F73*Info!$C$27 -> 101.9612 | AA73: =G73*Info!$C$29 -> 40.3114 | AB73: =H73*Info!$C$32 -> 0 | AC73: =I73*Info!$C$33 -> 0 | AD73: =J73*Info!$C$31 -> 0 | AE73: =K73*Info!$C$30 -> 0 | AF73: =L73*Info!$C$36 -> 0 | AG73: =M73*Info!$C$35 -> 0 | AH73: =N73*Info!$C$34 -> 0 | AI73: =O73*Info!$C$28 -> 0 | AJ73: =P73*Info!$C$26 -> 0 | AK73: =Q73*Info!$C$37 -> 0 | AL73: =R73*Info!$C$38 -> 0 | AM73: =S73*Info!$C$39 -> 0 | AN73: =T73*Info!$C$40 -> 0 | AO73: =U73*Info!$C$43 -> 0 | AP73: =V73*Info!$C$41 -> 0 | AQ73: =W73*Info!$C$42 -> 0 | AR73: 142.2726 | AT73: 0 | AU73: 71.66608328 | AV73: 28.33391672 | AW73: 0 | AX73: 0 | AY73: 0 | AZ73: 0 | BA73: 0 | BB73: 0 | BC73: 0 | BD73: 0 | BE73: 0 | BF73: 0 | BG73: 0 | BH73: 0 | BI73: 0 | BJ73: 0 | BK73: 0 | BL73: 0 | BM73: 100
A74: Hercynite | B74: Fe2+Al2O4 | C74: 4.26 | D74: =C74*'Phase Rock Maker'!C74 -> 0 | F74: 1 | H74: 1 | Y74: =E74*Info!$C$25 -> 0 | Z74: =F74*Info!$C$27 -> 101.9612 | AA74: =G74*Info!$C$29 -> 0 | AB74: =H74*Info!$C$32 -> 71.8464 | AC74: =I74*Info!$C$33 -> 0 | AD74: =J74*Info!$C$31 -> 0 | AE74: =K74*Info!$C$30 -> 0 | AF74: =L74*Info!$C$36 -> 0 | AG74: =M74*Info!$C$35 -> 0 | AH74: =N74*Info!$C$34 -> 0 | AI74: =O74*Info!$C$28 -> 0 | AJ74: =P74*Info!$C$26 -> 0 | AK74: =Q74*Info!$C$37 -> 0 | AL74: =R74*Info!$C$38 -> 0 | AM74: =S74*Info!$C$39 -> 0 | AN74: =T74*Info!$C$40 -> 0 | AO74: =U74*Info!$C$43 -> 0 | AP74: =V74*Info!$C$41 -> 0 | AQ74: =W74*Info!$C$42 -> 0 | AR74: 173.8076 | AT74: 0 | AU74: 58.66325753 | AV74: 0 | AW74: 41.33674247 | AX74: 0 | AY74: 0 | AZ74: 0 | BA74: 0 | BB74: 0 | BC74: 0 | BD74: 0 | BE74: 0 | BF74: 0 | BG74: 0 | BH74: 0 | BI74: 0 | BJ74: 0 | BK74: 0 | BL74: 0 | BM74: 100
A75: Chromite | B75: Fe2+Cr2O4 | C75: 5.12 | D75: =C75*'Phase Rock Maker'!C75 -> 0 | H75: 1 | O75: 1 | Y75: =E75*Info!$C$25 -> 0 | Z75: =F75*Info!$C$27 -> 0 | AA75: =G75*Info!$C$29 -> 0 | AB75: =H75*Info!$C$32 -> 71.8464 | AC75: =I75*Info!$C$33 -> 0 | AD75: =J75*Info!$C$31 -> 0 | AE75: =K75*Info!$C$30 -> 0 | AF75: =L75*Info!$C$36 -> 0 | AG75: =M75*Info!$C$35 -> 0 | AH75: =N75*Info!$C$34 -> 0 | AI75: =O75*Info!$C$28 -> 151.9902 | AJ75: =P75*Info!$C$26 -> 0 | AK75: =Q75*Info!$C$37 -> 0 | AL75: =R75*Info!$C$38 -> 0 | AM75: =S75*Info!$C$39 -> 0 | AN75: =T75*Info!$C$40 -> 0 | AO75: =U75*Info!$C$43 -> 0 | AP75: =V75*Info!$C$41 -> 0 | AQ75: =W75*Info!$C$42 -> 0 | AR75: 223.8366 | AT75: 0 | AU75: 0 | AV75: 0 | AW75: 32.09769984 | AX75: 0 | AY75: 0 | AZ75: 0 | BA75: 0 | BB75: 0 | BC75: 0 | BD75: 67.90230016 | BE75: 0 | BF75: 0 | BG75: 0 | BH75: 0 | BI75: 0 | BJ75: 0 | BK75: 0 | BL75: 0 | BM75: 100
A76: Magnetite | B76: Fe3O4 | C76: 5.2 | D76: =C76*'Phase Rock Maker'!C76 -> 0 | H76: 1 | I76: 1 | Y76: =E76*Info!$C$25 -> 0 | Z76: =F76*Info!$C$27 -> 0 | AA76: =G76*Info!$C$29 -> 0 | AB76: =H76*Info!$C$32 -> 71.8464 | AC76: =I76*Info!$C$33 -> 159.6922 | AD76: =J76*Info!$C$31 -> 0 | AE76: =K76*Info!$C$30 -> 0 | AF76: =L76*Info!$C$36 -> 0 | AG76: =M76*Info!$C$35 -> 0 | AH76: =N76*Info!$C$34 -> 0 | AI76: =O76*Info!$C$28 -> 0 | AJ76: =P76*Info!$C$26 -> 0 | AK76: =Q76*Info!$C$37 -> 0 | AL76: =R76*Info!$C$38 -> 0 | AM76: =S76*Info!$C$39 -> 0 | AN76: =T76*Info!$C$40 -> 0 | AO76: =U76*Info!$C$43 -> 0 | AP76: =V76*Info!$C$41 -> 0 | AQ76: =W76*Info!$C$42 -> 0 | AR76: 231.5386 | AT76: 0 | AU76: 0 | AV76: 0 | AW76: 31.02998809 | AX76: 68.97001191 | AY76: 0 | AZ76: 0 | BA76: 0 | BB76: 0 | BC76: 0 | BD76: 0 | BE76: 0 | BF76: 0 | BG76: 0 | BH76: 0 | BI76: 0 | BJ76: 0 | BK76: 0 | BL76: 0 | BM76: 100
A77: Ilmenite | B77: FeTiO3 | C77: 4.789 | D77: =C77*'Phase Rock Maker'!C77 -> 0 | H77: 1 | P77: 1 | Y77: =E77*Info!$C$25 -> 0 | Z77: =F77*Info!$C$27 -> 0 | AA77: =G77*Info!$C$29 -> 0 | AB77: =H77*Info!$C$32 -> 71.8464 | AC77: =I77*Info!$C$33 -> 0 | AD77: =J77*Info!$C$31 -> 0 | AE77: =K77*Info!$C$30 -> 0 | AF77: =L77*Info!$C$36 -> 0 | AG77: =M77*Info!$C$35 -> 0 | AH77: =N77*Info!$C$34 -> 0 | AI77: =O77*Info!$C$28 -> 0 | AJ77: =P77*Info!$C$26 -> 79.8988 | AK77: =Q77*Info!$C$37 -> 0 | AL77: =R77*Info!$C$38 -> 0 | AM77: =S77*Info!$C$39 -> 0 | AN77: =T77*Info!$C$40 -> 0 | AO77: =U77*Info!$C$43 -> 0 | AP77: =V77*Info!$C$41 -> 0 | AQ77: =W77*Info!$C$42 -> 0 | AR77: 151.7452 | AT77: 0 | AU77: 0 | AV77: 0 | AW77: 47.3467365 | AX77: 0 | AY77: 0 | AZ77: 0 | BA77: 0 | BB77: 0 | BC77: 0 | BD77: 0 | BE77: 52.6532635 | BF77: 0 | BG77: 0 | BH77: 0 | BI77: 0 | BJ77: 0 | BK77: 0 | BL77: 0 | BM77: 100
A78: Hematite | B78: Fe2O3 | C78: 5.26 | D78: =C78*'Phase Rock Maker'!C78 -> 0 | I78: 1 | Y78: =E78*Info!$C$25 -> 0 | Z78: =F78*Info!$C$27 -> 0 | AA78: =G78*Info!$C$29 -> 0 | AB78: =H78*Info!$C$32 -> 0 | AC78: =I78*Info!$C$33 -> 159.6922 | AD78: =J78*Info!$C$31 -> 0 | AE78: =K78*Info!$C$30 -> 0 | AF78: =L78*Info!$C$36 -> 0 | AG78: =M78*Info!$C$35 -> 0 | AH78: =N78*Info!$C$34 -> 0 | AI78: =O78*Info!$C$28 -> 0 | AJ78: =P78*Info!$C$26 -> 0 | AK78: =Q78*Info!$C$37 -> 0 | AL78: =R78*Info!$C$38 -> 0 | AM78: =S78*Info!$C$39 -> 0 | AN78: =T78*Info!$C$40 -> 0 | AO78: =U78*Info!$C$43 -> 0 | AP78: =V78*Info!$C$41 -> 0 | AQ78: =W78*Info!$C$42 -> 0 | AR78: 159.6922 | AT78: 0 | AU78: 0 | AV78: 0 | AW78: 0 | AX78: 100 | AY78: 0 | AZ78: 0 | BA78: 0 | BB78: 0 | BC78: 0 | BD78: 0 | BE78: 0 | BF78: 0 | BG78: 0 | BH78: 0 | BI78: 0 | BJ78: 0 | BK78: 0 | BL78: 0 | BM78: 100
A79: Gypsum | B79: CaSO4 ˑ 2H2O | C79: 2.31 | D79: =C79*'Phase Rock Maker'!C79 -> 0 | K79: 1 | Q79: 1 | S79: 2 | Y79: =E79*Info!$C$25 -> 0 | Z79: =F79*Info!$C$27 -> 0 | AA79: =G79*Info!$C$29 -> 0 | AB79: =H79*Info!$C$32 -> 0 | AC79: =I79*Info!$C$33 -> 0 | AD79: =J79*Info!$C$31 -> 0 | AE79: =K79*Info!$C$30 -> 56.0794 | AF79: =L79*Info!$C$36 -> 0 | AG79: =M79*Info!$C$35 -> 0 | AH79: =N79*Info!$C$34 -> 0 | AI79: =O79*Info!$C$28 -> 0 | AJ79: =P79*Info!$C$26 -> 0 | AK79: =Q79*Info!$C$37 -> 80.064 | AL79: =R79*Info!$C$38 -> 0 | AM79: =S79*Info!$C$39 -> 36.03 | AN79: =T79*Info!$C$40 -> 0 | AO79: =U79*Info!$C$43 -> 0 | AP79: =V79*Info!$C$41 -> 0 | AQ79: =W79*Info!$C$42 -> 0 | AR79: 172.1734 | AT79: 0 | AU79: 0 | AV79: 0 | AW79: 0 | AX79: 0 | AY79: 0 | AZ79: 32.57146574 | BA79: 0 | BB79: 0 | BC79: 0 | BD79: 0 | BE79: 0 | BF79: 46.50195675 | BG79: 0 | BH79: 20.92657751 | BI79: 0 | BJ79: 0 | BK79: 0 | BL79: 0 | BM79: 100
A80: Baryte | B80: BaSO4 | C80: 4.47 | D80: =C80*'Phase Rock Maker'!C80 -> 0 | N80: 1 | Q80: 1 | Y80: =E80*Info!$C$25 -> 0 | Z80: =F80*Info!$C$27 -> 0 | AA80: =G80*Info!$C$29 -> 0 | AB80: =H80*Info!$C$32 -> 0 | AC80: =I80*Info!$C$33 -> 0 | AD80: =J80*Info!$C$31 -> 0 | AE80: =K80*Info!$C$30 -> 0 | AF80: =L80*Info!$C$36 -> 0 | AG80: =M80*Info!$C$35 -> 0 | AH80: =N80*Info!$C$34 -> 153.3394 | AI80: =O80*Info!$C$28 -> 0 | AJ80: =P80*Info!$C$26 -> 0 | AK80: =Q80*Info!$C$37 -> 80.064 | AL80: =R80*Info!$C$38 -> 0 | AM80: =S80*Info!$C$39 -> 0 | AN80: =T80*Info!$C$40 -> 0 | AO80: =U80*Info!$C$43 -> 0 | AP80: =V80*Info!$C$41 -> 0 | AQ80: =W80*Info!$C$42 -> 0 | AR80: 233.4034 | AT80: 0 | AU80: 0 | AV80: 0 | AW80: 0 | AX80: 0 | AY80: 0 | AZ80: 0 | BA80: 0 | BB80: 0 | BC80: 65.6971578 | BD80: 0 | BE80: 0 | BF80: 34.3028422 | BG80: 0 | BH80: 0 | BI80: 0 | BJ80: 0 | BK80: 0 | BL80: 0 | BM80: 100
A81: Calcite | B81: CaCO3 | C81: 2.71 | D81: =C81*'Phase Rock Maker'!C81 -> 0 | K81: 1 | T81: 1 | Y81: =E81*Info!$C$25 -> 0 | Z81: =F81*Info!$C$27 -> 0 | AA81: =G81*Info!$C$29 -> 0 | AB81: =H81*Info!$C$32 -> 0 | AC81: =I81*Info!$C$33 -> 0 | AD81: =J81*Info!$C$31 -> 0 | AE81: =K81*Info!$C$30 -> 56.0794 | AF81: =L81*Info!$C$36 -> 0 | AG81: =M81*Info!$C$35 -> 0 | AH81: =N81*Info!$C$34 -> 0 | AI81: =O81*Info!$C$28 -> 0 | AJ81: =P81*Info!$C$26 -> 0 | AK81: =Q81*Info!$C$37 -> 0 | AL81: =R81*Info!$C$38 -> 0 | AM81: =S81*Info!$C$39 -> 0 | AN81: =T81*Info!$C$40 -> 44.01 | AO81: =U81*Info!$C$43 -> 0 | AP81: =V81*Info!$C$41 -> 0 | AQ81: =W81*Info!$C$42 -> 0 | AR81: 100.0894 | AT81: =Y81/$AR81*100 -> 0 | AU81: =Z81/$AR81*100 -> 0 | AV81: =AA81/$AR81*100 -> 0 | AW81: =AB81/$AR81*100 -> 0 | AX81: =AC81/$AR81*100 -> 0 | AY81: =AD81/$AR81*100 -> 0 | AZ81: =AE81/$AR81*100 -> 56.0293098 | BA81: =AF81/$AR81*100 -> 0 | BB81: =AG81/$AR81*100 -> 0 | BC81: =AH81/$AR81*100 -> 0 | BD81: =AI81/$AR81*100 -> 0 | BE81: =AJ81/$AR81*100 -> 0 | BF81: =AK81/$AR81*100 -> 0 | BG81: =AL81/$AR81*100 -> 0 | BH81: =AM81/$AR81*100 -> 0 | BI81: =AN81/$AR81*100 -> 43.9706902 | BJ81: 0 | BK81: 0 | BL81: 0 | BM81: 100
A82: Dolomite | B82: MgCa(CO3)2 | C82: 2.88 | D82: =C82*'Phase Rock Maker'!C82 -> 0 | G82: 1 | K82: 1 | T82: 2 | Y82: =E82*Info!$C$25 -> 0 | Z82: =F82*Info!$C$27 -> 0 | AA82: =G82*Info!$C$29 -> 40.3114 | AB82: =H82*Info!$C$32 -> 0 | AC82: =I82*Info!$C$33 -> 0 | AD82: =J82*Info!$C$31 -> 0 | AE82: =K82*Info!$C$30 -> 56.0794 | AF82: =L82*Info!$C$36 -> 0 | AG82: =M82*Info!$C$35 -> 0 | AH82: =N82*Info!$C$34 -> 0 | AI82: =O82*Info!$C$28 -> 0 | AJ82: =P82*Info!$C$26 -> 0 | AK82: =Q82*Info!$C$37 -> 0 | AL82: =R82*Info!$C$38 -> 0 | AM82: =S82*Info!$C$39 -> 0 | AN82: =T82*Info!$C$40 -> 88.02 | AO82: =U82*Info!$C$43 -> 0 | AP82: =V82*Info!$C$41 -> 0 | AQ82: =W82*Info!$C$42 -> 0 | AR82: 184.4108 | AT82: 0 | AU82: 0 | AV82: 21.85956571 | AW82: 0 | AX82: 0 | AY82: 0 | AZ82: 30.41004106 | BA82: 0 | BB82: 0 | BC82: 0 | BD82: 0 | BE82: 0 | BF82: 0 | BG82: 0 | BH82: 0 | BI82: 47.73039323 | BJ82: 0 | BK82: 0 | BL82: 0 | BM82: 100
A83: Magnesite | B83: MgCO3 | C83: 3.01 | D83: =C83*'Phase Rock Maker'!C83 -> 0 | G83: 1 | T83: 1 | Y83: =E83*Info!$C$25 -> 0 | Z83: =F83*Info!$C$27 -> 0 | AA83: =G83*Info!$C$29 -> 40.3114 | AB83: =H83*Info!$C$32 -> 0 | AC83: =I83*Info!$C$33 -> 0 | AD83: =J83*Info!$C$31 -> 0 | AE83: =K83*Info!$C$30 -> 0 | AF83: =L83*Info!$C$36 -> 0 | AG83: =M83*Info!$C$35 -> 0 | AH83: =N83*Info!$C$34 -> 0 | AI83: =O83*Info!$C$28 -> 0 | AJ83: =P83*Info!$C$26 -> 0 | AK83: =Q83*Info!$C$37 -> 0 | AL83: =R83*Info!$C$38 -> 0 | AM83: =S83*Info!$C$39 -> 0 | AN83: =T83*Info!$C$40 -> 44.01 | AO83: =U83*Info!$C$43 -> 0 | AP83: =V83*Info!$C$41 -> 0 | AQ83: =W83*Info!$C$42 -> 0 | AR83: 84.3214 | AT83: 0 | AU83: 0 | AV83: 47.80684381 | AW83: 0 | AX83: 0 | AY83: 0 | AZ83: 0 | BA83: 0 | BB83: 0 | BC83: 0 | BD83: 0 | BE83: 0 | BF83: 0 | BG83: 0 | BH83: 0 | BI83: 52.19315619 | BJ83: 0 | BK83: 0 | BL83: 0 | BM83: 100
A84: Siderite | B84: FeCO3 | C84: 3.93 | D84: =C84*'Phase Rock Maker'!C84 -> 0 | H84: 1 | T84: 1 | Y84: =E84*Info!$C$25 -> 0 | Z84: =F84*Info!$C$27 -> 0 | AA84: =G84*Info!$C$29 -> 0 | AB84: =H84*Info!$C$32 -> 71.8464 | AC84: =I84*Info!$C$33 -> 0 | AD84: =J84*Info!$C$31 -> 0 | AE84: =K84*Info!$C$30 -> 0 | AF84: =L84*Info!$C$36 -> 0 | AG84: =M84*Info!$C$35 -> 0 | AH84: =N84*Info!$C$34 -> 0 | AI84: =O84*Info!$C$28 -> 0 | AJ84: =P84*Info!$C$26 -> 0 | AK84: =Q84*Info!$C$37 -> 0 | AL84: =R84*Info!$C$38 -> 0 | AM84: =S84*Info!$C$39 -> 0 | AN84: =T84*Info!$C$40 -> 44.01 | AO84: =U84*Info!$C$43 -> 0 | AP84: =V84*Info!$C$41 -> 0 | AQ84: =W84*Info!$C$42 -> 0 | AR84: 115.8564 | AT84: 0 | AU84: 0 | AV84: 0 | AW84: 62.01331994 | AX84: 0 | AY84: 0 | AZ84: 0 | BA84: 0 | BB84: 0 | BC84: 0 | BD84: 0 | BE84: 0 | BF84: 0 | BG84: 0 | BH84: 0 | BI84: 37.98668006 | BJ84: 0 | BK84: 0 | BL84: 0 | BM84: 100
A85: Corundum | B85: Al2O3 | C85: 4 | D85: =C85*'Phase Rock Maker'!C85 -> 0 | F85: 1 | Y85: =E85*Info!$C$25 -> 0 | Z85: =F85*Info!$C$27 -> 101.9612 | AA85: =G85*Info!$C$29 -> 0 | AB85: =H85*Info!$C$32 -> 0 | AC85: =I85*Info!$C$33 -> 0 | AD85: =J85*Info!$C$31 -> 0 | AE85: =K85*Info!$C$30 -> 0 | AF85: =L85*Info!$C$36 -> 0 | AG85: =M85*Info!$C$35 -> 0 | AH85: =N85*Info!$C$34 -> 0 | AI85: =O85*Info!$C$28 -> 0 | AJ85: =P85*Info!$C$26 -> 0 | AK85: =Q85*Info!$C$37 -> 0 | AL85: =R85*Info!$C$38 -> 0 | AM85: =S85*Info!$C$39 -> 0 | AN85: =T85*Info!$C$40 -> 0 | AO85: =U85*Info!$C$43 -> 0 | AP85: =V85*Info!$C$41 -> 0 | AQ85: =W85*Info!$C$42 -> 0 | AR85: 101.9612 | AT85: 0 | AU85: 100 | AV85: 0 | AW85: 0 | AX85: 0 | AY85: 0 | AZ85: 0 | BA85: 0 | BB85: 0 | BC85: 0 | BD85: 0 | BE85: 0 | BF85: 0 | BG85: 0 | BH85: 0 | BI85: 0 | BJ85: 0 | BK85: 0 | BL85: 0 | BM85: 100
A86: Epidote | B86: Ca2Al2Fe3+Si3O12(OH) | C86: 3.43 | D86: =C86*'Phase Rock Maker'!C86 -> 0 | E86: 3 | F86: 1 | I86: 0.5 | K86: 2 | S86: 0.5 | Y86: =E86*Info!$C$25 -> 180.2544 | Z86: =F86*Info!$C$27 -> 101.9612 | AA86: =G86*Info!$C$29 -> 0 | AB86: =H86*Info!$C$32 -> 0 | AC86: =I86*Info!$C$33 -> 79.8461 | AD86: =J86*Info!$C$31 -> 0 | AE86: =K86*Info!$C$30 -> 112.1588 | AF86: =L86*Info!$C$36 -> 0 | AG86: =M86*Info!$C$35 -> 0 | AH86: =N86*Info!$C$34 -> 0 | AI86: =O86*Info!$C$28 -> 0 | AJ86: =P86*Info!$C$26 -> 0 | AK86: =Q86*Info!$C$37 -> 0 | AL86: =R86*Info!$C$38 -> 0 | AM86: =S86*Info!$C$39 -> 9.0075 | AN86: =T86*Info!$C$40 -> 0 | AO86: =U86*Info!$C$43 -> 0 | AP86: =V86*Info!$C$41 -> 0 | AQ86: =W86*Info!$C$42 -> 0 | AR86: 483.228 | AT86: 37.30214309 | AU86: 21.10001904 | AV86: 0 | AW86: 0 | AX86: 16.52348374 | AY86: 0 | AZ86: 23.21032722 | BA86: 0 | BB86: 0 | BC86: 0 | BD86: 0 | BE86: 0 | BF86: 0 | BG86: 0 | BH86: 1.864026919 | BI86: 0 | BJ86: 0 | BK86: 0 | BL86: 0 | BM86: 100
A87: Zoisite | B87: Ca2Al3Si3O12(OH) | C87: 3.35 | D87: =C87*'Phase Rock Maker'!C87 -> 0 | E87: 3 | F87: 1.5 | K87: 2 | S87: 0.5 | Y87: =E87*Info!$C$25 -> 180.2544 | Z87: =F87*Info!$C$27 -> 152.9418 | AA87: =G87*Info!$C$29 -> 0 | AB87: =H87*Info!$C$32 -> 0 | AC87: =I87*Info!$C$33 -> 0 | AD87: =J87*Info!$C$31 -> 0 | AE87: =K87*Info!$C$30 -> 112.1588 | AF87: =L87*Info!$C$36 -> 0 | AG87: =M87*Info!$C$35 -> 0 | AH87: =N87*Info!$C$34 -> 0 | AI87: =O87*Info!$C$28 -> 0 | AJ87: =P87*Info!$C$26 -> 0 | AK87: =Q87*Info!$C$37 -> 0 | AL87: =R87*Info!$C$38 -> 0 | AM87: =S87*Info!$C$39 -> 9.0075 | AN87: =T87*Info!$C$40 -> 0 | AO87: =U87*Info!$C$43 -> 0 | AP87: =V87*Info!$C$41 -> 0 | AQ87: =W87*Info!$C$42 -> 0 | AR87: 454.3625 | AT87: 39.67193595 | AU87: 33.66074445 | AV87: 0 | AW87: 0 | AX87: 0 | AY87: 0 | AZ87: 24.68487166 | BA87: 0 | BB87: 0 | BC87: 0 | BD87: 0 | BE87: 0 | BF87: 0 | BG87: 0 | BH87: 1.982447935 | BI87: 0 | BJ87: 0 | BK87: 0 | BL87: 0 | BM87: 100
A88: Apatite (Hydroxylapatite) | B88: Ca5(PO4)3(OH) | C88: 3.16 | D88: =C88*'Phase Rock Maker'!C88 -> 0 | K88: 5 | S88: 0.5 | W88: 1.5 | Y88: =E88*Info!$C$25 -> 0 | Z88: =F88*Info!$C$27 -> 0 | AA88: =G88*Info!$C$29 -> 0 | AB88: =H88*Info!$C$32 -> 0 | AC88: =I88*Info!$C$33 -> 0 | AD88: =J88*Info!$C$31 -> 0 | AE88: =K88*Info!$C$30 -> 280.397 | AF88: =L88*Info!$C$36 -> 0 | AG88: =M88*Info!$C$35 -> 0 | AH88: =N88*Info!$C$34 -> 0 | AI88: =O88*Info!$C$28 -> 0 | AJ88: =P88*Info!$C$26 -> 0 | AK88: =Q88*Info!$C$37 -> 0 | AL88: =R88*Info!$C$38 -> 0 | AM88: =S88*Info!$C$39 -> 9.0075 | AN88: =T88*Info!$C$40 -> 0 | AO88: =U88*Info!$C$43 -> 0 | AP88: =V88*Info!$C$41 -> 0 | AQ88: =W88*Info!$C$42 -> 212.91 | AR88: 502.3145 | AT88: =Y88/$AR88*100 -> 0 | AU88: =Z88/$AR88*100 -> 0 | AV88: =AA88/$AR88*100 -> 0 | AW88: =AB88/$AR88*100 -> 0 | AX88: =AC88/$AR88*100 -> 0 | AY88: =AD88/$AR88*100 -> 0 | AZ88: =AE88/$AR88*100 -> 55.82100457 | BA88: =AF88/$AR88*100 -> 0 | BB88: =AG88/$AR88*100 -> 0 | BC88: =AH88/$AR88*100 -> 0 | BD88: =AI88/$AR88*100 -> 0 | BE88: =AJ88/$AR88*100 -> 0 | BF88: =AK88/$AR88*100 -> 0 | BG88: =AL88/$AR88*100 -> 0 | BH88: =AM88/$AR88*100 -> 1.793199281 | BI88: =AN88/$AR88*100 -> 0 | BJ88: 0 | BK88: 0 | BL88: 42.38579615 | BM88: 100
A89: Tourmaline Drav50Schorl50 | B89: NaFe2+1.5Mg1.5Al6(BO3)3Si6O18(OH)4 | C89: 3.1 | D89: =C89*'Phase Rock Maker'!C89 -> 0 | E89: 6 | F89: 3 | G89: 1.5 | H89: 1.5 | M89: 0.5 | S89: 2 | V89: 1.5 | Y89: =E89*Info!$C$25 -> 360.5088 | Z89: =F89*Info!$C$27 -> 305.8836 | AA89: =G89*Info!$C$29 -> 60.4671 | AB89: =H89*Info!$C$32 -> 107.7696 | AC89: =I89*Info!$C$33 -> 0 | AD89: =J89*Info!$C$31 -> 0 | AE89: =K89*Info!$C$30 -> 0 | AF89: =L89*Info!$C$36 -> 0 | AG89: =M89*Info!$C$35 -> 30.9895 | AH89: =N89*Info!$C$34 -> 0 | AI89: =O89*Info!$C$28 -> 0 | AJ89: =P89*Info!$C$26 -> 0 | AK89: =Q89*Info!$C$37 -> 0 | AL89: =R89*Info!$C$38 -> 0 | AM89: =S89*Info!$C$39 -> 36.03 | AN89: =T89*Info!$C$40 -> 0 | AO89: =U89*Info!$C$43 -> 0 | AP89: =V89*Info!$C$41 -> 104.43 | AQ89: =W89*Info!$C$42 -> 0 | AR89: 1006.0786 | AT89: 35.83306513 | AU89: 30.40354899 | AV89: 6.010176541 | AW89: 10.71184697 | AX89: 0 | AY89: 0 | AZ89: 0 | BA89: 0 | BB89: 3.080226535 | BC89: 0 | BD89: 0 | BE89: 0 | BF89: 0 | BG89: 0 | BH89: 3.581231128 | BI89: 0 | BJ89: 0 | BK89: 10.37990471 | BL89: 0 | BM89: 100
A90: grt | B90: HV6.2b_1 | C90: 3.8 | D90: =C90*'Phase Rock Maker'!C90 -> 0 | Y90: =E90*Info!$C$25 -> 0 | Z90: =F90*Info!$C$27 -> 0 | AA90: =G90*Info!$C$29 -> 0 | AB90: =H90*Info!$C$32 -> 0 | AC90: =I90*Info!$C$33 -> 0 | AD90: =J90*Info!$C$31 -> 0 | AE90: =K90*Info!$C$30 -> 0 | AF90: =L90*Info!$C$36 -> 0 | AG90: =M90*Info!$C$35 -> 0 | AH90: =N90*Info!$C$34 -> 0 | AI90: =O90*Info!$C$28 -> 0 | AJ90: =P90*Info!$C$26 -> 0 | AK90: =Q90*Info!$C$37 -> 0 | AL90: =R90*Info!$C$38 -> 0 | AM90: =S90*Info!$C$39 -> 0 | AN90: =T90*Info!$C$40 -> 0 | AO90: =U90*Info!$C$43 -> 0 | AP90: =V90*Info!$C$41 -> 0 | AQ90: =W90*Info!$C$42 -> 0 | AR90: 0 | AT90: 40.42 | AU90: 22.5 | AV90: 13.38 | AW90: 17.1 | AX90: 0.83 | AY90: 0.42 | AZ90: 5.52 | BD90: 0.22 | BE90: 0.13 | BF90: 0 | BG90: 0 | BH90: 0 | BI90: 0 | BJ90: 0 | BK90: 0 | BL90: 0 | BM90: 100.52
A91: grt | B91: HV6.2b_2 | C91: 3.8 | D91: =C91*'Phase Rock Maker'!C91 -> 0 | Y91: =E91*Info!$C$25 -> 0 | Z91: =F91*Info!$C$27 -> 0 | AA91: =G91*Info!$C$29 -> 0 | AB91: =H91*Info!$C$32 -> 0 | AC91: =I91*Info!$C$33 -> 0 | AD91: =J91*Info!$C$31 -> 0 | AE91: =K91*Info!$C$30 -> 0 | AF91: =L91*Info!$C$36 -> 0 | AG91: =M91*Info!$C$35 -> 0 | AH91: =N91*Info!$C$34 -> 0 | AI91: =O91*Info!$C$28 -> 0 | AJ91: =P91*Info!$C$26 -> 0 | AK91: =Q91*Info!$C$37 -> 0 | AL91: =R91*Info!$C$38 -> 0 | AM91: =S91*Info!$C$39 -> 0 | AN91: =T91*Info!$C$40 -> 0 | AO91: =U91*Info!$C$43 -> 0 | AP91: =V91*Info!$C$41 -> 0 | AQ91: =W91*Info!$C$42 -> 0 | AR91: 0 | AT91: 40.61 | AU91: 22.59 | AV91: 13.96 | AW91: 16.36 | AX91: 1.47 | AY91: 0.4 | AZ91: 5.44 | BD91: 0.22 | BE91: 0.07 | BM91: 101.12
A92: grt | B92: HV6.2b_3 | C92: 3.8 | D92: =C92*'Phase Rock Maker'!C92 -> 0 | Y92: =E92*Info!$C$25 -> 0 | Z92: =F92*Info!$C$27 -> 0 | AA92: =G92*Info!$C$29 -> 0 | AB92: =H92*Info!$C$32 -> 0 | AC92: =I92*Info!$C$33 -> 0 | AD92: =J92*Info!$C$31 -> 0 | AE92: =K92*Info!$C$30 -> 0 | AF92: =L92*Info!$C$36 -> 0 | AG92: =M92*Info!$C$35 -> 0 | AH92: =N92*Info!$C$34 -> 0 | AI92: =O92*Info!$C$28 -> 0 | AJ92: =P92*Info!$C$26 -> 0 | AK92: =Q92*Info!$C$37 -> 0 | AL92: =R92*Info!$C$38 -> 0 | AM92: =S92*Info!$C$39 -> 0 | AN92: =T92*Info!$C$40 -> 0 | AO92: =U92*Info!$C$43 -> 0 | AP92: =V92*Info!$C$41 -> 0 | AQ92: =W92*Info!$C$42 -> 0 | AR92: 0 | AT92: 40.31 | AU92: 22.54 | AV92: 13.92 | AW92: 15.95 | AX92: 2.36 | AY92: 0.45 | AZ92: 5.51 | BD92: 0.22 | BE92: 0.08 | BM92: 101.34
A93: cpx | B93: HV6.2b_6 | C93: 3.2 | D93: =C93*'Phase Rock Maker'!C93 -> 0 | Y93: =E93*Info!$C$25 -> 0 | Z93: =F93*Info!$C$27 -> 0 | AA93: =G93*Info!$C$29 -> 0 | AB93: =H93*Info!$C$32 -> 0 | AC93: =I93*Info!$C$33 -> 0 | AD93: =J93*Info!$C$31 -> 0 | AE93: =K93*Info!$C$30 -> 0 | AF93: =L93*Info!$C$36 -> 0 | AG93: =M93*Info!$C$35 -> 0 | AH93: =N93*Info!$C$34 -> 0 | AI93: =O93*Info!$C$28 -> 0 | AJ93: =P93*Info!$C$26 -> 0 | AK93: =Q93*Info!$C$37 -> 0 | AL93: =R93*Info!$C$38 -> 0 | AM93: =S93*Info!$C$39 -> 0 | AN93: =T93*Info!$C$40 -> 0 | AO93: =U93*Info!$C$43 -> 0 | AP93: =V93*Info!$C$41 -> 0 | AQ93: =W93*Info!$C$42 -> 0 | AR93: 0 | AT93: 50.06 | AU93: 6.94 | AV93: 12.7 | AW93: 6.19 | AX93: 0.64 | AY93: 0 | AZ93: 20.06 | BA93: 0 | BB93: 1.34 | BD93: 0 | BE93: 0.97 | BM93: 98.9
A94: cpx | B94: HV6.2b_7 | C94: 3.2 | D94: =C94*'Phase Rock Maker'!C94 -> 0 | Y94: =E94*Info!$C$25 -> 0 | Z94: =F94*Info!$C$27 -> 0 | AA94: =G94*Info!$C$29 -> 0 | AB94: =H94*Info!$C$32 -> 0 | AC94: =I94*Info!$C$33 -> 0 | AD94: =J94*Info!$C$31 -> 0 | AE94: =K94*Info!$C$30 -> 0 | AF94: =L94*Info!$C$36 -> 0 | AG94: =M94*Info!$C$35 -> 0 | AH94: =N94*Info!$C$34 -> 0 | AI94: =O94*Info!$C$28 -> 0 | AJ94: =P94*Info!$C$26 -> 0 | AK94: =Q94*Info!$C$37 -> 0 | AL94: =R94*Info!$C$38 -> 0 | AM94: =S94*Info!$C$39 -> 0 | AN94: =T94*Info!$C$40 -> 0 | AO94: =U94*Info!$C$43 -> 0 | AP94: =V94*Info!$C$41 -> 0 | AQ94: =W94*Info!$C$42 -> 0 | AR94: 0 | AT94: 48.92 | AU94: 7.23 | AV94: 13.01 | AW94: 4.2 | AX94: 3.26 | AY94: 0.01 | AZ94: 19.44 | BA94: 0 | BB94: 1.49 | BD94: 0 | BE94: 0.81 | BM94: 98.37
A95: cpx | B95: HV6.2b_8 | C95: 3.2 | D95: =C95*'Phase Rock Maker'!C95 -> 0 | Y95: =E95*Info!$C$25 -> 0 | Z95: =F95*Info!$C$27 -> 0 | AA95: =G95*Info!$C$29 -> 0 | AB95: =H95*Info!$C$32 -> 0 | AC95: =I95*Info!$C$33 -> 0 | AD95: =J95*Info!$C$31 -> 0 | AE95: =K95*Info!$C$30 -> 0 | AF95: =L95*Info!$C$36 -> 0 | AG95: =M95*Info!$C$35 -> 0 | AH95: =N95*Info!$C$34 -> 0 | AI95: =O95*Info!$C$28 -> 0 | AJ95: =P95*Info!$C$26 -> 0 | AK95: =Q95*Info!$C$37 -> 0 | AL95: =R95*Info!$C$38 -> 0 | AM95: =S95*Info!$C$39 -> 0 | AN95: =T95*Info!$C$40 -> 0 | AO95: =U95*Info!$C$43 -> 0 | AP95: =V95*Info!$C$41 -> 0 | AQ95: =W95*Info!$C$42 -> 0 | AR95: 0 | AT95: 49.9 | AU95: 7.22 | AV95: 12.2 | AW95: 5.2 | AX95: 1.58 | AY95: 0.03 | AZ95: 21.52 | BA95: 0.01 | BB95: 1.3 | BD95: 0.03 | BE95: 1.05 | BM95: 100.04
A96: cpx | B96: HV6.2b_11 | C96: 3.2 | D96: =C96*'Phase Rock Maker'!C96 -> 0 | Y96: =E96*Info!$C$25 -> 0 | Z96: =F96*Info!$C$27 -> 0 | AA96: =G96*Info!$C$29 -> 0 | AB96: =H96*Info!$C$32 -> 0 | AC96: =I96*Info!$C$33 -> 0 | AD96: =J96*Info!$C$31 -> 0 | AE96: =K96*Info!$C$30 -> 0 | AF96: =L96*Info!$C$36 -> 0 | AG96: =M96*Info!$C$35 -> 0 | AH96: =N96*Info!$C$34 -> 0 | AI96: =O96*Info!$C$28 -> 0 | AJ96: =P96*Info!$C$26 -> 0 | AK96: =Q96*Info!$C$37 -> 0 | AL96: =R96*Info!$C$38 -> 0 | AM96: =S96*Info!$C$39 -> 0 | AN96: =T96*Info!$C$40 -> 0 | AO96: =U96*Info!$C$43 -> 0 | AP96: =V96*Info!$C$41 -> 0 | AQ96: =W96*Info!$C$42 -> 0 | AR96: 0 | AT96: 49.91 | AU96: 6.83 | AV96: 14.01 | AW96: 7.96 | AX96: 0 | AY96: 0.01 | AZ96: 17.02 | BA96: 0 | BB96: 0.93 | BD96: 0.01 | BE96: 1.08 | BM96: 97.76
A97: Hbl | B97: HV6.2b_9 | C97: 3.2 | D97: =C97*'Phase Rock Maker'!C97 -> 0 | Y97: =E97*Info!$C$25 -> 0 | Z97: =F97*Info!$C$27 -> 0 | AA97: =G97*Info!$C$29 -> 0 | AB97: =H97*Info!$C$32 -> 0 | AC97: =I97*Info!$C$33 -> 0 | AD97: =J97*Info!$C$31 -> 0 | AE97: =K97*Info!$C$30 -> 0 | AF97: =L97*Info!$C$36 -> 0 | AG97: =M97*Info!$C$35 -> 0 | AH97: =N97*Info!$C$34 -> 0 | AI97: =O97*Info!$C$28 -> 0 | AJ97: =P97*Info!$C$26 -> 0 | AK97: =Q97*Info!$C$37 -> 0 | AL97: =R97*Info!$C$38 -> 0 | AM97: =S97*Info!$C$39 -> 0 | AN97: =T97*Info!$C$40 -> 0 | AO97: =U97*Info!$C$43 -> 0 | AP97: =V97*Info!$C$41 -> 0 | AQ97: =W97*Info!$C$42 -> 0 | AR97: 0 | AT97: 49.38 | AU97: 9.32 | AV97: 14.01 | AW97: 10.65 | AX97: 0 | AY97: 0 | AZ97: 12.91 | BA97: 0.13 | BB97: 0.62 | BD97: 0 | BE97: 0.86 | BM97: 97.88
A98: Hbl | B98: HV6.2b_10 | C98: 3.2 | D98: =C98*'Phase Rock Maker'!C98 -> 0 | Y98: =E98*Info!$C$25 -> 0 | Z98: =F98*Info!$C$27 -> 0 | AA98: =G98*Info!$C$29 -> 0 | AB98: =H98*Info!$C$32 -> 0 | AC98: =I98*Info!$C$33 -> 0 | AD98: =J98*Info!$C$31 -> 0 | AE98: =K98*Info!$C$30 -> 0 | AF98: =L98*Info!$C$36 -> 0 | AG98: =M98*Info!$C$35 -> 0 | AH98: =N98*Info!$C$34 -> 0 | AI98: =O98*Info!$C$28 -> 0 | AJ98: =P98*Info!$C$26 -> 0 | AK98: =Q98*Info!$C$37 -> 0 | AL98: =R98*Info!$C$38 -> 0 | AM98: =S98*Info!$C$39 -> 0 | AN98: =T98*Info!$C$40 -> 0 | AO98: =U98*Info!$C$43 -> 0 | AP98: =V98*Info!$C$41 -> 0 | AQ98: =W98*Info!$C$42 -> 0 | AR98: 0 | AT98: 50.94 | AU98: 7.33 | AV98: 15.29 | AW98: 9.58 | AX98: 0.11 | AY98: 0 | AZ98: 12.73 | BA98: 0.1 | BB98: 0.43 | BD98: 0 | BE98: 0.7 | BM98: 97.21
A99: Prg | B99: HV6.2b_18 | C99: 3.1 | D99: =C99*'Phase Rock Maker'!C99 -> 0 | Y99: =E99*Info!$C$25 -> 0 | Z99: =F99*Info!$C$27 -> 0 | AA99: =G99*Info!$C$29 -> 0 | AB99: =H99*Info!$C$32 -> 0 | AC99: =I99*Info!$C$33 -> 0 | AD99: =J99*Info!$C$31 -> 0 | AE99: =K99*Info!$C$30 -> 0 | AF99: =L99*Info!$C$36 -> 0 | AG99: =M99*Info!$C$35 -> 0 | AH99: =N99*Info!$C$34 -> 0 | AI99: =O99*Info!$C$28 -> 0 | AJ99: =P99*Info!$C$26 -> 0 | AK99: =Q99*Info!$C$37 -> 0 | AL99: =R99*Info!$C$38 -> 0 | AM99: =S99*Info!$C$39 -> 0 | AN99: =T99*Info!$C$40 -> 0 | AO99: =U99*Info!$C$43 -> 0 | AP99: =V99*Info!$C$41 -> 0 | AQ99: =W99*Info!$C$42 -> 0 | AR99: 0 | AT99: 41.67 | AU99: 18.05 | AV99: 9.64 | AW99: 11.79 | AX99: 2.61 | AY99: 0 | AZ99: 11.85 | BA99: 0.41 | BB99: 1.54 | BD99: 0 | BE99: 0.17 | BM99: 97.73
A100: Prg | B100: HV6.2b_19 | C100: 3.1 | D100: =C100*'Phase Rock Maker'!C100 -> 0 | Y100: =E100*Info!$C$25 -> 0 | Z100: =F100*Info!$C$27 -> 0 | AA100: =G100*Info!$C$29 -> 0 | AB100: =H100*Info!$C$32 -> 0 | AC100: =I100*Info!$C$33 -> 0 | AD100: =J100*Info!$C$31 -> 0 | AE100: =K100*Info!$C$30 -> 0 | AF100: =L100*Info!$C$36 -> 0 | AG100: =M100*Info!$C$35 -> 0 | AH100: =N100*Info!$C$34 -> 0 | AI100: =O100*Info!$C$28 -> 0 | AJ100: =P100*Info!$C$26 -> 0 | AK100: =Q100*Info!$C$37 -> 0 | AL100: =R100*Info!$C$38 -> 0 | AM100: =S100*Info!$C$39 -> 0 | AN100: =T100*Info!$C$40 -> 0 | AO100: =U100*Info!$C$43 -> 0 | AP100: =V100*Info!$C$41 -> 0 | AQ100: =W100*Info!$C$42 -> 0 | AR100: 0 | AT100: 40.72 | AU100: 19.49 | AV100: 8.83 | AW100: 12.07 | AX100: 1.83 | AY100: 0.01 | AZ100: 11.72 | BA100: 0.48 | BB100: 1.53 | BD100: 0 | BE100: 0.07 | BM100: 96.75
A101: Chl | B101: HV6.2a_3 | C101: 2.65 | D101: =C101*'Phase Rock Maker'!C101 -> 0 | Y101: =E101*Info!$C$25 -> 0 | Z101: =F101*Info!$C$27 -> 0 | AA101: =G101*Info!$C$29 -> 0 | AB101: =H101*Info!$C$32 -> 0 | AC101: =I101*Info!$C$33 -> 0 | AD101: =J101*Info!$C$31 -> 0 | AE101: =K101*Info!$C$30 -> 0 | AF101: =L101*Info!$C$36 -> 0 | AG101: =M101*Info!$C$35 -> 0 | AH101: =N101*Info!$C$34 -> 0 | AI101: =O101*Info!$C$28 -> 0 | AJ101: =P101*Info!$C$26 -> 0 | AK101: =Q101*Info!$C$37 -> 0 | AL101: =R101*Info!$C$38 -> 0 | AM101: =S101*Info!$C$39 -> 0 | AN101: =T101*Info!$C$40 -> 0 | AO101: =U101*Info!$C$43 -> 0 | AP101: =V101*Info!$C$41 -> 0 | AQ101: =W101*Info!$C$42 -> 0 | AR101: 0 | AT101: 27.34 | AU101: 22.16 | AV101: 24.35 | AW101: 12.68 | AX101: 0 | AY101: 0.04 | AZ101: 0.03 | BA101: 0.01 | BB101: 0 | BD101: 0 | BE101: 0.07 | BM101: 86.68
A102: Chl | B102: HV6.2a_4 | C102: 2.65 | D102: =C102*'Phase Rock Maker'!C102 -> 0 | Y102: =E102*Info!$C$25 -> 0 | Z102: =F102*Info!$C$27 -> 0 | AA102: =G102*Info!$C$29 -> 0 | AB102: =H102*Info!$C$32 -> 0 | AC102: =I102*Info!$C$33 -> 0 | AD102: =J102*Info!$C$31 -> 0 | AE102: =K102*Info!$C$30 -> 0 | AF102: =L102*Info!$C$36 -> 0 | AG102: =M102*Info!$C$35 -> 0 | AH102: =N102*Info!$C$34 -> 0 | AI102: =O102*Info!$C$28 -> 0 | AJ102: =P102*Info!$C$26 -> 0 | AK102: =Q102*Info!$C$37 -> 0 | AL102: =R102*Info!$C$38 -> 0 | AM102: =S102*Info!$C$39 -> 0 | AN102: =T102*Info!$C$40 -> 0 | AO102: =U102*Info!$C$43 -> 0 | AP102: =V102*Info!$C$41 -> 0 | AQ102: =W102*Info!$C$42 -> 0 | AR102: 0 | AT102: 27.2 | AU102: 22.04 | AV102: 23.9 | AW102: 12.53 | AX102: 0 | AY102: 0.03 | AZ102: 0.01 | BA102: 0.02 | BB102: 0.01 | BD102: 0.01 | BE102: 0.09 | BM102: 85.84
A103: Ep | B103: HV6.2b_7 | C103: 3.45 | D103: =C103*'Phase Rock Maker'!C103 -> 0 | Y103: =E103*Info!$C$25 -> 0 | Z103: =F103*Info!$C$27 -> 0 | AA103: =G103*Info!$C$29 -> 0 | AB103: =H103*Info!$C$32 -> 0 | AC103: =I103*Info!$C$33 -> 0 | AD103: =J103*Info!$C$31 -> 0 | AE103: =K103*Info!$C$30 -> 0 | AF103: =L103*Info!$C$36 -> 0 | AG103: =M103*Info!$C$35 -> 0 | AH103: =N103*Info!$C$34 -> 0 | AI103: =O103*Info!$C$28 -> 0 | AJ103: =P103*Info!$C$26 -> 0 | AK103: =Q103*Info!$C$37 -> 0 | AL103: =R103*Info!$C$38 -> 0 | AM103: =S103*Info!$C$39 -> 0 | AN103: =T103*Info!$C$40 -> 0 | AO103: =U103*Info!$C$43 -> 0 | AP103: =V103*Info!$C$41 -> 0 | AQ103: =W103*Info!$C$42 -> 0 | AR103: 0 | AT103: 38.17 | AU103: 26.51 | AV103: 0.07 | AX103: 8.98 | AY103: 0.17 | AZ103: 23.68 | BA103: 0 | BB103: 0 | BD103: 0.18 | BE103: 0.08 | BM103: 97.84
A104: Ep | B104: HV6.2b_8 | C104: 3.45 | D104: =C104*'Phase Rock Maker'!C104 -> 0 | Y104: =E104*Info!$C$25 -> 0 | Z104: =F104*Info!$C$27 -> 0 | AA104: =G104*Info!$C$29 -> 0 | AB104: =H104*Info!$C$32 -> 0 | AC104: =I104*Info!$C$33 -> 0 | AD104: =J104*Info!$C$31 -> 0 | AE104: =K104*Info!$C$30 -> 0 | AF104: =L104*Info!$C$36 -> 0 | AG104: =M104*Info!$C$35 -> 0 | AH104: =N104*Info!$C$34 -> 0 | AI104: =O104*Info!$C$28 -> 0 | AJ104: =P104*Info!$C$26 -> 0 | AK104: =Q104*Info!$C$37 -> 0 | AL104: =R104*Info!$C$38 -> 0 | AM104: =S104*Info!$C$39 -> 0 | AN104: =T104*Info!$C$40 -> 0 | AO104: =U104*Info!$C$43 -> 0 | AP104: =V104*Info!$C$41 -> 0 | AQ104: =W104*Info!$C$42 -> 0 | AR104: 0 | AT104: 38.03 | AU104: 26.72 | AV104: 0.06 | AX104: 8.75 | AY104: 0.17 | AZ104: 23.57 | BA104: 0 | BB104: 0 | BD104: 0.16 | BE104: 0.06 | BM104: 97.52
A105: New Phase | C105: 0 | D105: =C105*'Phase Rock Maker'!C105 -> 0 | E105: 1 | Y105: =E105*Info!$C$25 -> 60.0848 | Z105: =F105*Info!$C$27 -> 0 | AA105: =G105*Info!$C$29 -> 0 | AB105: =H105*Info!$C$32 -> 0 | AC105: =I105*Info!$C$33 -> 0 | AD105: =J105*Info!$C$31 -> 0 | AE105: =K105*Info!$C$30 -> 0 | AF105: =L105*Info!$C$36 -> 0 | AG105: =M105*Info!$C$35 -> 0 | AH105: =N105*Info!$C$34 -> 0 | AI105: =O105*Info!$C$28 -> 0 | AJ105: =P105*Info!$C$26 -> 0 | AK105: =Q105*Info!$C$37 -> 0 | AL105: =R105*Info!$C$38 -> 0 | AM105: =S105*Info!$C$39 -> 0 | AN105: =T105*Info!$C$40 -> 0 | AO105: =U105*Info!$C$43 -> 0 | AP105: =V105*Info!$C$41 -> 0 | AQ105: =W105*Info!$C$42 -> 0 | AR105: 60.0848 | AT105: =Y105/$AR105*100 -> 100 | AU105: =Z105/$AR105*100 -> 0 | AV105: =AA105/$AR105*100 -> 0 | AW105: =AB105/$AR105*100 -> 0 | AX105: =AC105/$AR105*100 -> 0 | AY105: =AD105/$AR105*100 -> 0 | AZ105: =AE105/$AR105*100 -> 0 | BA105: =AF105/$AR105*100 -> 0 | BB105: =AG105/$AR105*100 -> 0 | BC105: =AH105/$AR105*100 -> 0 | BD105: =AI105/$AR105*100 -> 0 | BE105: =AJ105/$AR105*100 -> 0 | BF105: =AK105/$AR105*100 -> 0 | BG105: =AL105/$AR105*100 -> 0 | BH105: =AM105/$AR105*100 -> 0 | BI105: =AN105/$AR105*100 -> 0 | BJ105: 0 | BK105: 0 | BL105: 0 | BM105: 100
A106: New Phase | C106: 0 | D106: =C106*'Phase Rock Maker'!C106 -> 0 | E106: 1 | Y106: =E106*Info!$C$25 -> 60.0848 | Z106: =F106*Info!$C$27 -> 0 | AA106: =G106*Info!$C$29 -> 0 | AB106: =H106*Info!$C$32 -> 0 | AC106: =I106*Info!$C$33 -> 0 | AD106: =J106*Info!$C$31 -> 0 | AE106: =K106*Info!$C$30 -> 0 | AF106: =L106*Info!$C$36 -> 0 | AG106: =M106*Info!$C$35 -> 0 | AH106: =N106*Info!$C$34 -> 0 | AI106: =O106*Info!$C$28 -> 0 | AJ106: =P106*Info!$C$26 -> 0 | AK106: =Q106*Info!$C$37 -> 0 | AL106: =R106*Info!$C$38 -> 0 | AM106: =S106*Info!$C$39 -> 0 | AN106: =T106*Info!$C$40 -> 0 | AO106: =U106*Info!$C$43 -> 0 | AP106: =V106*Info!$C$41 -> 0 | AQ106: =W106*Info!$C$42 -> 0 | AR106: 60.0848 | AT106: 100 | AU106: 0 | AV106: 0 | AW106: 0 | AX106: 0 | AY106: 0 | AZ106: 0 | BA106: 0 | BB106: 0 | BC106: 0 | BD106: 0 | BE106: 0 | BF106: 0 | BG106: 0 | BH106: 0 | BI106: 0 | BJ106: 0 | BK106: 0 | BL106: 0 | BM106: 100
A107: New Phase | C107: 0 | D107: =C107*'Phase Rock Maker'!C107 -> 0 | E107: 1 | Y107: =E107*Info!$C$25 -> 60.0848 | Z107: =F107*Info!$C$27 -> 0 | AA107: =G107*Info!$C$29 -> 0 | AB107: =H107*Info!$C$32 -> 0 | AC107: =I107*Info!$C$33 -> 0 | AD107: =J107*Info!$C$31 -> 0 | AE107: =K107*Info!$C$30 -> 0 | AF107: =L107*Info!$C$36 -> 0 | AG107: =M107*Info!$C$35 -> 0 | AH107: =N107*Info!$C$34 -> 0 | AI107: =O107*Info!$C$28 -> 0 | AJ107: =P107*Info!$C$26 -> 0 | AK107: =Q107*Info!$C$37 -> 0 | AL107: =R107*Info!$C$38 -> 0 | AM107: =S107*Info!$C$39 -> 0 | AN107: =T107*Info!$C$40 -> 0 | AO107: =U107*Info!$C$43 -> 0 | AP107: =V107*Info!$C$41 -> 0 | AQ107: =W107*Info!$C$42 -> 0 | AR107: 60.0848 | AT107: 100 | AU107: 0 | AV107: 0 | AW107: 0 | AX107: 0 | AY107: 0 | AZ107: 0 | BA107: 0 | BB107: 0 | BC107: 0 | BD107: 0 | BE107: 0 | BF107: 0 | BG107: 0 | BH107: 0 | BI107: 0 | BJ107: 0 | BK107: 0 | BL107: 0 | BM107: 100
A108: New Phase | C108: 0 | D108: =C108*'Phase Rock Maker'!C108 -> 0 | E108: 1 | Y108: =E108*Info!$C$25 -> 60.0848 | Z108: =F108*Info!$C$27 -> 0 | AA108: =G108*Info!$C$29 -> 0 | AB108: =H108*Info!$C$32 -> 0 | AC108: =I108*Info!$C$33 -> 0 | AD108: =J108*Info!$C$31 -> 0 | AE108: =K108*Info!$C$30 -> 0 | AF108: =L108*Info!$C$36 -> 0 | AG108: =M108*Info!$C$35 -> 0 | AH108: =N108*Info!$C$34 -> 0 | AI108: =O108*Info!$C$28 -> 0 | AJ108: =P108*Info!$C$26 -> 0 | AK108: =Q108*Info!$C$37 -> 0 | AL108: =R108*Info!$C$38 -> 0 | AM108: =S108*Info!$C$39 -> 0 | AN108: =T108*Info!$C$40 -> 0 | AO108: =U108*Info!$C$43 -> 0 | AP108: =V108*Info!$C$41 -> 0 | AQ108: =W108*Info!$C$42 -> 0 | AR108: 60.0848 | AT108: 100 | AU108: 0 | AV108: 0 | AW108: 0 | AX108: 0 | AY108: 0 | AZ108: 0 | BA108: 0 | BB108: 0 | BC108: 0 | BD108: 0 | BE108: 0 | BF108: 0 | BG108: 0 | BH108: 0 | BI108: 0 | BJ108: 0 | BK108: 0 | BL108: 0 | BM108: 100
D109: =SUM(D3:D108) -> 265
B112: References for density values in column C:
B113: Black: Anthony et al. (2011)
B114: Blue: Tröger (1982)
B115: White: Deer et al. (1992)
B116: Green: Winchell (1958)
B117: Red: linear interpolation between end member densities (Anthony et al., 2011) proportional to end member abundance.
